Workbook

Sheet Başvurular
A1: 01 Ocak 2017 - 28 Şubat 2017 Tarihlerinde Düzenlenecek Bilimsel Etkinliklere Katılımı Destekleme Başvuruları (Bilimsel Araştırma Projeleri Koordinasyon Birimi Komisyon Toplantı Tarihi: 13 Aralık 2016 Toplantı No.2016/10)
A2: Çağrı Dönemi | B2: SicilNo | C2: Adı Soyadı | D2: Birimi | E2: KadroUnvani | F2: EtkinlikAdi | G2: Yurt İçimi? | H2: Ülke | I2: IlAdi | J2: Etkinlik Rolleri | K2: EtkinlikBaslamaTarihi | L2: EtkinlikBitisTarihi | M2: Katılım Ücretlimi? | N2: Katılım Ücreti | O2: Komisyon Kararı
A3: 3. Çağrı | B3: 06882 | C3: BELMA BULUT | D3: Hukuk Fakültesi Dekanlığı, Özel Hukuk Bölüm Başkanlığı Milletlerarası Özel Hukuk Anabilim Dalı Başkanlığı | E3: Araştırma Görevlisi | F3: MARENER 2017 | G3: Yurt Dışı | H3: Isveç | I3: Malmö | J3: Bildiri Sunmak | K3: 2017-01-24 | L3: 2017-01-25 | M3: Katılım Ücretli | N3: 280.00 DOLAR | O3: Yolluk, 2 günlük yurtdışı yevmiyesi, 280 $ katılım giderinin Fakülte Bütçesinden karşılanmak üzere Kabul
A4: 3. Çağrı | B4: 02201 | C4: Nevzat ÖZGÜR | D4: Mühendislik Fakültesi Dekanlığı, Jeoloji Mühendisliği Bölüm Başkanlığı Mineroloji Petrografi Anabilim Dalı Başkanlığı | E4: Profesör | F4: Stanford Geothermal Workshop 42nd Annual | G4: Yurt Dışı | H4: Amerika Birleşik Devletleri | I4: California | J4: Bildiri Sunmak | K4: 2017-02-13 | L4: 2017-02-15 | M4: Katılım Ücretli | N4: 690.00 DOLAR | O4: Yolluk, 3 günlük yurtdışı yevmiyesi, 400,00 EURO'ya kadar katılım giderinin Fakülte Bütçesinden karşılanmak üzere Kabul
A5: 3. Çağrı | B5: 05310 | C5: Bilal ÇİĞ | D5: Sağlık Bilimleri Enstitüsü Müdürlüğü | E5: Araştırma Görevlisi | F5: International Conference on Reproductive Biology and Comparative Endocrinology (ICRBCE) and 35th Annual Meeting of The Society for Reproductive Biology and Comparative Endocrinology | G5: Yurt Dışı | H5: Hindistan | I5: Haidarâbâd | J5: Poster Sunmak | K5: 2017-02-09 | L5: 2017-02-11 | M5: Katılım Ücretli | N5: Ücret İstemiyor | O5: Yolluk, Etkinlikten 1 gün önce, 1 gün sonra olmak üzere 5 günlük yurtdışı yevmiyesinin 20164747/SDÜ.05310 nolu Güdümlü Projeden karşılanmak üzere Kabul
A6: 3. Çağrı | B6: 06164 | C6: Ahmi ÖZ | D6: Tıp Fakültesi Dekanlığı, Temel Tıp Bilimleri Bölüm Başkanlığı Biyofizik Anabilim Dalı Başkanlığı | E6: Araştırma Görevlisi | F6: International Conference on Reproductive Biology and Comparative Endocrinology (ICRBCE) and 35th Annual Meeting of Society for Reproductive Biology and Comparative Endocrinology | G6: Yurt Dışı | H6: Hindistan | I6: Haidarâbâd | J6: Poster Sunmak | K6: 2017-02-09 | L6: 2017-02-11 | M6: Katılım Ücretli | N6: Ücret İstemiyor | O6: Yolluk, Etkinlikten 1 gün önce, 1 gün sonra olmak üzere 5 günlük yurtdışı yevmiyesinin 20164747/SDÜ.06164 nolu Güdümlü Projeden karşılanmak üzere Kabul
A7: 3. Çağrı | B7: 03635 | C7: Mustafa NAZIROĞLU | D7: Tıp Fakültesi Dekanlığı, Temel Tıp Bilimleri Bölüm Başkanlığı Biyofizik Anabilim Dalı Başkanlığı | E7: Profesör | F7: International Conference on Reproductive Biology and Comparative Endocrinology and The 35th Annual Meeting of The Society for Reproductive Biology and Comparative Endocrinology and and The 35th Annual Meeting of The Society for Reproductive Biology and Comparative Endocrinology | G7: Yurt Dışı | H7: Hindistan | I7: Haidarâbâd | J7: Bildiri Sunmak | K7: 2017-02-09 | L7: 2017-02-11 | M7: Katılım Ücretli | N7: Ücret İstemiyor | O7: Yolluk, 5 günlük yurtdışı yevmiyesi 20164747/SDÜ.03635 nolu Güdümlü Projeden karşılanmak üzere Kabul
A8: 3. Çağrı | B8: 02574 | C8: Oktay KÖSE | D8: Güzel Sanatlar Fakültesi Dekanlığı, Resim Bölüm Başkanlığı Resim Anasanat Dalı Başkanlığı | E8: Yardımcı Doçent | F8: 2017 4th International Conference on Linguistics, Literature and Arts (ICLLA 2017) | G8: Yurt Dışı | H8: Vietnam | I8: Thanh Pho Ho Chi Minh | J8: Panelist | K8: 2017-02-22 | L8: 2017-02-24 | M8: Katılım Ücretli | N8: 225,00 $ | O8: Yolluk, etkinlikten 1 gün önce, 1 sonra olmak üzere 5 günlük yurtdışı yevmiyesinin ve 225,00 $ katılım giderinin 20164747/SDÜ.02574 nolu Güdümlü Projeden karşılanmak üzere Kabul
A9: 3. Çağrı | B9: 02415 | C9: Muharrem Zafer ÇAĞLAR | D9: Teknik Bilimler Meslek Yüksekokulu Müdürlüğü, Görsel, İşitsel Teknikler Ve Medya Yapımcılığı Bölüm Başkanlığı Radyo ve Televizyon Programcılığı | E9: Öğretim Görevlisi | F9: Mesleki görgü ve bilgimi geliştirmek ve medya çalışmaları hakkında bilgi edinmek amacıyla, İspanya'nın Başkenti Madrid ve önemli şehirlerinden Barselona'yı performans puanlarımdan karşılanmak üzere ziyaret etmek. | G9: Yurt Dışı | H9: İspanya | I9: Madrid | J9: Bilgi-Görgü Arttırma | K9: 2017-01-30 | L9: 2017-02-06 | M9: Katılım Ücretsiz | N9: Ücret İstemiyor | O9: Yolluk, 5 günlük yurtdışı yevmiyesi 20164747/SDÜ.02415 nolu Güdümlü Projeden karşılanmak üzere Kabul
A10: 3. Çağrı | B10: 04533 | C10: Ahmet SONGUR | D10: İktisadi Ve İdari Bilimler Fakültesi Dekanlığı, İşletme Bölüm Başkanlığı Üretim Yönetimi Ve Pazarlama Anabilim Dalı Başkanlığı | E10: Yardımcı Doçent | F10: 6th Annual International Conference on Humanities and Social Sciences | G10: Yurt Dışı | H10: İspanya | I10: Barcelona | J10: Bildiri Sunmak | K10: 2017-01-26 | L10: 2017-01-29 | M10: Katılım Ücretli | N10: 1000.00 TL | O10: Yolluk, 3 günlük yurtdışı yevmiyesi, 1.000, TL katılım giderinin Fakülte Bütçesinden karşılanmak üzere Kabul
A11: 3. Çağrı | B11: 00744 | C11: Nedret ÇAĞLAR | D11: Teknik Bilimler Meslek Yüksekokulu Müdürlüğü, Görsel, İşitsel Teknikler Ve Medya Yapımcılığı Bölüm Başkanlığı Radyo ve Televizyon Programcılığı | E11: Yardımcı Doçent | F11: Mesleki görgü ve bilgi birikimimi geliştirmek ve medya faaliyetleri hakkında bilgi edinmek amacıyla, İspanya'nın Madrid ve Barcelona şehirlerini performansımdan karşılanmak üzere ziyaret etmek. | G11: Yurt Dışı | H11: İspanya | I11: Madrid | J11: Bilgi-Görgü Arttırma | K11: 2017-01-30 | L11: 2017-02-06 | M11: Katılım Ücretsiz | N11: Ücret İstemiyor | O11: Yolluk, 5 günlük yurtdışı yevmiyesi 20164747/SDÜ.00744 nolu Güdümlü Projeden karşılanmak üzere Kabul
A12: 3. Çağrı | B12: 04351 | C12: İbrahim DEMİRTAŞ | D12: Şarkikaraağaç Meslek Yüksekokulu Müdürlüğü, Yönetim Ve Organizasyon Bölüm Başkanlığı İşletme Yönetimi | E12: Öğretim Görevlisi | F12: 6th Annual International Conference on Humanities and Social Sciences | G12: Yurt Dışı | H12: İspanya | I12: Barcelona | J12: Bildiri Sunmak | K12: 2017-01-26 | L12: 2017-01-29 | M12: Katılım Ücretli | N12: 1000.00 TL | O12: Yolluk, 3 günlük yurtdışı yevmiyesi ve 1.000,00 TL katılım giderinin MYO Bütçesinden karşılanmak üzere Kabul
A13: 3. Çağrı | B13: 04218 | C13: Elçin ESENLİK | D13: Diş Hekimliği Fakültesi Dekanlığı, Klinik Diş Hekimliği Bilimleri Bölüm Başkanlığı Ortodonti Anabilim Dalı Başkanlığı | E13: Doçent | F13: 13. Uluslar Arası Dudak Damak Yarıkları Kongresi | G13: Yurt Dışı | H13: Hindistan | I13: Chennai | J13: Bildiri Sunmak | K13: 2017-02-08 | L13: 2017-02-11 | M13: Katılım Ücretli | N13: 2250.00 TL | O13: Yolluk, 3 günlük yurtdışı yevmiyesi, 400,00 EURO'ya kadar katılım giderinin Fakülte Bütçesinden karşılanmak üzere Kabul
A14: 3. Çağrı | B14: 03396 | C14: Bayram ÇEVİK | D14: Ziraat Fakültesi Dekanlığı, Bitki Koruma Bölüm Başkanlığı Fitapatoloji Anabilim Dalı Başkanlığı | E14: Profesör | F14: COST FA1405 Annual Meeting , "Systems biology approaches to identify mechanisms underlying crop-arthropod-microbe interactions" semposyumu and "Hands-on Systems Biology Training School" | G14: Yurt Dışı | H14: Slovenya | I14: Ljubljana | J14: Bildiri Sunmak,Diğer | K14: 2017-01-31 | L14: 2017-02-04 | M14: Katılım Ücretsiz | N14: Ücret İstemiyor | O14: Yolluk, 5 günlük yurtdışı yevmiyesinin 20164747/SDÜ.03396 nolu Güdümlü Projeden karşılanmak üzere Kabul
A15: 3. Çağrı | B15: 01134 | C15: Levent BAŞAYİĞİT | D15: Ziraat Fakültesi Dekanlığı, Toprak Bilimi Ve Bitki Besleme Bölüm Başkanlığı Toprak Anabilim Dalı Başkanlığı | E15: Profesör | F15: 6th INTERNATIONAL SYMPOSIUM ON AGRICULTURAL SCIENCES "AGRORES 2017" | G15: Yurt Dışı | H15: Bosna-Hersek | I15: Banja Luka | J15: Poster Sunmak | K15: 2017-02-27 | L15: 2017-03-02 | M15: Katılım Ücretli | N15: 80.00 EURO | O15: Yolluk, 4 günlük yurtdışı yevmiyesi ve 80,00 € katılım giderinin 20164747/SDÜ.01134 nolu Güdümlü Projeden karşılanmak üzere Kabul
A16: 3. Çağrı | B16: 05878 | C16: Muhammet Hamdi MÜCEVHER | D16: Uluborlu Selahattin Karasoy Meslek Yüksekokulu Müdürlüğü, Pazarlama Ve Reklamcılık Bölüm Başkanlığı Halkla İlişkiler ve Tanıtım | E16: Öğretim Görevlisi | F16: 6th Annual Conference on Humanities and Social Sciences | G16: Yurt Dışı | H16: İspanya | I16: Barcelona | J16: Bildiri Sunmak | K16: 2017-01-26 | L16: 2017-01-29 | M16: Katılım Ücretli | N16: 1000.00 TL | O16: Yolluk, 3 günlük yurtdışı yevmiyesi ve 1.000,00 TL katılım giderinin Fakülte Bütçesinden karşılanmak üzere Kabul
A17: 3. Çağrı | B17: 04524 | C17: Erdal EKE | D17: İktisadi Ve İdari Bilimler Fakültesi Dekanlığı, Sağlık Yönetimi Bölüm Başkanlığı Temel Sağlık Hizmetleri Anabilim Dalı Başkanlığı | E17: Yardımcı Doçent | F17: 6th Annual Conference on Humanities and Social Sciences | G17: Yurt Dışı | H17: İspanya | I17: Barcelona | J17: Bildiri Sunmak | K17: 2017-01-26 | L17: 2017-01-29 | M17: Katılım Ücretli | N17: 1000.00 TL | O17: Yolluk, 3 günlük yurtdışı yevmiyesi ve 1.000,00 TL katılım giderinin Fakülte Bütçesinden karşılanmak üzere Kabul
A18: 3. Çağrı | B18: 02231 | C18: Bülent DEDE | D18: Fen Edebiyat Fakültesi Dekanlığı, Kimya Bölüm Başkanlığı Anorganik Kimya Anabilim Dalı Başkanlığı | E18: Doçent | F18: 7. Kozmetik Kimyası Üretimi ve Standardizasyonu Kongresi | G18: Yurt İçi | I18: Antalya | J18: Poster Sunmak | K18: 2017-02-24 | L18: 2017-02-26 | M18: Katılım Ücretli | N18: 300.00 TL | O18: Yolluk, 3 günlük yurtiçi yevmiyesi ve 300,00 TL katılım giderinin 20164747/SDÜ.02231 nolu Güdümlü Projeden karşılanmak üzere Kabul
A19: 3. Çağrı | B19: 05597 | C19: Şirvan ŞEN DEMİR | D19: İktisadi Ve İdari Bilimler Fakültesi Dekanlığı, Turizm İşletmeciliği Bölüm Başkanlığı Turizm İşletmeciliği Anabilim Dalı Başkanlığı | E19: Doçent | F19: 21. Doğu Akdeniz Uluslararası Turizm ve Seyahat Fuarı | G19: Yurt İçi | I19: İstanbul | J19: Bilgi-Görgü Arttırma | K19: 2017-01-26 | L19: 2017-01-29 | M19: Katılım Ücretsiz | N19: Ücret İstemiyor | O19: Yolluk, 4 günlük yurtiçi yevmiyesinin 20164747/SDÜ.05597 nolu Güdümlü Projeden karşılanmak üzere Kabul
A20: 3. Çağrı | B20: 05609 | C20: Mahmut DEMİR | D20: Eğirdir Turizm Ve Otelcilik Yüksekokulu Müdürlüğü, Konaklama İşletmeciliği Bölüm Başkanlığı Konaklama İşletmeciliği Anabilim Dalı Başkanlığı | E20: Doçent | F20: 21. Doğu Akdeniz Uluslararası Turizm ve Seyahat Fuarı | G20: Yurt İçi | I20: İstanbul | J20: Bilgi-Görgü Arttırma | K20: 2017-01-26 | L20: 2017-01-29 | M20: Katılım Ücretsiz | N20: Ücret İstemiyor | O20: Yolluk, 4 günlük yurtiçi yevmiyesinin 20164747/SDÜ.05609 nolu Güdümlü Projeden karşılanmak üzere Kabul
A21: 3. Çağrı | B21: 04504 | C21: Özgür DAVRAS | D21: Isparta Meslek Yüksekokulu Müdürlüğü, Otel, Lokanta Ve İkram Hizmetleri Bölüm Başkanlığı Aşçılık | E21: Öğretim Görevlisi | F21: Sosyal Bilimlerde Bilimsel Makale Yazma Eğitimi | G21: Yurt İçi | I21: Antalya | J21: Katılım | K21: 2017-01-16 | L21: 2017-01-20 | M21: Katılım Ücretli | N21: 350.00 TL | O21: Yolluk, 5 günlük yurtiçi yevmiyesi ve 350,00 TL Kurs katılımı ücretinin 20164747/SDÜ.04504 nolu Güdümlü Projeden karşılanmak üzere Kabul
A22: 3. Çağrı | B22: 03736 | C22: Ceylan YOL | D22: Yabancı Diller Yüksekokulu Müdürlüğü | E22: Okutman | F22: The WEI International Academic Conference on Education and Humanities in Barcelona | G22: Yurt Dışı | H22: İspanya | I22: Barcelona | J22: Bildiri Sunmak | K22: 2017-01-23 | L22: 2017-01-25 | M22: Katılım Ücretli | N22: 415.00 DOLAR | O22: Yolluk, 3 günlük yurtdışı yevmiyesi ve 400,00 €'ya kadar katılım giderinin Yüksekokul Bütçesinden karşılanmak üzere Kabul
A23: 3. Çağrı | B23: 04644 | C23: Osman ÇÖLLÜ | D23: Yabancı Diller Yüksekokulu Müdürlüğü | E23: Okutman | F23: 6th Annual Conference on Humanities and Social Sciences | G23: Yurt Dışı | H23: İspanya | I23: Barcelona | J23: Bildiri Sunmak | K23: 2017-01-26 | L23: 2017-01-29 | M23: Katılım Ücretli | N23: 1000.00 TL | O23: Yolluk, 3 günlük yurtdışı yevmiyesi ve 1.000,00 TL katılım giderinin Yüksekokul Bütçesinden karşılanmak üzere Kabul
A24: 3. Çağrı | B24: 05901 | C24: Zeynep Gazali DEMİRTAŞ | D24: İletişim Fakültesi Dekanlığı, Gazetecilik Bölüm Başkanlığı Genel Gazetecilik Anabilim Dalı Başkanlığı | E24: Araştırma Görevlisi | F24: 6th Annual Conference on Humanities and Social Sciences | G24: Yurt Dışı | H24: İspanya | I24: Barcelona | J24: Bildiri Sunmak | K24: 2017-01-26 | L24: 2017-01-29 | M24: Katılım Ücretli | N24: 1000.00 TL | O24: Yolluk, 3 günlük yurtdışı yevmiyesi ve 1.000,00 TL katılım giderinin Fakülte Bütçesinden karşılanmak üzere Kabul
A25: 3. Çağrı | B25: 05046 | C25: Elif AKKAŞ | D25: İktisadi Ve İdari Bilimler Fakültesi Dekanlığı, Sağlık Yönetimi Bölüm Başkanlığı Sağlık Kurumlarında Yönetim Ve Organizasyon Anabilim Dalı Başkanlığı | E25: Yardımcı Doçent | F25: 6th Annual Conference on Humanities and Social Sciences | G25: Yurt Dışı | H25: İspanya | I25: Barcelona | J25: Bildiri Sunmak | K25: 2017-01-26 | L25: 2017-01-29 | M25: Katılım Ücretli | N25: 900.00 TL | O25: Yolluk, 3 günlük yurtdışı yevmiyesi, 900,00 TL katılım giderinin Fakülte Bütçesinden karşılanmak üzere Kabul
A26: 3. Çağrı | B26: 06633 | C26: Ahmet ALKAN | D26: İktisadi Ve İdari Bilimler Fakültesi Dekanlığı, Sağlık Yönetimi Bölüm Başkanlığı Sağlık Kurumlarında Yönetim Ve Organizasyon Anabilim Dalı Başkanlığı | E26: Araştırma Görevlisi | F26: 6th Annual Conference on Humanities and Social Sciences | G26: Yurt Dışı | H26: İspanya | I26: Barcelona | J26: Bildiri Sunmak | K26: 2017-01-26 | L26: 2017-01-29 | M26: Katılım Ücretli | N26: 900.00 TL | O26: Yolluk, 3 günlük yurtdışı yevmiyesi, 900,00 TL katılım giderinin Fakülte Bütçesinden karşılanmak üzere Kabul
A27: 3. Çağrı | B27: 04632 | C27: Ramazan ERDEM | D27: İktisadi Ve İdari Bilimler Fakültesi Dekanlığı, Sağlık Yönetimi Bölüm Başkanlığı Sağlık Kurumlarında Yönetim Ve Organizasyon Anabilim Dalı Başkanlığı | E27: Profesör | F27: 6th Annual Conference on Humanities and Social Sciences | G27: Yurt Dışı | H27: İspanya | I27: Barcelona | J27: Bildiri Sunmak | K27: 2017-01-25 | L27: 2017-01-29 | M27: Katılım Ücretli | N27: 900.00 TL | O27: Yolluk, 3 günlük yurtdışı yevmiyesi, 900,00 TL katılım giderinin Fakülte Bütçesinden karşılanmak üzere Kabul
A28: 3. Çağrı | B28: 03458 | C28: Devrim VURAL YILMAZ | D28: İktisadi Ve İdari Bilimler Fakültesi Dekanlığı, İnsan Kaynakları Yönetimi Bölüm Başkanlığı İnsan Kaynakları Yönetimi Anabilim Dalı Başkanlığı | E28: Yardımcı Doçent | F28: INTCESS 2017- 4th INTERNATIONAL CONFERENCE ON EDUCATION, AND SOCIAL SCIENCES | G28: Yurt İçi | I28: İstanbul | J28: Bildiri Sunmak | K28: 2017-02-06 | L28: 2017-02-07 | M28: Katılım Ücretli | N28: 550.00 DOLAR | O28: Yolluk, 2 günlük yurtiçi yevmiyesi, 500,00 TL ye kadar katılım giderinin Fakülte Bütçesinden karşılanmak üzere Kabul
A29: 3. Çağrı | B29: 06883 | C29: HÜSEYİN KÖKER | D29: Fen Edebiyat Fakültesi Dekanlığı, Arkeoloji Bölüm Başkanlığı Klasik Arkeoloji Anabilim Dalı Başkanlığı | E29: Yardımcı Doçent | F29: İKİNCİ ULUSLARARASI AKDENİZ DÜNYASINDA PARA TARİHİ VE NUMİSMATİK KONGRESİ | G29: Yurt İçi | I29: Antalya | J29: Bildiri Sunmak | K29: 2017-01-05 | L29: 2017-01-08 | M29: Katılım Ücretsiz | N29: Ücret İstemiyor | O29: Yolluk, 3 günlük yurtiçi yevmiyesinin 20164747/SDÜ.06883 Nolu Güdümlü Projeden puanı oluştuğunda karşılanmak üzere Kabul
A30: 3. Çağrı | B30: 02266 | C30: Mehmet Ali KOYUNCU | D30: Ziraat Fakültesi Dekanlığı, Bahçe Bitkileri Bölüm Başkanlığı Bahçe Bitkileri Anabilim Dalı Başkanlığı | E30: Profesör | F30: 10 th International Frutic Symposium Quality and Safety of Fresh Horticultural commodities | G30: Yurt Dışı | H30: Almanya | I30: Berlin | J30: Bildiri Sunmak | K30: 2017-02-07 | L30: 2017-02-09 | M30: Katılım Ücretli | N30: 330.00 € | O30: Yolluk, 3 günlük yurtdışı yevmiyesi ve 330,00 € katılım giderinin Fakülte Bütçesinden karşılanmak üzere Kabul
A31: 3.Çağrı | B31: 03801 | C31: Nihat MOROVA | D31: Teknoloji Fkültesi | E31: Yrd. Doç. Dr. | F31: Yol Projelendirme-Netpro Sertifika Eğitim Programı | G31: Yurtiçi | I31: Ankara | J31: Eğitime Katılmak | K31: 2017-01-27 | L31: 2017-01-29 | M31: Katılım Ücretsiz | O31: Yolluk, 3 günlük yurtiçi yevmiyesinin 20164747/SDÜ.03801 nolu Güdümlü Projeden karşılanmak üzere Kabul
A32: 3. Çağrı | B32: 03459 | C32: Murat ÇELİKER | D32: Güzel Sanatlar Fakültesi Dekanlığı, Resim Bölüm Başkanlığı Resim Anasanat Dalı Başkanlığı | E32: Yardımcı Doçent | F32: 2017 4th International Conference on Linguistics, Literature and Arts (ICLLA 2017) | G32: Yurt Dışı | H32: Vietnam | I32: Thanh Pho Ho Chi Minh | J32: Panelist | K32: 2017-02-22 | L32: 2017-02-24 | M32: Katılım Ücretli | N32: 225,00 $ | O32: Yolluk, etkinlikten 1 gün önce, 1 sonra olmak üzere 5 günlük yurtdışı yevmiyesinin ve 225,00 $ katılım giderinin 20164747/SDÜ.02574 nolu Güdümlü Projeden karşılanmak üzere Kabul

Sheet Finans Hareketleri
A1: SicilNo | B1: TC | C1: Adı Soyadı | D1: BaşvuruId | E1: EtkinlikAdi | F1: Adi | G1: Adi | H1: FinansTutar | I1: Adi | J1: GorevlendirmeBaslamaTarihi | K1: GorevlendirmeBitisTarihi | L1: BasvuruTarihi
A2: 01419 | B2: 25138198030 | C2: Hüseyin FAKİR | D2: 370 | E2: Orman Fakültesi Dekanlar Toplantısı | F2: 3. Çağrı | G2: Fakülte Bütçesi | H2: 550.00 | I2: TL | J2: 2016-12-06 | K2: 2016-12-07 | L2: 2016-11-22 16:39:51.240
A3: 04720 | B3: 10528678490 | C3: Gürkan KALKAN | D3: 373 | E3: YİYECEK İÇECEK DEPARTMANINDA ÇALIŞANLARIN BEŞ FAKTÖR KİŞİLİK ÖZELLİKLERİNİN HİZMET VERMEYE YATKINLIĞI VE İŞ TATMİNİ DÜZEYLERİ ARASINDAKİ İLİŞKİLERİ; KÜLTÜRLER ARASI KARŞILAŞTIRMALI BİR ARAŞTIRMA | F3: 3. Çağrı | G3: BAP | H3: 170.48 | I3: TL | J3: 2016-12-03 | K3: 2016-12-04 | L3: 2016-11-23 10:47:05.237
A4: 04720 | B4: 10528678490 | C4: Gürkan KALKAN | D4: 375 | E4: YİYECEK İÇECEK DEPARTMANINDA ÇALIŞANLARIN BEŞ FAKTÖR KİŞİLİK ÖZELLİKLERİNİN HİZMET VERMEYE YATKINLIĞI VE İŞ TATMİNİ DÜZEYLERİ ARASINDAKİ İLİŞKİLERİ; KÜLTÜRLER ARASI KARŞILAŞTIRMALI BİR ARAŞTIRMA | F4: 3. Çağrı | G4: BAP | H4: 17048.00 | I4: TL | J4: 2016-12-10 | K4: 2016-12-11 | L4: 2016-11-23 10:50:53.017
A5: 04720 | B5: 10528678490 | C5: Gürkan KALKAN | D5: 376 | E5: YİYECEK İÇECEK DEPARTMANINDA ÇALIŞANLARIN BEŞ FAKTÖR KİŞİLİK ÖZELLİKLERİNİN HİZMET VERMEYE YATKINLIĞI VE İŞ TATMİNİ DÜZEYLERİ ARASINDAKİ İLİŞKİLERİ; KÜLTÜRLER ARASI KARŞILAŞTIRMALI BİR ARAŞTIRMA | F5: 3. Çağrı | G5: BAP | H5: 17048.00 | I5: TL | J5: 2016-12-10 | K5: 2016-12-11 | L5: 2016-11-23 10:54:15.293
A6: 04720 | B6: 10528678490 | C6: Gürkan KALKAN | D6: 376 | E6: YİYECEK İÇECEK DEPARTMANINDA ÇALIŞANLARIN BEŞ FAKTÖR KİŞİLİK ÖZELLİKLERİNİN HİZMET VERMEYE YATKINLIĞI VE İŞ TATMİNİ DÜZEYLERİ ARASINDAKİ İLİŞKİLERİ; KÜLTÜRLER ARASI KARŞILAŞTIRMALI BİR ARAŞTIRMA | F6: 3. Çağrı | G6: BAP | H6: 170.48 | I6: TL | J6: 2016-12-17 | K6: 2016-12-18 | L6: 2016-11-23 10:54:15.293
A7: 04720 | B7: 10528678490 | C7: Gürkan KALKAN | D7: 377 | E7: YİYECEK İÇECEK DEPARTMANINDA ÇALIŞANLARIN BEŞ FAKTÖR KİŞİLİK ÖZELLİKLERİNİN HİZMET VERMEYE YATKINLIĞI VE İŞ TATMİNİ DÜZEYLERİ ARASINDAKİ İLİŞKİLERİ; KÜLTÜRLER ARASI KARŞILAŞTIRMALI BİR ARAŞTIRMA | F7: 3. Çağrı | G7: BAP | H7: 17048.00 | I7: TL | J7: 2016-12-10 | K7: 2016-12-11 | L7: 2016-11-23 10:57:32.570
A8: 04720 | B8: 10528678490 | C8: Gürkan KALKAN | D8: 377 | E8: YİYECEK İÇECEK DEPARTMANINDA ÇALIŞANLARIN BEŞ FAKTÖR KİŞİLİK ÖZELLİKLERİNİN HİZMET VERMEYE YATKINLIĞI VE İŞ TATMİNİ DÜZEYLERİ ARASINDAKİ İLİŞKİLERİ; KÜLTÜRLER ARASI KARŞILAŞTIRMALI BİR ARAŞTIRMA | F8: 3. Çağrı | G8: BAP | H8: 170.48 | I8: TL | J8: 2016-12-17 | K8: 2016-12-18 | L8: 2016-11-23 10:57:32.570
A9: 04720 | B9: 10528678490 | C9: Gürkan KALKAN | D9: 377 | E9: YİYECEK İÇECEK DEPARTMANINDA ÇALIŞANLARIN BEŞ FAKTÖR KİŞİLİK ÖZELLİKLERİNİN HİZMET VERMEYE YATKINLIĞI VE İŞ TATMİNİ DÜZEYLERİ ARASINDAKİ İLİŞKİLERİ; KÜLTÜRLER ARASI KARŞILAŞTIRMALI BİR ARAŞTIRMA | F9: 3. Çağrı | G9: BAP | H9: 170.48 | I9: TL | J9: 2016-12-24 | K9: 2016-12-25 | L9: 2016-11-23 10:57:32.570
A10: 04720 | B10: 10528678490 | C10: Gürkan KALKAN | D10: 378 | E10: YİYECEK İÇECEK DEPARTMANINDA ÇALIŞANLARIN BEŞ FAKTÖR KİŞİLİK ÖZELLİKLERİNİN HİZMET VERMEYE YATKINLIĞI VE İŞ TATMİNİ DÜZEYLERİ ARASINDAKİ İLİŞKİLERİ; KÜLTÜRLER ARASI KARŞILAŞTIRMALI BİR ARAŞTIRMA | F10: 3. Çağrı | G10: BAP | H10: 170.48 | I10: TL | J10: 2016-12-31 | K10: 2017-01-01 | L10: 2016-11-23 11:01:49.293
A11: 04720 | B11: 10528678490 | C11: Gürkan KALKAN | D11: 379 | E11: YİYECEK İÇECEK DEPARTMANINDA ÇALIŞANLARIN BEŞ FAKTÖR KİŞİLİK ÖZELLİKLERİNİN HİZMET VERMEYE YATKINLIĞI VE İŞ TATMİNİ DÜZEYLERİ ARASINDAKİ İLİŞKİLERİ; KÜLTÜRLER ARASI KARŞILAŞTIRMALI BİR ARAŞTIRMA | F11: 3. Çağrı | G11: BAP | H11: 170.48 | I11: TL | J11: 2016-12-31 | K11: 2017-01-01 | L11: 2016-11-23 11:06:40.047
A12: 04720 | B12: 10528678490 | C12: Gürkan KALKAN | D12: 379 | E12: YİYECEK İÇECEK DEPARTMANINDA ÇALIŞANLARIN BEŞ FAKTÖR KİŞİLİK ÖZELLİKLERİNİN HİZMET VERMEYE YATKINLIĞI VE İŞ TATMİNİ DÜZEYLERİ ARASINDAKİ İLİŞKİLERİ; KÜLTÜRLER ARASI KARŞILAŞTIRMALI BİR ARAŞTIRMA | F12: 3. Çağrı | G12: BAP | H12: 170.48 | I12: TL | J12: 2017-01-07 | K12: 2017-01-08 | L12: 2016-11-23 11:06:40.047
A13: 04720 | B13: 10528678490 | C13: Gürkan KALKAN | D13: 380 | E13: YİYECEK İÇECEK DEPARTMANINDA ÇALIŞANLARIN BEŞ FAKTÖR KİŞİLİK ÖZELLİKLERİNİN HİZMET VERMEYE YATKINLIĞI VE İŞ TATMİNİ DÜZEYLERİ ARASINDAKİ İLİŞKİLERİ; KÜLTÜRLER ARASI KARŞILAŞTIRMALI BİR ARAŞTIRMA | F13: 3. Çağrı | G13: BAP | H13: 170.48 | I13: TL | J13: 2016-12-31 | K13: 2017-01-01 | L13: 2016-11-23 11:10:52.080
A14: 04720 | B14: 10528678490 | C14: Gürkan KALKAN | D14: 380 | E14: YİYECEK İÇECEK DEPARTMANINDA ÇALIŞANLARIN BEŞ FAKTÖR KİŞİLİK ÖZELLİKLERİNİN HİZMET VERMEYE YATKINLIĞI VE İŞ TATMİNİ DÜZEYLERİ ARASINDAKİ İLİŞKİLERİ; KÜLTÜRLER ARASI KARŞILAŞTIRMALI BİR ARAŞTIRMA | F14: 3. Çağrı | G14: BAP | H14: 170.48 | I14: TL | J14: 2017-01-07 | K14: 2017-01-08 | L14: 2016-11-23 11:10:52.080
A15: 04720 | B15: 10528678490 | C15: Gürkan KALKAN | D15: 380 | E15: YİYECEK İÇECEK DEPARTMANINDA ÇALIŞANLARIN BEŞ FAKTÖR KİŞİLİK ÖZELLİKLERİNİN HİZMET VERMEYE YATKINLIĞI VE İŞ TATMİNİ DÜZEYLERİ ARASINDAKİ İLİŞKİLERİ; KÜLTÜRLER ARASI KARŞILAŞTIRMALI BİR ARAŞTIRMA | F15: 3. Çağrı | G15: BAP | H15: 170.48 | I15: TL | J15: 2017-01-14 | K15: 2017-01-15 | L15: 2016-11-23 11:10:52.080
A16: 00730 | B16: 21320121350 | C16: Yıldız BOLAT | D16: 381 | E16: Balıkçılık Araştırma Grubu Toplantısı | F16: 3. Çağrı | G16: Fakülte Bütçesi | H16: 225.00 | I16: TL | J16: 2016-12-01 | K16: 2016-12-03 | L16: 2016-11-23 11:22:04.193
A17: 06683 | B17: 29173855910 | C17: Hasan GÖKSU | D17: 391 | E17: The Relationship Between Personality Traits of Employees and Service Orientation and Job Satisfaction in Food and Beverage Department: A Cross Cultural Research | F17: 3. Çağrı | G17: Fakülte Bütçesi | H17: 2430.00 | I17: TL | J17: 2017-01-20 | K17: 2017-01-28 | L17: 2016-11-23 14:37:58.610
A18: 06683 | B18: 29173855910 | C18: Hasan GÖKSU | D18: 391 | E18: The Relationship Between Personality Traits of Employees and Service Orientation and Job Satisfaction in Food and Beverage Department: A Cross Cultural Research | F18: 3. Çağrı | G18: Fakülte Bütçesi | H18: 675.00 | I18: AUD (Avustrayla Doları) | J18: 2017-01-20 | K18: 2017-01-28 | L18: 2016-11-23 14:37:58.610
A19: 02415 | B19: 23360053530 | C19: Muharrem Zafer ÇAĞLAR | D19: 365 | E19: Mesleki görgü ve bilgimi geliştirmek ve medya çalışmaları hakkında bilgi edinmek amacıyla, İspanya'nın Başkenti Madrid ve önemli şehirlerinden Barselona'yı performans puanlarımdan karşılanmak üzere ziyaret etmek. | F19: 3. Çağrı | G19: BAP | H19: 710.00 | I19: EURO | J19: 2017-01-29 | K19: 2017-02-07 | L19: 2016-11-22 13:00:54.340
A20: 00744 | B20: 23285056012 | C20: Nedret ÇAĞLAR | D20: 393 | E20: Mesleki görgü ve bilgi birikimimi geliştirmek ve medya faaliyetleri hakkında bilgi edinmek amacıyla, İspanya'nın Madrid ve Barcelona şehirlerini performansımdan karşılanmak üzere ziyaret etmek. | F20: 3. Çağrı | G20: BAP | H20: 710.00 | I20: EURO | J20: 2017-01-29 | K20: 2017-02-07 | L20: 2016-11-23 16:57:23.103
A21: 01070 | B21: 33779102620 | C21: İbrahim ÖZDEMİR | D21: 402 | E21: TÜBİTAK 1001 Projesi Arazi Çalışması | F21: 3. Çağrı | G21: Kurum Dışı Proje | H21: 470.00 | I21: TL | J21: 2017-01-19 | K21: 2017-01-22 | L21: 2016-11-28 14:56:12.800
A22: 01070 | B22: 33779102620 | C22: İbrahim ÖZDEMİR | D22: 403 | E22: TÜBİTAK 1001 Projesi arazi çalışması | F22: 3. Çağrı | G22: Kurum Dışı Proje | H22: 470.00 | I22: TL | J22: 2017-01-26 | K22: 2017-01-29 | L22: 2016-11-28 15:03:42.947
A23: 03673 | B23: 21598321506 | C23: Ahmet MERT | D23: 404 | E23: Tübitak 1001 115O476 nolu proje arazi çalışması | F23: 3. Çağrı | G23: Kurum Dışı Proje | H23: 220.00 | I23: TL | J23: 2017-01-19 | K23: 2017-01-22 | L23: 2016-11-28 15:27:01.010
A24: 03673 | B24: 21598321506 | C24: Ahmet MERT | D24: 405 | E24: Arazi çalışması | F24: 3. Çağrı | G24: Kurum Dışı Proje | H24: 220.00 | I24: TL | J24: 2017-01-26 | K24: 2017-01-29 | L24: 2016-11-28 15:30:32.623
A25: 04525 | B25: 20731342620 | C25: Halil SÜEL | D25: 407 | E25: Biyolojik Çeşitlilik Ölçüm Süreçleri: Envanter, Veri Transfer ve Hesaplama Teknikleri Projesi | F25: 3. Çağrı | G25: İstemiyorum | H25: 0.00 | I25: TL | J25: 2017-01-09 | K25: 2017-01-15 | L25: 2016-11-28 20:07:08.287
A26: 01068 | B26: 14837107078 | C26: Kürşad ÖZKAN | D26: 411 | E26: Biyolojik çeşitlilik ölçüm süreçleri - envanter, veri transferi ve hesaplama teknikleri | F26: 3. Çağrı | G26: İstemiyorum | H26: 0.00 | I26: TL | J26: 2017-01-10 | K26: 2017-01-13 | L26: 2016-11-29 14:39:49.167
A27: 05242 | B27: 27364827302 | C27: Ali ŞENOL | D27: 412 | E27: Biyolojik çeşitlilik ölçüm süreçleri - envanter, veri transferi ve hesaplama teknikleri | F27: 3. Çağrı | G27: İstemiyorum | H27: 0.00 | I27: TL | J27: 2017-01-09 | K27: 2017-01-15 | L27: 2016-11-29 15:08:19.123
A28: 05688 | B28: 39499861076 | C28: Zakir DENİZ | D28: 414 | E28: TÜBİTAK 2214/A Yurt Dısı Doktora Sırası Arastırma Burs Programı kapsamında İsviçrede arastırma yapmak | F28: 3. Çağrı | G28: Kurum Dışı Proje | H28: 18000.00 | I28: EURO | J28: 2017-03-01 | K28: 2017-05-29 | L28: 2016-11-30 09:53:04.640
A29: 04752 | B29: 41662753880 | C29: Mehmet Güvenç NEGİZ | D29: 415 | E29: Biyolojik Çeşitlilik Ölçüm Süreçleri - Envanter, Veri Transfer ve Hesaplama Teknikleri Projesi | F29: 3. Çağrı | G29: İstemiyorum | H29: 0.00 | I29: TL | J29: 2017-01-13 | K29: 2017-01-15 | L29: 2016-11-30 10:01:17.733
A30: 03672 | B30: 59764361674 | C30: Serkan GÜLSOY | D30: 416 | E30: Biyolojik çeşitlilik ölçüm süreçleri - envanter, veri transferi ve hesaplama teknikleri | F30: 3. Çağrı | G30: İstemiyorum | H30: 0.00 | I30: TL | J30: 2017-01-10 | K30: 2017-01-13 | L30: 2016-11-30 15:37:23.867
A31: 01071 | B31: 12409844024 | C31: Ramazan ÖZÇELİK | D31: 417 | E31: Bucak Yöresi Doğal Sedir (Cedrus libani A. Rich.) ve Toros Göknarı (Abies cilicica Car.) Karışık Meşcereleri İçin Ticari Hacim Denklemlerinin Geliştirilmesi | F31: 3. Çağrı | G31: BAP | H31: 150.00 | I31: TL | J31: 2017-01-13 | K31: 2017-01-15 | L31: 2016-11-30 15:51:59.370
A32: 03396 | B32: 56080479212 | C32: Bayram ÇEVİK | D32: 418 | E32: COST FA1405 Annual Meeting , "Systems biology approaches to identify mechanisms underlying crop-arthropod-microbe interactions" semposyumu and "Hands-on Systems Biology Training School" | F32: 3. Çağrı | G32: İstemiyorum | H32: 0.00 | I32: TL | J32: 2017-01-31 | K32: 2017-02-02 | L32: 2016-11-30 16:10:41.523
A33: 05609 | B33: 38185799358 | C33: Mahmut DEMİR | D33: 419 | E33: Utrecht International Tourism & Recreation Fair | F33: 3. Çağrı | G33: BAP | H33: 3000.00 | I33: TL | J33: 2017-01-10 | K33: 2017-01-15 | L33: 2016-12-01 20:43:44.230
A34: 02369 | B34: 49762191762 | C34: Nevzat Özgü YİĞİT | D34: 408 | E34: 114Y598 nolu TÜBİTAK proje Toplantısı | F34: 3. Çağrı | G34: Kurum Dışı Proje | H34: 2500.00 | I34: TL | J34: 2017-01-22 | K34: 2017-01-30 | L34: 2016-11-29 10:08:40.717
A35: 03683 | B35: 53497283630 | C35: Bilgehan İlker HARMAN | D35: 406 | E35: 114Y598 nolu TÜBİTAK Proje Toplantısı | F35: 3. Çağrı | G35: Kurum Dışı Proje | H35: 2500.00 | I35: TL | J35: 2017-01-22 | K35: 2017-01-30 | L35: 2016-11-28 16:34:19.743
A36: 03805 | B36: 21292148942 | C36: Tuğba SARDOHAN KÖSEOĞLU | D36: 410 | E36: 114Y598 nolu TÜBİTAK proje Toplantısı | F36: 3. Çağrı | G36: Kurum Dışı Proje | H36: 2500.00 | I36: TL | J36: 2017-01-22 | K36: 2017-01-30 | L36: 2016-11-29 13:10:13.007
A37: 03481 | B37: 54859000124 | C37: Şehnaz Şule KAPLAN BEKAROĞLU | D37: 409 | E37: 114Y598 nolu TÜBİTAK Proje Toplantısı | F37: 3. Çağrı | G37: Kurum Dışı Proje | H37: 1000.00 | I37: TL | J37: 2017-01-23 | K37: 2017-01-29 | L37: 2016-11-29 10:26:52.597
A38: 01134 | B38: 28850042582 | C38: Levent BAŞAYİĞİT | D38: 422 | E38: 6th INTERNATIONAL SYMPOSIUM ON AGRICULTURAL SCIENCES "AGRORES 2017" | F38: 3. Çağrı | G38: BAP | H38: 0.00 | I38: TL | J38: 2017-02-27 | K38: 2017-03-03 | L38: 2016-12-02 14:25:46.400
A39: 03374 | B39: 15326321272 | C39: Murat Yusuf UÇAN | D39: 424 | E39: TIM-InoSuıt-Inovasyon Odaklı Mentörlük Projesi(üniversite-sanayi işbirliği ) 3 aylık deneyim paylaşım toplantısının 1. toplantısı | F39: 3. Çağrı | G39: Fakülte Bütçesi | H39: 500.00 | I39: TL | J39: 2017-02-02 | K39: 2017-02-04 | L39: 2016-12-03 16:39:51.540
A40: 04524 | B40: 26950027898 | C40: Erdal EKE | D40: 426 | E40: 6th Annual Conference on Humanities and Social Sciences | F40: 3. Çağrı | G40: Fakülte Bütçesi | H40: 4500.00 | I40: TL | J40: 2017-01-25 | K40: 2017-01-30 | L40: 2016-12-04 18:11:33.547
A41: 02231 | B41: 24479016744 | C41: Bülent DEDE | D41: 427 | E41: 7. Kozmetik Kimyası Üretimi ve Standardizasyonu Kongresi | F41: 3. Çağrı | G41: BAP | H41: 160.00 | I41: TL | J41: 2017-02-24 | K41: 2017-02-26 | L41: 2016-12-04 19:59:34.920
A42: 05597 | B42: 28721114882 | C42: Şirvan ŞEN DEMİR | D42: 428 | E42: 21. Doğu Akdeniz Uluslararası Turizm ve Seyahat Fuarı | F42: 3. Çağrı | G42: Fakülte Bütçesi | H42: 1000.00 | I42: TL | J42: 2017-01-25 | K42: 2017-01-29 | L42: 2016-12-05 00:43:04.300
A43: 05609 | B43: 38185799358 | C43: Mahmut DEMİR | D43: 429 | E43: 21. Doğu Akdeniz Uluslararası Turizm ve Seyahat Fuarı | F43: 3. Çağrı | G43: Fakülte Bütçesi | H43: 1000.00 | I43: TL | J43: 2017-01-25 | K43: 2017-01-29 | L43: 2016-12-05 00:49:34.657
A44: 03396 | B44: 56080479212 | C44: Bayram ÇEVİK | D44: 418 | E44: COST FA1405 Annual Meeting , "Systems biology approaches to identify mechanisms underlying crop-arthropod-microbe interactions" semposyumu and "Hands-on Systems Biology Training School" | F44: 3. Çağrı | G44: BAP | H44: 300.00 | I44: EURO | J44: 2017-02-03 | K44: 2017-02-05 | L44: 2016-11-30 16:10:41.523
A45: 03635 | B45: 22277087140 | C45: Mustafa NAZIROĞLU | D45: 346 | E45: International Conference on Reproductive Biology and Comparative Endocrinology and The 35th Annual Meeting of The Society for Reproductive Biology and Comparative Endocrinology and and The 35th Annual Meeting of The Society for Reproductive Biology and Comparative Endocrinology | F45: 3. Çağrı | G45: BAP | H45: 5500.00 | I45: TL | J45: 2017-02-06 | K45: 2017-02-12 | L45: 2016-11-18 11:24:50.460
A46: 04504 | B46: 52357091866 | C46: Özgür DAVRAS | D46: 430 | E46: Sosyal Bilimlerde Bilimsel Makale Yazma Eğitimi | F46: 3. Çağrı | G46: BAP | H46: 350.00 | I46: TL | J46: 2017-01-16 | K46: 2017-01-20 | L46: 2016-12-05 10:40:05.617
A47: 05310 | B47: 57424211444 | C47: Bilal ÇİĞ | D47: 339 | E47: International Conference on Reproductive Biology and Comparative Endocrinology (ICRBCE) and 35th Annual Meeting of The Society for Reproductive Biology and Comparative Endocrinology | F47: 3. Çağrı | G47: BAP | H47: 3670.00 | I47: TL | J47: 2017-02-06 | K47: 2017-02-12 | L47: 2016-11-14 23:09:16.693
A48: 04351 | B48: 36586840662 | C48: İbrahim DEMİRTAŞ | D48: 395 | E48: 6th Annual International Conference on Humanities and Social Sciences | F48: 3. Çağrı | G48: Fakülte Bütçesi | H48: 4500.00 | I48: TL | J48: 2017-01-25 | K48: 2017-01-30 | L48: 2016-11-24 11:06:20.760
A49: 05901 | B49: 32989732542 | C49: Zeynep Gazali DEMİRTAŞ | D49: 433 | E49: 6th Annual Conference on Humanities and Social Sciences | F49: 3. Çağrı | G49: Fakülte Bütçesi | H49: 4500.00 | I49: TL | J49: 2017-01-25 | K49: 2017-01-30 | L49: 2016-12-05 13:13:19.800
A50: 02220 | B50: 48022536022 | C50: Ahmet TOLUNAY | D50: 434 | E50: Mesleki Örgütlenmesini Yapmış Meslek Mensuplarının Örgütsel Kazançları | F50: 3. Çağrı | G50: BAP | H50: 300.00 | I50: TL | J50: 2017-01-06 | K50: 2017-01-08 | L50: 2016-12-05 13:36:09.250
A51: 02220 | B51: 48022536022 | C51: Ahmet TOLUNAY | D51: 435 | E51: Mesleki Örgütlenmesini Tamamlamış Meslek Mensuplarının Örgütsel Kazançları | F51: 3. Çağrı | G51: BAP | H51: 250.00 | I51: TL | J51: 2017-01-13 | K51: 2017-01-15 | L51: 2016-12-05 13:43:38.603
A52: 02220 | B52: 48022536022 | C52: Ahmet TOLUNAY | D52: 436 | E52: Mesleki Örgütlenmesini Tamamlamış Meslek Mensuplarının Örgütsel Kazançları | F52: 3. Çağrı | G52: BAP | H52: 300.00 | I52: TL | J52: 2017-01-20 | K52: 2017-01-22 | L52: 2016-12-05 13:53:57.867
A53: 02220 | B53: 48022536022 | C53: Ahmet TOLUNAY | D53: 437 | E53: Mesleki Örgütlenmesini Tamamlamış Meslek Mensuplarının Örgütsel Kazançları | F53: 3. Çağrı | G53: BAP | H53: 300.00 | I53: TL | J53: 2017-01-27 | K53: 2017-01-29 | L53: 2016-12-05 13:57:43.337
A54: 02220 | B54: 48022536022 | C54: Ahmet TOLUNAY | D54: 438 | E54: Mesleki Örgütlenmesini Tamamlamış Meslek Mensuplarının Örgütsel Kazançları | F54: 3. Çağrı | G54: BAP | H54: 300.00 | I54: TL | J54: 2017-02-03 | K54: 2017-02-05 | L54: 2016-12-05 14:03:12.243
A55: 04644 | B55: 11171466816 | C55: Osman ÇÖLLÜ | D55: 432 | E55: 6th Annual Conference on Humanities and Social Sciences | F55: 3. Çağrı | G55: Fakülte Bütçesi | H55: 4500.00 | I55: TL | J55: 2017-01-25 | K55: 2017-01-30 | L55: 2016-12-05 13:10:10.773
A56: 03736 | B56: 28207577996 | C56: Ceylan YOL | D56: 431 | E56: The WEI International Academic Conference on Education and Humanities in Barcelona | F56: 3. Çağrı | G56: Fakülte Bütçesi | H56: 475.00 | I56: EURO | J56: 2017-01-22 | K56: 2017-01-26 | L56: 2016-12-05 13:09:17.043
A57: 04533 | B57: 47701149430 | C57: Ahmet SONGUR | D57: 392 | E57: 6th Annual International Conference on Humanities and Social Sciences | F57: 3. Çağrı | G57: Fakülte Bütçesi | H57: 4500.00 | I57: TL | J57: 2017-01-25 | K57: 2017-01-30 | L57: 2016-11-23 16:22:05.797
A58: 05878 | B58: 21380381848 | C58: Muhammet Hamdi MÜCEVHER | D58: 425 | E58: 6th Annual Conference on Humanities and Social Sciences | F58: 3. Çağrı | G58: Fakülte Bütçesi | H58: 4500.00 | I58: TL | J58: 2017-01-26 | K58: 2017-01-29 | L58: 2016-12-03 20:49:40.730
A59: 02415 | B59: 23360053530 | C59: Muharrem Zafer ÇAĞLAR | D59: 365 | E59: Mesleki görgü ve bilgimi geliştirmek ve medya çalışmaları hakkında bilgi edinmek amacıyla, İspanya'nın Başkenti Madrid ve önemli şehirlerinden Barselona'yı performans puanlarımdan karşılanmak üzere ziyaret etmek. | F59: 3. Çağrı | G59: BAP | H59: 710.00 | I59: EURO | J59: 2017-01-29 | K59: 2017-02-07 | L59: 2016-11-22 13:00:54.340
A60: 00744 | B60: 23285056012 | C60: Nedret ÇAĞLAR | D60: 393 | E60: Mesleki görgü ve bilgi birikimimi geliştirmek ve medya faaliyetleri hakkında bilgi edinmek amacıyla, İspanya'nın Madrid ve Barcelona şehirlerini performansımdan karşılanmak üzere ziyaret etmek. | F60: 3. Çağrı | G60: BAP | H60: 710.00 | I60: EURO | J60: 2017-01-29 | K60: 2017-02-07 | L60: 2016-11-23 16:57:23.103
A61: 02369 | B61: 49762191762 | C61: Nevzat Özgü YİĞİT | D61: 408 | E61: 114Y598 nolu TÜBİTAK proje Toplantısı | F61: 3. Çağrı | G61: Kurum Dışı Proje | H61: 2500.00 | I61: TL | J61: 2017-01-22 | K61: 2017-01-30 | L61: 2016-11-29 10:08:40.717
A62: 03683 | B62: 53497283630 | C62: Bilgehan İlker HARMAN | D62: 406 | E62: 114Y598 nolu TÜBİTAK Proje Toplantısı | F62: 3. Çağrı | G62: Kurum Dışı Proje | H62: 2500.00 | I62: TL | J62: 2017-01-22 | K62: 2017-01-30 | L62: 2016-11-28 16:34:19.743
A63: 01070 | B63: 33779102620 | C63: İbrahim ÖZDEMİR | D63: 402 | E63: TÜBİTAK 1001 Projesi Arazi Çalışması | F63: 3. Çağrı | G63: Kurum Dışı Proje | H63: 470.00 | I63: TL | J63: 2017-01-19 | K63: 2017-01-22 | L63: 2016-11-28 14:56:12.800
A64: 03805 | B64: 21292148942 | C64: Tuğba SARDOHAN KÖSEOĞLU | D64: 410 | E64: 114Y598 nolu TÜBİTAK proje Toplantısı | F64: 3. Çağrı | G64: Kurum Dışı Proje | H64: 2500.00 | I64: TL | J64: 2017-01-22 | K64: 2017-01-30 | L64: 2016-11-29 13:10:13.007
A65: 01070 | B65: 33779102620 | C65: İbrahim ÖZDEMİR | D65: 403 | E65: TÜBİTAK 1001 Projesi arazi çalışması | F65: 3. Çağrı | G65: Kurum Dışı Proje | H65: 470.00 | I65: TL | J65: 2017-01-26 | K65: 2017-01-29 | L65: 2016-11-28 15:03:42.947
A66: 04720 | B66: 10528678490 | C66: Gürkan KALKAN | D66: 373 | E66: YİYECEK İÇECEK DEPARTMANINDA ÇALIŞANLARIN BEŞ FAKTÖR KİŞİLİK ÖZELLİKLERİNİN HİZMET VERMEYE YATKINLIĞI VE İŞ TATMİNİ DÜZEYLERİ ARASINDAKİ İLİŞKİLERİ; KÜLTÜRLER ARASI KARŞILAŞTIRMALI BİR ARAŞTIRMA | F66: 3. Çağrı | G66: BAP | H66: 170.48 | I66: TL | J66: 2016-12-03 | K66: 2016-12-04 | L66: 2016-11-23 10:47:05.237
A67: 03481 | B67: 54859000124 | C67: Şehnaz Şule KAPLAN BEKAROĞLU | D67: 409 | E67: 114Y598 nolu TÜBİTAK Proje Toplantısı | F67: 3. Çağrı | G67: Kurum Dışı Proje | H67: 1000.00 | I67: TL | J67: 2017-01-23 | K67: 2017-01-29 | L67: 2016-11-29 10:26:52.597
A68: 03673 | B68: 21598321506 | C68: Ahmet MERT | D68: 404 | E68: Tübitak 1001 115O476 nolu proje arazi çalışması | F68: 3. Çağrı | G68: Kurum Dışı Proje | H68: 220.00 | I68: TL | J68: 2017-01-19 | K68: 2017-01-22 | L68: 2016-11-28 15:27:01.010
A69: 01134 | B69: 28850042582 | C69: Levent BAŞAYİĞİT | D69: 422 | E69: 6th INTERNATIONAL SYMPOSIUM ON AGRICULTURAL SCIENCES "AGRORES 2017" | F69: 3. Çağrı | G69: BAP | H69: 0.00 | I69: TL | J69: 2017-02-27 | K69: 2017-03-03 | L69: 2016-12-02 14:25:46.400
A70: 03673 | B70: 21598321506 | C70: Ahmet MERT | D70: 405 | E70: Arazi çalışması | F70: 3. Çağrı | G70: Kurum Dışı Proje | H70: 220.00 | I70: TL | J70: 2017-01-26 | K70: 2017-01-29 | L70: 2016-11-28 15:30:32.623
A71: 04720 | B71: 10528678490 | C71: Gürkan KALKAN | D71: 375 | E71: YİYECEK İÇECEK DEPARTMANINDA ÇALIŞANLARIN BEŞ FAKTÖR KİŞİLİK ÖZELLİKLERİNİN HİZMET VERMEYE YATKINLIĞI VE İŞ TATMİNİ DÜZEYLERİ ARASINDAKİ İLİŞKİLERİ; KÜLTÜRLER ARASI KARŞILAŞTIRMALI BİR ARAŞTIRMA | F71: 3. Çağrı | G71: BAP | H71: 17048.00 | I71: TL | J71: 2016-12-10 | K71: 2016-12-11 | L71: 2016-11-23 10:50:53.017
A72: 02231 | B72: 24479016744 | C72: Bülent DEDE | D72: 427 | E72: 7. Kozmetik Kimyası Üretimi ve Standardizasyonu Kongresi | F72: 3. Çağrı | G72: BAP | H72: 160.00 | I72: TL | J72: 2017-02-24 | K72: 2017-02-26 | L72: 2016-12-04 19:59:34.920
A73: 04525 | B73: 20731342620 | C73: Halil SÜEL | D73: 407 | E73: Biyolojik Çeşitlilik Ölçüm Süreçleri: Envanter, Veri Transfer ve Hesaplama Teknikleri Projesi | F73: 3. Çağrı | G73: İstemiyorum | H73: 0.00 | I73: TL | J73: 2017-01-09 | K73: 2017-01-15 | L73: 2016-11-28 20:07:08.287
A74: 04720 | B74: 10528678490 | C74: Gürkan KALKAN | D74: 376 | E74: YİYECEK İÇECEK DEPARTMANINDA ÇALIŞANLARIN BEŞ FAKTÖR KİŞİLİK ÖZELLİKLERİNİN HİZMET VERMEYE YATKINLIĞI VE İŞ TATMİNİ DÜZEYLERİ ARASINDAKİ İLİŞKİLERİ; KÜLTÜRLER ARASI KARŞILAŞTIRMALI BİR ARAŞTIRMA | F74: 3. Çağrı | G74: BAP | H74: 17048.00 | I74: TL | J74: 2016-12-10 | K74: 2016-12-11 | L74: 2016-11-23 10:54:15.293
A75: 04720 | B75: 10528678490 | C75: Gürkan KALKAN | D75: 376 | E75: YİYECEK İÇECEK DEPARTMANINDA ÇALIŞANLARIN BEŞ FAKTÖR KİŞİLİK ÖZELLİKLERİNİN HİZMET VERMEYE YATKINLIĞI VE İŞ TATMİNİ DÜZEYLERİ ARASINDAKİ İLİŞKİLERİ; KÜLTÜRLER ARASI KARŞILAŞTIRMALI BİR ARAŞTIRMA | F75: 3. Çağrı | G75: BAP | H75: 170.48 | I75: TL | J75: 2016-12-17 | K75: 2016-12-18 | L75: 2016-11-23 10:54:15.293
A76: 01068 | B76: 14837107078 | C76: Kürşad ÖZKAN | D76: 411 | E76: Biyolojik çeşitlilik ölçüm süreçleri - envanter, veri transferi ve hesaplama teknikleri | F76: 3. Çağrı | G76: İstemiyorum | H76: 0.00 | I76: TL | J76: 2017-01-10 | K76: 2017-01-13 | L76: 2016-11-29 14:39:49.167
A77: 04720 | B77: 10528678490 | C77: Gürkan KALKAN | D77: 377 | E77: YİYECEK İÇECEK DEPARTMANINDA ÇALIŞANLARIN BEŞ FAKTÖR KİŞİLİK ÖZELLİKLERİNİN HİZMET VERMEYE YATKINLIĞI VE İŞ TATMİNİ DÜZEYLERİ ARASINDAKİ İLİŞKİLERİ; KÜLTÜRLER ARASI KARŞILAŞTIRMALI BİR ARAŞTIRMA | F77: 3. Çağrı | G77: BAP | H77: 17048.00 | I77: TL | J77: 2016-12-10 | K77: 2016-12-11 | L77: 2016-11-23 10:57:32.570
A78: 04720 | B78: 10528678490 | C78: Gürkan KALKAN | D78: 377 | E78: YİYECEK İÇECEK DEPARTMANINDA ÇALIŞANLARIN BEŞ FAKTÖR KİŞİLİK ÖZELLİKLERİNİN HİZMET VERMEYE YATKINLIĞI VE İŞ TATMİNİ DÜZEYLERİ ARASINDAKİ İLİŞKİLERİ; KÜLTÜRLER ARASI KARŞILAŞTIRMALI BİR ARAŞTIRMA | F78: 3. Çağrı | G78: BAP | H78: 170.48 | I78: TL | J78: 2016-12-17 | K78: 2016-12-18 | L78: 2016-11-23 10:57:32.570
A79: 04720 | B79: 10528678490 | C79: Gürkan KALKAN | D79: 377 | E79: YİYECEK İÇECEK DEPARTMANINDA ÇALIŞANLARIN BEŞ FAKTÖR KİŞİLİK ÖZELLİKLERİNİN HİZMET VERMEYE YATKINLIĞI VE İŞ TATMİNİ DÜZEYLERİ ARASINDAKİ İLİŞKİLERİ; KÜLTÜRLER ARASI KARŞILAŞTIRMALI BİR ARAŞTIRMA | F79: 3. Çağrı | G79: BAP | H79: 170.48 | I79: TL | J79: 2016-12-24 | K79: 2016-12-25 | L79: 2016-11-23 10:57:32.570
A80: 03396 | B80: 56080479212 | C80: Bayram ÇEVİK | D80: 418 | E80: COST FA1405 Annual Meeting , "Systems biology approaches to identify mechanisms underlying crop-arthropod-microbe interactions" semposyumu and "Hands-on Systems Biology Training School" | F80: 3. Çağrı | G80: İstemiyorum | H80: 0.00 | I80: TL | J80: 2017-01-31 | K80: 2017-02-02 | L80: 2016-11-30 16:10:41.523
A81: 03396 | B81: 56080479212 | C81: Bayram ÇEVİK | D81: 418 | E81: COST FA1405 Annual Meeting , "Systems biology approaches to identify mechanisms underlying crop-arthropod-microbe interactions" semposyumu and "Hands-on Systems Biology Training School" | F81: 3. Çağrı | G81: BAP | H81: 300.00 | I81: EURO | J81: 2017-02-03 | K81: 2017-02-05 | L81: 2016-11-30 16:10:41.523
A82: 05242 | B82: 27364827302 | C82: Ali ŞENOL | D82: 412 | E82: Biyolojik çeşitlilik ölçüm süreçleri - envanter, veri transferi ve hesaplama teknikleri | F82: 3. Çağrı | G82: İstemiyorum | H82: 0.00 | I82: TL | J82: 2017-01-09 | K82: 2017-01-15 | L82: 2016-11-29 15:08:19.123
A83: 04720 | B83: 10528678490 | C83: Gürkan KALKAN | D83: 378 | E83: YİYECEK İÇECEK DEPARTMANINDA ÇALIŞANLARIN BEŞ FAKTÖR KİŞİLİK ÖZELLİKLERİNİN HİZMET VERMEYE YATKINLIĞI VE İŞ TATMİNİ DÜZEYLERİ ARASINDAKİ İLİŞKİLERİ; KÜLTÜRLER ARASI KARŞILAŞTIRMALI BİR ARAŞTIRMA | F83: 3. Çağrı | G83: BAP | H83: 170.48 | I83: TL | J83: 2016-12-31 | K83: 2017-01-01 | L83: 2016-11-23 11:01:49.293
A84: 05688 | B84: 39499861076 | C84: Zakir DENİZ | D84: 414 | E84: TÜBİTAK 2214/A Yurt Dısı Doktora Sırası Arastırma Burs Programı kapsamında İsviçrede arastırma yapmak | F84: 3. Çağrı | G84: Kurum Dışı Proje | H84: 18000.00 | I84: EURO | J84: 2017-03-01 | K84: 2017-05-29 | L84: 2016-11-30 09:53:04.640
A85: 03635 | B85: 22277087140 | C85: Mustafa NAZIROĞLU | D85: 346 | E85: International Conference on Reproductive Biology and Comparative Endocrinology and The 35th Annual Meeting of The Society for Reproductive Biology and Comparative Endocrinology and and The 35th Annual Meeting of The Society for Reproductive Biology and Comparative Endocrinology | F85: 3. Çağrı | G85: BAP | H85: 5500.00 | I85: TL | J85: 2017-02-06 | K85: 2017-02-12 | L85: 2016-11-18 11:24:50.460
A86: 04752 | B86: 41662753880 | C86: Mehmet Güvenç NEGİZ | D86: 415 | E86: Biyolojik Çeşitlilik Ölçüm Süreçleri - Envanter, Veri Transfer ve Hesaplama Teknikleri Projesi | F86: 3. Çağrı | G86: İstemiyorum | H86: 0.00 | I86: TL | J86: 2017-01-13 | K86: 2017-01-15 | L86: 2016-11-30 10:01:17.733
A87: 04504 | B87: 52357091866 | C87: Özgür DAVRAS | D87: 430 | E87: Sosyal Bilimlerde Bilimsel Makale Yazma Eğitimi | F87: 3. Çağrı | G87: BAP | H87: 350.00 | I87: TL | J87: 2017-01-16 | K87: 2017-01-20 | L87: 2016-12-05 10:40:05.617
A88: 06164 | B88: 39646509158 | C88: Ahmi ÖZ | D88: 343 | E88: International Conference on Reproductive Biology and Comparative Endocrinology (ICRBCE) and 35th Annual Meeting of Society for Reproductive Biology and Comparative Endocrinology | F88: 3. Çağrı | G88: Fakülte Bütçesi | H88: 3520.00 | I88: TL | J88: 2017-02-06 | K88: 2017-02-11 | L88: 2016-11-17 15:26:11.470
A89: 03672 | B89: 59764361674 | C89: Serkan GÜLSOY | D89: 416 | E89: Biyolojik çeşitlilik ölçüm süreçleri - envanter, veri transferi ve hesaplama teknikleri | F89: 3. Çağrı | G89: İstemiyorum | H89: 0.00 | I89: TL | J89: 2017-01-10 | K89: 2017-01-13 | L89: 2016-11-30 15:37:23.867
A90: 04720 | B90: 10528678490 | C90: Gürkan KALKAN | D90: 379 | E90: YİYECEK İÇECEK DEPARTMANINDA ÇALIŞANLARIN BEŞ FAKTÖR KİŞİLİK ÖZELLİKLERİNİN HİZMET VERMEYE YATKINLIĞI VE İŞ TATMİNİ DÜZEYLERİ ARASINDAKİ İLİŞKİLERİ; KÜLTÜRLER ARASI KARŞILAŞTIRMALI BİR ARAŞTIRMA | F90: 3. Çağrı | G90: BAP | H90: 170.48 | I90: TL | J90: 2016-12-31 | K90: 2017-01-01 | L90: 2016-11-23 11:06:40.047
A91: 04720 | B91: 10528678490 | C91: Gürkan KALKAN | D91: 379 | E91: YİYECEK İÇECEK DEPARTMANINDA ÇALIŞANLARIN BEŞ FAKTÖR KİŞİLİK ÖZELLİKLERİNİN HİZMET VERMEYE YATKINLIĞI VE İŞ TATMİNİ DÜZEYLERİ ARASINDAKİ İLİŞKİLERİ; KÜLTÜRLER ARASI KARŞILAŞTIRMALI BİR ARAŞTIRMA | F91: 3. Çağrı | G91: BAP | H91: 170.48 | I91: TL | J91: 2017-01-07 | K91: 2017-01-08 | L91: 2016-11-23 11:06:40.047
A92: 05310 | B92: 57424211444 | C92: Bilal ÇİĞ | D92: 339 | E92: International Conference on Reproductive Biology and Comparative Endocrinology (ICRBCE) and 35th Annual Meeting of The Society for Reproductive Biology and Comparative Endocrinology | F92: 3. Çağrı | G92: BAP | H92: 3670.00 | I92: TL | J92: 2017-02-06 | K92: 2017-02-12 | L92: 2016-11-14 23:09:16.693
A93: 01071 | B93: 12409844024 | C93: Ramazan ÖZÇELİK | D93: 417 | E93: Bucak Yöresi Doğal Sedir (Cedrus libani A. Rich.) ve Toros Göknarı (Abies cilicica Car.) Karışık Meşcereleri İçin Ticari Hacim Denklemlerinin Geliştirilmesi | F93: 3. Çağrı | G93: BAP | H93: 150.00 | I93: TL | J93: 2017-01-13 | K93: 2017-01-15 | L93: 2016-11-30 15:51:59.370
A94: 04720 | B94: 10528678490 | C94: Gürkan KALKAN | D94: 380 | E94: YİYECEK İÇECEK DEPARTMANINDA ÇALIŞANLARIN BEŞ FAKTÖR KİŞİLİK ÖZELLİKLERİNİN HİZMET VERMEYE YATKINLIĞI VE İŞ TATMİNİ DÜZEYLERİ ARASINDAKİ İLİŞKİLERİ; KÜLTÜRLER ARASI KARŞILAŞTIRMALI BİR ARAŞTIRMA | F94: 3. Çağrı | G94: BAP | H94: 170.48 | I94: TL | J94: 2016-12-31 | K94: 2017-01-01 | L94: 2016-11-23 11:10:52.080
A95: 04720 | B95: 10528678490 | C95: Gürkan KALKAN | D95: 380 | E95: YİYECEK İÇECEK DEPARTMANINDA ÇALIŞANLARIN BEŞ FAKTÖR KİŞİLİK ÖZELLİKLERİNİN HİZMET VERMEYE YATKINLIĞI VE İŞ TATMİNİ DÜZEYLERİ ARASINDAKİ İLİŞKİLERİ; KÜLTÜRLER ARASI KARŞILAŞTIRMALI BİR ARAŞTIRMA | F95: 3. Çağrı | G95: BAP | H95: 170.48 | I95: TL | J95: 2017-01-07 | K95: 2017-01-08 | L95: 2016-11-23 11:10:52.080
A96: 04720 | B96: 10528678490 | C96: Gürkan KALKAN | D96: 380 | E96: YİYECEK İÇECEK DEPARTMANINDA ÇALIŞANLARIN BEŞ FAKTÖR KİŞİLİK ÖZELLİKLERİNİN HİZMET VERMEYE YATKINLIĞI VE İŞ TATMİNİ DÜZEYLERİ ARASINDAKİ İLİŞKİLERİ; KÜLTÜRLER ARASI KARŞILAŞTIRMALI BİR ARAŞTIRMA | F96: 3. Çağrı | G96: BAP | H96: 170.48 | I96: TL | J96: 2017-01-14 | K96: 2017-01-15 | L96: 2016-11-23 11:10:52.080
A97: 05609 | B97: 38185799358 | C97: Mahmut DEMİR | D97: 419 | E97: Utrecht International Tourism & Recreation Fair | F97: 3. Çağrı | G97: BAP | H97: 3000.00 | I97: TL | J97: 2017-01-10 | K97: 2017-01-15 | L97: 2016-12-01 20:43:44.230
A98: 02220 | B98: 48022536022 | C98: Ahmet TOLUNAY | D98: 434 | E98: Mesleki Örgütlenmesini Yapmış Meslek Mensuplarının Örgütsel Kazançları | F98: 3. Çağrı | G98: BAP | H98: 300.00 | I98: TL | J98: 2017-01-06 | K98: 2017-01-08 | L98: 2016-12-05 13:36:09.250
A99: 02220 | B99: 48022536022 | C99: Ahmet TOLUNAY | D99: 435 | E99: Mesleki Örgütlenmesini Tamamlamış Meslek Mensuplarının Örgütsel Kazançları | F99: 3. Çağrı | G99: BAP | H99: 250.00 | I99: TL | J99: 2017-01-13 | K99: 2017-01-15 | L99: 2016-12-05 13:43:38.603
A100: 02220 | B100: 48022536022 | C100: Ahmet TOLUNAY | D100: 436 | E100: Mesleki Örgütlenmesini Tamamlamış Meslek Mensuplarının Örgütsel Kazançları | F100: 3. Çağrı | G100: BAP | H100: 300.00 | I100: TL | J100: 2017-01-20 | K100: 2017-01-22 | L100: 2016-12-05 13:53:57.867
A101: 02220 | B101: 48022536022 | C101: Ahmet TOLUNAY | D101: 437 | E101: Mesleki Örgütlenmesini Tamamlamış Meslek Mensuplarının Örgütsel Kazançları | F101: 3. Çağrı | G101: BAP | H101: 300.00 | I101: TL | J101: 2017-01-27 | K101: 2017-01-29 | L101: 2016-12-05 13:57:43.337
A102: 02220 | B102: 48022536022 | C102: Ahmet TOLUNAY | D102: 438 | E102: Mesleki Örgütlenmesini Tamamlamış Meslek Mensuplarının Örgütsel Kazançları | F102: 3. Çağrı | G102: BAP | H102: 300.00 | I102: TL | J102: 2017-02-03 | K102: 2017-02-05 | L102: 2016-12-05 14:03:12.243
A103: 06883 | B103: 23551479590 | C103: HÜSEYİN KÖKER | D103: 443 | E103: İKİNCİ ULUSLARARASI AKDENİZ DÜNYASINDA PARA TARİHİ VE NUMİSMATİK KONGRESİ | F103: 3. Çağrı | G103: Fakülte Bütçesi | H103: 120.00 | I103: TL | J103: 2017-01-04 | K103: 2017-01-06 | L103: 2016-12-06 11:05:13.527
A104: 02266 | B104: 20287207008 | C104: Mehmet Ali KOYUNCU | D104: 446 | E104: 10 th International Frutic Symposium Quality and Safety of Fresh Horticultural Commodities | F104: 3. Çağrı | G104: Fakülte Bütçesi | H104: 1795.00 | I104: TL | J104: 2017-02-06 | K104: 2017-02-10 | L104: 2016-12-08 13:35:15.087
A105: 02266 | B105: 20287207008 | C105: Mehmet Ali KOYUNCU | D105: 445 | E105: 10 th International Frutic Symposium Quality and Safety of Fresh Horticultural commodities | F105: 3. Çağrı | G105: Fakülte Bütçesi | H105: 1795.00 | I105: TL | J105: 2017-02-07 | K105: 2017-02-09 | L105: 2016-12-08 13:21:37.733
A106: 06773 | B106: 19522460896 | C106: SELİN EROYMAK | D106: 256 | E106: 6th Annual Conference on Humanities and Social Sciences | F106: 3. Çağrı | G106: Kurum Dışı Proje | H106: 2500.00 | I106: TL | J106: 2017-01-25 | K106: 2017-01-30 | L106: 2016-10-25 14:08:43.667
A107: 06770 | B107: 48877203100 | C107: DİLRUBA İZGÜDEN | D107: 450 | E107: 6th Annual Conference on Humanities and Social Sciences | F107: 3. Çağrı | G107: Kurum Dışı Proje | H107: 2165.00 | I107: TL | J107: 2017-01-22 | K107: 2017-01-30 | L107: 2016-12-09 11:03:46.013
A108: 05656 | B108: 37639346292 | C108: Nurdan ORAL KARA | D108: 452 | E108: 6th Annual Conference on Humanities and Social Sciences (AGP 2017) | F108: 3. Çağrı | G108: Kurum Dışı Proje | H108: 15000.00 | I108: TL | J108: 2017-01-22 | K108: 2017-01-30 | L108: 2016-12-09 11:42:22.320
A109: 06567 | B109: 21820528468 | C109: Aslı VERGİLİ | D109: 454 | E109: 6th Annual Conference on Humanities and Social Sciences (AGP 2017) | F109: 3. Çağrı | G109: Kurum Dışı Proje | H109: 7000.00 | I109: TL | J109: 2017-01-23 | K109: 2017-01-30 | L109: 2016-12-09 12:18:25.743
A110: 06761 | B110: 16870318756 | C110: KEVSER SEZER KORUCU | D110: 458 | E110: 6th Annual Conference on Humanities and Social Sciences | F110: 3. Çağrı | G110: Kurum Dışı Proje | H110: 3000.00 | I110: TL | J110: 2017-01-23 | K110: 2017-01-30 | L110: 2016-12-09 15:13:59.040
A111: 06772 | B111: 12521313064 | C111: MERVE UYSAL | D111: 460 | E111: Annual International Conference on Humanities and Social Sciences | F111: 3. Çağrı | G111: Kurum Dışı Proje | H111: 3000.00 | I111: TL | J111: 2016-11-24 | K111: 2016-11-28 | L111: 2016-12-09 15:57:43.300
A112: 05683 | B112: 45187058390 | C112: Abuzer SARP | D112: 463 | E112: Tez Araştırması | F112: 3. Çağrı | G112: BAP | H112: 1500.00 | I112: USD (A.B.D Doları) | J112: 2017-01-02 | K112: 2017-01-16 | L112: 2016-12-12 12:31:16.150

Sheet Konaklama
A1: BaşvuruId | B1: Adı Soyadı | C1: EtkinlikAdi | D1: KonaklanacakYer | E1: KacGece | F1: Tutar | G1: Ücret | H1: Para Cinsi | I1: Gider
A2: 256 | B2: SELİN EROYMAK | C2: 6th Annual Conference on Humanities and Social Sciences | D2: Travelodge Barcelona Poblenou | E2: 7 | F2: 156.50 EURO | G2: =IFERROR(VALUE(SUBSTITUTE(ArraySep(F2," ",1),".",",")),0) -> 156.5 | H2: =IF(G2>0,ArraySep(F2," ",2),"") -> EURO | I2: =G2*IF(H2="DOLAR",3,IF(H2="EURO",3.5,1))/E2 -> 78.25
A3: 307 | B3: Ömer Kürşad TÜFEKCİ | C3: The Relationship between Personality Traits of Employees and Service Orientation and Job Satisfaction in Food and Beverage Department: A Cross Cultural Research | D3: Chonburi, Tayland | E3: 6 | F3: 712.50 DOLAR | G3: =IFERROR(VALUE(SUBSTITUTE(ArraySep(F3," ",1),".",",")),0) -> 712.5 | H3: =IF(G3>0,ArraySep(F3," ",2),"") -> DOLAR | I3: =G3*IF(H3="DOLAR",3,IF(H3="EURO",3.5,1))/E3 -> 356.25
A4: 336 | B4: Nevzat ÖZGÜR | C4: Stanford Geothermal Workshop 42nd Annual | D4: San francisco | E4: 5 | F4: 750.00 DOLAR | G4: =IFERROR(VALUE(SUBSTITUTE(ArraySep(F4," ",1),".",",")),0) -> 750 | H4: =IF(G4>0,ArraySep(F4," ",2),"") -> DOLAR | I4: 450
A5: 346 | B5: Mustafa NAZIROĞLU | C5: International Conference on Reproductive Biology and Comparative Endocrinology and The 35th Annual Meeting of The Society for Reproductive Biology and Comparative Endocrinology and and The 35th Annual Meeting of The Society for Reproductive Biology and Comparative Endocrinology | D5: Hotel Novotel Hyderabad | E5: 6 | F5: 6405.00 TL | G5: =IFERROR(VALUE(SUBSTITUTE(ArraySep(F5," ",1),".",",")),0) -> 6405 | H5: =IF(G5>0,ArraySep(F5," ",2),"") -> TL | I5: 1067.5
A6: 359 | B6: Gürkan KALKAN | C6: YİYECEK İÇECEK DEPARTMANINDA ÇALIŞANLARIN BEŞ FAKTÖR KİŞİLİK ÖZELLİKLERİNİN HİZMET VERMEYE YATKINLIĞI VE İŞ TATMİNİ DÜZEYLERİ ARASINDAKİ İLİŞKİLERİ; KÜLTÜRLER ARASI KARŞILAŞTIRMALI BİR ARAŞTIRMA | D6: Chonburi | E6: 6 | F6: 118.75 DOLAR | G6: =IFERROR(VALUE(SUBSTITUTE(ArraySep(F6," ",1),".",",")),0) -> 118.75 | H6: =IF(G6>0,ArraySep(F6," ",2),"") -> DOLAR | I6: 59.375
A7: 362 | B7: Oktay KÖSE | C7: 2017 4th International Conference on Linguistics, Literature and Arts (ICLLA 2017) | D7: Silverland Jolie Hotel | E7: 4 | F7: 1071.00 TL | G7: =IFERROR(VALUE(SUBSTITUTE(ArraySep(F7," ",1),".",",")),0) -> 1071 | H7: =IF(G7>0,ArraySep(F7," ",2),"") -> TL | I7: 267.75
A8: 371 | B8: Ömer ÇON | C8: EU Clinical Trial Regulation New Legal Framework for Multicenter Clinical Trials | D8: Stiftung Gästehaus der Universität Basel | E8: 3 | F8: 270.00 EURO | G8: =IFERROR(VALUE(SUBSTITUTE(ArraySep(F8," ",1),".",",")),0) -> 270 | H8: =IF(G8>0,ArraySep(F8," ",2),"") -> EURO | I8: 315
A9: 391 | B9: Hasan GÖKSU | C9: The Relationship Between Personality Traits of Employees and Service Orientation and Job Satisfaction in Food and Beverage Department: A Cross Cultural Research | D9: Chon Buri | E9: 5 | F9: 675.00 DOLAR | G9: =IFERROR(VALUE(SUBSTITUTE(ArraySep(F9," ",1),".",",")),0) -> 675 | H9: =IF(G9>0,ArraySep(F9," ",2),"") -> DOLAR | I9: 405
A10: 392 | B10: Ahmet SONGUR | C10: 6th Annual International Conference on Humanities and Social Sciences | D10: Barselona | E10: 5 | F10: 1500.00 TL | G10: =IFERROR(VALUE(SUBSTITUTE(ArraySep(F10," ",1),".",",")),0) -> 1500 | H10: =IF(G10>0,ArraySep(F10," ",2),"") -> TL | I10: 300
A11: 395 | B11: İbrahim DEMİRTAŞ | C11: 6th Annual International Conference on Humanities and Social Sciences | D11: barselona | E11: 5 | F11: 1500.00 TL | G11: =IFERROR(VALUE(SUBSTITUTE(ArraySep(F11," ",1),".",",")),0) -> 1500 | H11: =IF(G11>0,ArraySep(F11," ",2),"") -> TL | I11: 300
A12: 406 | B12: Bilgehan İlker HARMAN | C12: 114Y598 nolu TÜBİTAK Proje Toplantısı | D12: Eriha/Kudüs | E12: 8 | F12: 1300.00 TL | G12: =IFERROR(VALUE(SUBSTITUTE(ArraySep(F12," ",1),".",",")),0) -> 1300 | H12: =IF(G12>0,ArraySep(F12," ",2),"") -> TL | I12: 162.5
A13: 408 | B13: Nevzat Özgü YİĞİT | C13: 114Y598 nolu TÜBİTAK proje Toplantısı | D13: Eriha/Kudüs | E13: 8 | F13: 1300.00 TL | G13: =IFERROR(VALUE(SUBSTITUTE(ArraySep(F13," ",1),".",",")),0) -> 1300 | H13: =IF(G13>0,ArraySep(F13," ",2),"") -> TL | I13: 162.5
A14: 409 | B14: Şehnaz Şule KAPLAN BEKAROĞLU | C14: 114Y598 nolu TÜBİTAK Proje Toplantısı | D14: Filistin | E14: 7 | F14: 1000.00 TL | G14: =IFERROR(VALUE(SUBSTITUTE(ArraySep(F14," ",1),".",",")),0) -> 1000 | H14: =IF(G14>0,ArraySep(F14," ",2),"") -> TL | I14: 142.8571429
A15: 410 | B15: Tuğba SARDOHAN KÖSEOĞLU | C15: 114Y598 nolu TÜBİTAK proje Toplantısı | D15: Eriha/Kudüs | E15: 8 | F15: 1300.00 TL | G15: =IFERROR(VALUE(SUBSTITUTE(ArraySep(F15," ",1),".",",")),0) -> 1300 | H15: =IF(G15>0,ArraySep(F15," ",2),"") -> TL | I15: 162.5
A16: 413 | B16: Elçin ESENLİK | C16: 13. Uluslar Arası Dudak Damak Yarıkları Kongresi | D16: Courtyard Mariott, Jaipur | E16: 11 | F16: 2400.00 TL | G16: =IFERROR(VALUE(SUBSTITUTE(ArraySep(F16," ",1),".",",")),0) -> 2400 | H16: =IF(G16>0,ArraySep(F16," ",2),"") -> TL | I16: 218.1818182
A17: 415 | B17: Mehmet Güvenç NEGİZ | C17: Biyolojik Çeşitlilik Ölçüm Süreçleri - Envanter, Veri Transfer ve Hesaplama Teknikleri Projesi | D17: Antalya | E17: 2 | F17: 0.00 TL | G17: =IFERROR(VALUE(SUBSTITUTE(ArraySep(F17," ",1),".",",")),0) -> 0 | H17: =IF(G17>0,ArraySep(F17," ",2),"") ->  | I17: 0
A18: 418 | B18: Bayram ÇEVİK | C18: COST FA1405 Annual Meeting , "Systems biology approaches to identify mechanisms underlying crop-arthropod-microbe interactions" semposyumu and "Hands-on Systems Biology Training School" | D18: Best Western Premier Hotel Slon | E18: 4 | F18: 360.00 EURO | G18: =IFERROR(VALUE(SUBSTITUTE(ArraySep(F18," ",1),".",",")),0) -> 360 | H18: =IF(G18>0,ArraySep(F18," ",2),"") -> EURO | I18: 315
A19: 419 | B19: Mahmut DEMİR | C19: Utrecht International Tourism & Recreation Fair | D19: Otel | E19: 5 | F19: 1250.00 TL | G19: =IFERROR(VALUE(SUBSTITUTE(ArraySep(F19," ",1),".",",")),0) -> 1250 | H19: =IF(G19>0,ArraySep(F19," ",2),"") -> TL | I19: 250
A20: 424 | B20: Murat Yusuf UÇAN | C20: TIM-InoSuıt-Inovasyon Odaklı Mentörlük Projesi(üniversite-sanayi işbirliği ) 3 aylık deneyim paylaşım toplantısının 1. toplantısı | D20: istanbul otel | E20: 1 | F20: 100.00 TL | G20: =IFERROR(VALUE(SUBSTITUTE(ArraySep(F20," ",1),".",",")),0) -> 100 | H20: =IF(G20>0,ArraySep(F20," ",2),"") -> TL | I20: 100
A21: 425 | B21: Muhammet Hamdi MÜCEVHER | C21: 6th Annual Conference on Humanities and Social Sciences | D21: Barselona | E21: 5 | F21: 1500.00 TL | G21: =IFERROR(VALUE(SUBSTITUTE(ArraySep(F21," ",1),".",",")),0) -> 1500 | H21: =IF(G21>0,ArraySep(F21," ",2),"") -> TL | I21: 300
A22: 426 | B22: Erdal EKE | C22: 6th Annual Conference on Humanities and Social Sciences | D22: Barcelona | E22: 5 | F22: 1500.00 TL | G22: =IFERROR(VALUE(SUBSTITUTE(ArraySep(F22," ",1),".",",")),0) -> 1500 | H22: =IF(G22>0,ArraySep(F22," ",2),"") -> TL | I22: 300
A23: 428 | B23: Şirvan ŞEN DEMİR | C23: 21. Doğu Akdeniz Uluslararası Turizm ve Seyahat Fuarı | D23: Otel | E23: 4 | F23: 600.00 TL | G23: =IFERROR(VALUE(SUBSTITUTE(ArraySep(F23," ",1),".",",")),0) -> 600 | H23: =IF(G23>0,ArraySep(F23," ",2),"") -> TL | I23: 150
A24: 429 | B24: Mahmut DEMİR | C24: 21. Doğu Akdeniz Uluslararası Turizm ve Seyahat Fuarı | D24: Otel | E24: 4 | F24: 600.00 TL | G24: =IFERROR(VALUE(SUBSTITUTE(ArraySep(F24," ",1),".",",")),0) -> 600 | H24: =IF(G24>0,ArraySep(F24," ",2),"") -> TL | I24: 150
A25: 431 | B25: Ceylan YOL | C25: The WEI International Academic Conference on Education and Humanities in Barcelona | D25: otel | E25: 3 | F25: 300.00 EURO | G25: =IFERROR(VALUE(SUBSTITUTE(ArraySep(F25," ",1),".",",")),0) -> 300 | H25: =IF(G25>0,ArraySep(F25," ",2),"") -> EURO | I25: 350
A26: 432 | B26: Osman ÇÖLLÜ | C26: 6th Annual Conference on Humanities and Social Sciences | D26: Barselona | E26: 5 | F26: 1500.00 TL | G26: =IFERROR(VALUE(SUBSTITUTE(ArraySep(F26," ",1),".",",")),0) -> 1500 | H26: =IF(G26>0,ArraySep(F26," ",2),"") -> TL | I26: 300
A27: 433 | B27: Zeynep Gazali DEMİRTAŞ | C27: 6th Annual Conference on Humanities and Social Sciences | D27: Barselona | E27: 5 | F27: 1500.00 TL | G27: =IFERROR(VALUE(SUBSTITUTE(ArraySep(F27," ",1),".",",")),0) -> 1500 | H27: =IF(G27>0,ArraySep(F27," ",2),"") -> TL | I27: 300
A28: 434 | B28: Ahmet TOLUNAY | C28: Mesleki Örgütlenmesini Yapmış Meslek Mensuplarının Örgütsel Kazançları | D28: İstanbul | E28: 2 | F28: 100.00 TL | G28: =IFERROR(VALUE(SUBSTITUTE(ArraySep(F28," ",1),".",",")),0) -> 100 | H28: =IF(G28>0,ArraySep(F28," ",2),"") -> TL | I28: 50
A29: 435 | B29: Ahmet TOLUNAY | C29: Mesleki Örgütlenmesini Tamamlamış Meslek Mensuplarının Örgütsel Kazançları | D29: Ankara | E29: 2 | F29: 100.00 TL | G29: =IFERROR(VALUE(SUBSTITUTE(ArraySep(F29," ",1),".",",")),0) -> 100 | H29: =IF(G29>0,ArraySep(F29," ",2),"") -> TL | I29: 50
A30: 436 | B30: Ahmet TOLUNAY | C30: Mesleki Örgütlenmesini Tamamlamış Meslek Mensuplarının Örgütsel Kazançları | D30: İzmir | E30: 2 | F30: 100.00 TL | G30: =IFERROR(VALUE(SUBSTITUTE(ArraySep(F30," ",1),".",",")),0) -> 100 | H30: =IF(G30>0,ArraySep(F30," ",2),"") -> TL | I30: 50
A31: 437 | B31: Ahmet TOLUNAY | C31: Mesleki Örgütlenmesini Tamamlamış Meslek Mensuplarının Örgütsel Kazançları | D31: Adana | E31: 2 | F31: 100.00 TL | G31: =IFERROR(VALUE(SUBSTITUTE(ArraySep(F31," ",1),".",",")),0) -> 100 | H31: =IF(G31>0,ArraySep(F31," ",2),"") -> TL | I31: 50
A32: 438 | B32: Ahmet TOLUNAY | C32: Mesleki Örgütlenmesini Tamamlamış Meslek Mensuplarının Örgütsel Kazançları | D32: İstanbul | E32: 2 | F32: 100.00 TL | G32: =IFERROR(VALUE(SUBSTITUTE(ArraySep(F32," ",1),".",",")),0) -> 100 | H32: =IF(G32>0,ArraySep(F32," ",2),"") -> TL | I32: 50
A33: 440 | B33: Ahmet ALKAN | C33: 6th Annual Conference on Humanities and Social Sciences | D33: travelodge Otel | E33: 5 | F33: 500.00 TL | G33: =IFERROR(VALUE(SUBSTITUTE(ArraySep(F33," ",1),".",",")),0) -> 500 | H33: =IF(G33>0,ArraySep(F33," ",2),"") -> TL | I33: 100
A34: 442 | B34: Devrim VURAL YILMAZ | C34: INTCESS 2017- 4th INTERNATIONAL CONFERENCE ON EDUCATION, AND SOCIAL SCIENCES | D34: nippon otel istanbul | E34: 2 | F34: 130.00 EURO | G34: =IFERROR(VALUE(SUBSTITUTE(ArraySep(F34," ",1),".",",")),0) -> 130 | H34: =IF(G34>0,ArraySep(F34," ",2),"") -> EURO | I34: 227.5
A35: 445 | B35: Mehmet Ali KOYUNCU | C35: 10 th International Frutic Symposium Quality and Safety of Fresh Horticultural commodities | D35: Hotel | E35: 4 | F35: 1375.00 TL | G35: =IFERROR(VALUE(SUBSTITUTE(ArraySep(F35," ",1),".",",")),0) -> 1375 | H35: =IF(G35>0,ArraySep(F35," ",2),"") -> TL | I35: 343.75
A36: 446 | B36: Mehmet Ali KOYUNCU | C36: 10 th International Frutic Symposium Quality and Safety of Fresh Horticultural Commodities | D36: Hotel | E36: 4 | F36: 1375.00 TL | G36: =IFERROR(VALUE(SUBSTITUTE(ArraySep(F36," ",1),".",",")),0) -> 1375 | H36: =IF(G36>0,ArraySep(F36," ",2),"") -> TL | I36: 343.75
A37: 450 | B37: DİLRUBA İZGÜDEN | C37: 6th Annual Conference on Humanities and Social Sciences | D37: Travelodge Barcelona Poblenou | E37: 7 | F37: 156.50 EURO | G37: =IFERROR(VALUE(SUBSTITUTE(ArraySep(F37," ",1),".",",")),0) -> 156.5 | H37: =IF(G37>0,ArraySep(F37," ",2),"") -> EURO | I37: 78.25
A38: 452 | B38: Nurdan ORAL KARA | C38: 6th Annual Conference on Humanities and Social Sciences (AGP 2017) | D38: Travelodge Barcelona Poblenou | E38: 5 | F38: 300.00 EURO | G38: =IFERROR(VALUE(SUBSTITUTE(ArraySep(F38," ",1),".",",")),0) -> 300 | H38: =IF(G38>0,ArraySep(F38," ",2),"") -> EURO | I38: 210
A39: 454 | B39: Aslı VERGİLİ | C39: 6th Annual Conference on Humanities and Social Sciences (AGP 2017) | D39: Hotel Oasis | E39: 6 | F39: 600.00 TL | G39: =IFERROR(VALUE(SUBSTITUTE(ArraySep(F39," ",1),".",",")),0) -> 600 | H39: =IF(G39>0,ArraySep(F39," ",2),"") -> TL | I39: 100
A40: 458 | B40: KEVSER SEZER KORUCU | C40: 6th Annual Conference on Humanities and Social Sciences | D40: HOTEL OASİS | E40: 6 | F40: 600.00 TL | G40: =IFERROR(VALUE(SUBSTITUTE(ArraySep(F40," ",1),".",",")),0) -> 600 | H40: =IF(G40>0,ArraySep(F40," ",2),"") -> TL | I40: 100
A41: 460 | B41: MERVE UYSAL | C41: Annual International Conference on Humanities and Social Sciences | D41: Hotel Oasis | E41: 6 | F41: 600.00 TL | G41: =IFERROR(VALUE(SUBSTITUTE(ArraySep(F41," ",1),".",",")),0) -> 600 | H41: =IF(G41>0,ArraySep(F41," ",2),"") -> TL | I41: 100

Sheet Ulaşım
A1: BaşvuruId | B1: Adı Soyadı | C1: EtkinlikAdi | D1: Hareket Yönü | E1: UlasimBaslangic | F1: UlasimBitis | G1: Araç | H1: Tutar | I1: Ücret | J1: Para Cinsi | K1: Gider
A2: 256 | B2: SELİN EROYMAK | C2: 6th Annual Conference on Humanities and Social Sciences | D2: Gidiş | E2: ısparta | F2: antalya | G2: Karayolu | H2: 20.00 TL | I2: =IFERROR(VALUE(SUBSTITUTE(ArraySep(H2," ",1),".",",")),0) -> 20 | J2: =IF(I2>0,ArraySep(H2," ",2),"") -> TL | K2: =I2*IF(J2="DOLAR",3,IF(J2="EURO",3.5,1)) -> 20
A3: 256 | B3: SELİN EROYMAK | C3: 6th Annual Conference on Humanities and Social Sciences | D3: Gidiş | E3: antalya | F3: istanbul | G3: Uçak | H3: 445.00 TL | I3: =IFERROR(VALUE(SUBSTITUTE(ArraySep(H3," ",1),".",",")),0) -> 445 | J3: =IF(I3>0,ArraySep(H3," ",2),"") -> TL | K3: =I3*IF(J3="DOLAR",3,IF(J3="EURO",3.5,1)) -> 445
A4: 256 | B4: SELİN EROYMAK | C4: 6th Annual Conference on Humanities and Social Sciences | D4: Dönüş | E4: antalya | F4: ısparta | G4: Karayolu | H4: 20.00 TL | I4: =IFERROR(VALUE(SUBSTITUTE(ArraySep(H4," ",1),".",",")),0) -> 20 | J4: =IF(I4>0,ArraySep(H4," ",2),"") -> TL | K4: 20
A5: 256 | B5: SELİN EROYMAK | C5: 6th Annual Conference on Humanities and Social Sciences | D5: Dönüş | E5: antalya | F5: ısparta | G5: Uçak | H5: 445.00 TL | I5: =IFERROR(VALUE(SUBSTITUTE(ArraySep(H5," ",1),".",",")),0) -> 445 | J5: =IF(I5>0,ArraySep(H5," ",2),"") -> TL | K5: 445
A6: 307 | B6: Ömer Kürşad TÜFEKCİ | C6: The Relationship between Personality Traits of Employees and Service Orientation and Job Satisfaction in Food and Beverage Department: A Cross Cultural Research | D6: Gidiş | E6: 20.01.2017 | F6: NULL | G6: Uçak | H6: 1132.50 TL | I6: =IFERROR(VALUE(SUBSTITUTE(ArraySep(H6," ",1),".",",")),0) -> 1132.5 | J6: =IF(I6>0,ArraySep(H6," ",2),"") -> TL | K6: 1132.5
A7: 307 | B7: Ömer Kürşad TÜFEKCİ | C7: The Relationship between Personality Traits of Employees and Service Orientation and Job Satisfaction in Food and Beverage Department: A Cross Cultural Research | D7: Dönüş | E7: NULL | F7: 28.01.2017 | G7: Uçak | H7: 1132.50 TL | I7: =IFERROR(VALUE(SUBSTITUTE(ArraySep(H7," ",1),".",",")),0) -> 1132.5 | J7: =IF(I7>0,ArraySep(H7," ",2),"") -> TL | K7: 1132.5
A8: 336 | B8: Nevzat ÖZGÜR | C8: Stanford Geothermal Workshop 42nd Annual | D8: Dönüş | E8: San Francisco | F8: Antalya | G8: Uçak | H8: 1500.00 TL | I8: =IFERROR(VALUE(SUBSTITUTE(ArraySep(H8," ",1),".",",")),0) -> 1500 | J8: =IF(I8>0,ArraySep(H8," ",2),"") -> TL | K8: 1500
A9: 336 | B9: Nevzat ÖZGÜR | C9: Stanford Geothermal Workshop 42nd Annual | D9: Gidiş | E9: antalya | F9: San francisco | G9: Uçak | H9: 1500.00 DOLAR | I9: =IFERROR(VALUE(SUBSTITUTE(ArraySep(H9," ",1),".",",")),0) -> 1500 | J9: =IF(I9>0,ArraySep(H9," ",2),"") -> DOLAR | K9: 4500
A10: 339 | B10: Bilal ÇİĞ | C10: International Conference on Reproductive Biology and Comparative Endocrinology (ICRBCE) and 35th Annual Meeting of The Society for Reproductive Biology and Comparative Endocrinology | D10: Gidiş | E10: Isparta | F10: Haidarabad | G10: Uçak | H10: 1835.00 TL | I10: =IFERROR(VALUE(SUBSTITUTE(ArraySep(H10," ",1),".",",")),0) -> 1835 | J10: =IF(I10>0,ArraySep(H10," ",2),"") -> TL | K10: 1835
A11: 339 | B11: Bilal ÇİĞ | C11: International Conference on Reproductive Biology and Comparative Endocrinology (ICRBCE) and 35th Annual Meeting of The Society for Reproductive Biology and Comparative Endocrinology | D11: Dönüş | E11: Haidarabad | F11: Isparta | G11: Uçak | H11: 1835.00 TL | I11: =IFERROR(VALUE(SUBSTITUTE(ArraySep(H11," ",1),".",",")),0) -> 1835 | J11: =IF(I11>0,ArraySep(H11," ",2),"") -> TL | K11: 1835
A12: 339 | B12: Bilal ÇİĞ | C12: International Conference on Reproductive Biology and Comparative Endocrinology (ICRBCE) and 35th Annual Meeting of The Society for Reproductive Biology and Comparative Endocrinology | D12: Gidiş | E12: Isparta | F12: Haidarabad | G12: Uçak | H12: 1835.00 TL | I12: =IFERROR(VALUE(SUBSTITUTE(ArraySep(H12," ",1),".",",")),0) -> 1835 | J12: =IF(I12>0,ArraySep(H12," ",2),"") -> TL | K12: 1835
A13: 339 | B13: Bilal ÇİĞ | C13: International Conference on Reproductive Biology and Comparative Endocrinology (ICRBCE) and 35th Annual Meeting of The Society for Reproductive Biology and Comparative Endocrinology | D13: Dönüş | E13: Haidarabad | F13: Isparta | G13: Uçak | H13: 1835.00 TL | I13: =IFERROR(VALUE(SUBSTITUTE(ArraySep(H13," ",1),".",",")),0) -> 1835 | J13: =IF(I13>0,ArraySep(H13," ",2),"") -> TL | K13: 1835
A14: 343 | B14: Ahmi ÖZ | C14: International Conference on Reproductive Biology and Comparative Endocrinology (ICRBCE) and 35th Annual Meeting of Society for Reproductive Biology and Comparative Endocrinology | D14: Gidiş | E14: Isparta | F14: İstanbul | G14: Uçak | H14: 80.00 TL | I14: =IFERROR(VALUE(SUBSTITUTE(ArraySep(H14," ",1),".",",")),0) -> 80 | J14: =IF(I14>0,ArraySep(H14," ",2),"") -> TL | K14: 80
A15: 343 | B15: Ahmi ÖZ | C15: International Conference on Reproductive Biology and Comparative Endocrinology (ICRBCE) and 35th Annual Meeting of Society for Reproductive Biology and Comparative Endocrinology | D15: Gidiş | E15: İstanbul | F15: Hayderabad | G15: Uçak | H15: 1785.00 TL | I15: =IFERROR(VALUE(SUBSTITUTE(ArraySep(H15," ",1),".",",")),0) -> 1785 | J15: =IF(I15>0,ArraySep(H15," ",2),"") -> TL | K15: 1785
A16: 343 | B16: Ahmi ÖZ | C16: International Conference on Reproductive Biology and Comparative Endocrinology (ICRBCE) and 35th Annual Meeting of Society for Reproductive Biology and Comparative Endocrinology | D16: Dönüş | E16: Hayderbad | F16: İstanbul | G16: Uçak | H16: 1785.00 TL | I16: =IFERROR(VALUE(SUBSTITUTE(ArraySep(H16," ",1),".",",")),0) -> 1785 | J16: =IF(I16>0,ArraySep(H16," ",2),"") -> TL | K16: 1785
A17: 343 | B17: Ahmi ÖZ | C17: International Conference on Reproductive Biology and Comparative Endocrinology (ICRBCE) and 35th Annual Meeting of Society for Reproductive Biology and Comparative Endocrinology | D17: Dönüş | E17: İstanbul | F17: Isparta | G17: Uçak | H17: 80.00 TL | I17: =IFERROR(VALUE(SUBSTITUTE(ArraySep(H17," ",1),".",",")),0) -> 80 | J17: =IF(I17>0,ArraySep(H17," ",2),"") -> TL | K17: 80
A18: 346 | B18: Mustafa NAZIROĞLU | C18: International Conference on Reproductive Biology and Comparative Endocrinology and The 35th Annual Meeting of The Society for Reproductive Biology and Comparative Endocrinology and and The 35th Annual Meeting of The Society for Reproductive Biology and Comparative Endocrinology | D18: Gidiş | E18: Isparta | F18: Hyderabad | G18: Uçak | H18: 1983.00 TL | I18: =IFERROR(VALUE(SUBSTITUTE(ArraySep(H18," ",1),".",",")),0) -> 1983 | J18: =IF(I18>0,ArraySep(H18," ",2),"") -> TL | K18: 1983
A19: 346 | B19: Mustafa NAZIROĞLU | C19: International Conference on Reproductive Biology and Comparative Endocrinology and The 35th Annual Meeting of The Society for Reproductive Biology and Comparative Endocrinology and and The 35th Annual Meeting of The Society for Reproductive Biology and Comparative Endocrinology | D19: Dönüş | E19: Hyderabad | F19: Antalya | G19: Uçak | H19: 1983.00 TL | I19: =IFERROR(VALUE(SUBSTITUTE(ArraySep(H19," ",1),".",",")),0) -> 1983 | J19: =IF(I19>0,ArraySep(H19," ",2),"") -> TL | K19: 1983
A20: 346 | B20: Mustafa NAZIROĞLU | C20: International Conference on Reproductive Biology and Comparative Endocrinology and The 35th Annual Meeting of The Society for Reproductive Biology and Comparative Endocrinology and and The 35th Annual Meeting of The Society for Reproductive Biology and Comparative Endocrinology | D20: Dönüş | E20: Antalya | F20: Isparta | G20: Karayolu | H20: 40.00 TL | I20: =IFERROR(VALUE(SUBSTITUTE(ArraySep(H20," ",1),".",",")),0) -> 40 | J20: =IF(I20>0,ArraySep(H20," ",2),"") -> TL | K20: 40
A21: 346 | B21: Mustafa NAZIROĞLU | C21: International Conference on Reproductive Biology and Comparative Endocrinology and The 35th Annual Meeting of The Society for Reproductive Biology and Comparative Endocrinology and and The 35th Annual Meeting of The Society for Reproductive Biology and Comparative Endocrinology | D21: Dönüş | E21: Hyderabad | F21: Antalya | G21: Uçak | H21: 1983.00 TL | I21: =IFERROR(VALUE(SUBSTITUTE(ArraySep(H21," ",1),".",",")),0) -> 1983 | J21: =IF(I21>0,ArraySep(H21," ",2),"") -> TL | K21: 1983
A22: 346 | B22: Mustafa NAZIROĞLU | C22: International Conference on Reproductive Biology and Comparative Endocrinology and The 35th Annual Meeting of The Society for Reproductive Biology and Comparative Endocrinology and and The 35th Annual Meeting of The Society for Reproductive Biology and Comparative Endocrinology | D22: Dönüş | E22: Antalya | F22: Isparta | G22: Karayolu | H22: 40.00 TL | I22: =IFERROR(VALUE(SUBSTITUTE(ArraySep(H22," ",1),".",",")),0) -> 40 | J22: =IF(I22>0,ArraySep(H22," ",2),"") -> TL | K22: 40
A23: 346 | B23: Mustafa NAZIROĞLU | C23: International Conference on Reproductive Biology and Comparative Endocrinology and The 35th Annual Meeting of The Society for Reproductive Biology and Comparative Endocrinology and and The 35th Annual Meeting of The Society for Reproductive Biology and Comparative Endocrinology | D23: Gidiş | E23: Isparta | F23: Hyderabad | G23: Uçak | H23: 1983.00 TL | I23: =IFERROR(VALUE(SUBSTITUTE(ArraySep(H23," ",1),".",",")),0) -> 1983 | J23: =IF(I23>0,ArraySep(H23," ",2),"") -> TL | K23: 1983
A24: 348 | B24: Asım Sinan YÜKSEL | C24: Erasmus Ders Verme Hareketliliği | D24: Gidiş | E24: 07.01.2017 | F24: NULL | G24: Uçak | H24: 950.00 TL | I24: =IFERROR(VALUE(SUBSTITUTE(ArraySep(H24," ",1),".",",")),0) -> 950 | J24: =IF(I24>0,ArraySep(H24," ",2),"") -> TL | K24: 950
A25: 348 | B25: Asım Sinan YÜKSEL | C25: Erasmus Ders Verme Hareketliliği | D25: Dönüş | E25: 17.01.2017 | F25: NULL | G25: Uçak | H25: 950.00 TL | I25: =IFERROR(VALUE(SUBSTITUTE(ArraySep(H25," ",1),".",",")),0) -> 950 | J25: =IF(I25>0,ArraySep(H25," ",2),"") -> TL | K25: 950
A26: 349 | B26: Şadi Fuat ÇANKAYA | C26: Erasmus Ders Alma Hareketliliği | D26: Gidiş | E26: 07.01.2017 | F26: NULL | G26: Uçak | H26: 950.00 TL | I26: =IFERROR(VALUE(SUBSTITUTE(ArraySep(H26," ",1),".",",")),0) -> 950 | J26: =IF(I26>0,ArraySep(H26," ",2),"") -> TL | K26: 950
A27: 349 | B27: Şadi Fuat ÇANKAYA | C27: Erasmus Ders Alma Hareketliliği | D27: Dönüş | E27: 17.01.2017 | F27: NULL | G27: Uçak | H27: 950.00 TL | I27: =IFERROR(VALUE(SUBSTITUTE(ArraySep(H27," ",1),".",",")),0) -> 950 | J27: =IF(I27>0,ArraySep(H27," ",2),"") -> TL | K27: 950
A28: 359 | B28: Gürkan KALKAN | C28: YİYECEK İÇECEK DEPARTMANINDA ÇALIŞANLARIN BEŞ FAKTÖR KİŞİLİK ÖZELLİKLERİNİN HİZMET VERMEYE YATKINLIĞI VE İŞ TATMİNİ DÜZEYLERİ ARASINDAKİ İLİŞKİLERİ; KÜLTÜRLER ARASI KARŞILAŞTIRMALI BİR ARAŞTIRMA | D28: Gidiş | E28: Isparta | F28: Chonburi | G28: Uçak | H28: 1125.00 TL | I28: =IFERROR(VALUE(SUBSTITUTE(ArraySep(H28," ",1),".",",")),0) -> 1125 | J28: =IF(I28>0,ArraySep(H28," ",2),"") -> TL | K28: 1125
A29: 359 | B29: Gürkan KALKAN | C29: YİYECEK İÇECEK DEPARTMANINDA ÇALIŞANLARIN BEŞ FAKTÖR KİŞİLİK ÖZELLİKLERİNİN HİZMET VERMEYE YATKINLIĞI VE İŞ TATMİNİ DÜZEYLERİ ARASINDAKİ İLİŞKİLERİ; KÜLTÜRLER ARASI KARŞILAŞTIRMALI BİR ARAŞTIRMA | D29: Dönüş | E29: Chonburi | F29: Isparta | G29: Uçak | H29: 1125.00 TL | I29: =IFERROR(VALUE(SUBSTITUTE(ArraySep(H29," ",1),".",",")),0) -> 1125 | J29: =IF(I29>0,ArraySep(H29," ",2),"") -> TL | K29: 1125
A30: 359 | B30: Gürkan KALKAN | C30: YİYECEK İÇECEK DEPARTMANINDA ÇALIŞANLARIN BEŞ FAKTÖR KİŞİLİK ÖZELLİKLERİNİN HİZMET VERMEYE YATKINLIĞI VE İŞ TATMİNİ DÜZEYLERİ ARASINDAKİ İLİŞKİLERİ; KÜLTÜRLER ARASI KARŞILAŞTIRMALI BİR ARAŞTIRMA | D30: Gidiş | E30: Isparta | F30: Chonburi | G30: Uçak | H30: 1125.00 TL | I30: =IFERROR(VALUE(SUBSTITUTE(ArraySep(H30," ",1),".",",")),0) -> 1125 | J30: =IF(I30>0,ArraySep(H30," ",2),"") -> TL | K30: 1125
A31: 359 | B31: Gürkan KALKAN | C31: YİYECEK İÇECEK DEPARTMANINDA ÇALIŞANLARIN BEŞ FAKTÖR KİŞİLİK ÖZELLİKLERİNİN HİZMET VERMEYE YATKINLIĞI VE İŞ TATMİNİ DÜZEYLERİ ARASINDAKİ İLİŞKİLERİ; KÜLTÜRLER ARASI KARŞILAŞTIRMALI BİR ARAŞTIRMA | D31: Dönüş | E31: Chonburi | F31: Isparta | G31: Uçak | H31: 1125.00 TL | I31: =IFERROR(VALUE(SUBSTITUTE(ArraySep(H31," ",1),".",",")),0) -> 1125 | J31: =IF(I31>0,ArraySep(H31," ",2),"") -> TL | K31: 1125
A32: 365 | B32: Muharrem Zafer ÇAĞLAR | C32: Mesleki görgü ve bilgimi geliştirmek ve medya çalışmaları hakkında bilgi edinmek amacıyla, İspanya'nın Başkenti Madrid ve önemli şehirlerinden Barselona'yı performans puanlarımdan karşılanmak üzere ziyaret etmek. | D32: Gidiş | E32: Isparta | F32: İstanbul | G32: Uçak | H32: 125.00 TL | I32: =IFERROR(VALUE(SUBSTITUTE(ArraySep(H32," ",1),".",",")),0) -> 125 | J32: =IF(I32>0,ArraySep(H32," ",2),"") -> TL | K32: 125
A33: 365 | B33: Muharrem Zafer ÇAĞLAR | C33: Mesleki görgü ve bilgimi geliştirmek ve medya çalışmaları hakkında bilgi edinmek amacıyla, İspanya'nın Başkenti Madrid ve önemli şehirlerinden Barselona'yı performans puanlarımdan karşılanmak üzere ziyaret etmek. | D33: Gidiş | E33: İstanbul | F33: Madrid | G33: Uçak | H33: 400.00 TL | I33: =IFERROR(VALUE(SUBSTITUTE(ArraySep(H33," ",1),".",",")),0) -> 400 | J33: =IF(I33>0,ArraySep(H33," ",2),"") -> TL | K33: 400
A34: 365 | B34: Muharrem Zafer ÇAĞLAR | C34: Mesleki görgü ve bilgimi geliştirmek ve medya çalışmaları hakkında bilgi edinmek amacıyla, İspanya'nın Başkenti Madrid ve önemli şehirlerinden Barselona'yı performans puanlarımdan karşılanmak üzere ziyaret etmek. | D34: Dönüş | E34: Barcelona | F34: İstanbul | G34: Uçak | H34: 400.00 TL | I34: =IFERROR(VALUE(SUBSTITUTE(ArraySep(H34," ",1),".",",")),0) -> 400 | J34: =IF(I34>0,ArraySep(H34," ",2),"") -> TL | K34: 400
A35: 365 | B35: Muharrem Zafer ÇAĞLAR | C35: Mesleki görgü ve bilgimi geliştirmek ve medya çalışmaları hakkında bilgi edinmek amacıyla, İspanya'nın Başkenti Madrid ve önemli şehirlerinden Barselona'yı performans puanlarımdan karşılanmak üzere ziyaret etmek. | D35: Dönüş | E35: İstanbul | F35: Isparta | G35: Uçak | H35: 125.00 TL | I35: =IFERROR(VALUE(SUBSTITUTE(ArraySep(H35," ",1),".",",")),0) -> 125 | J35: =IF(I35>0,ArraySep(H35," ",2),"") -> TL | K35: 125
A36: 365 | B36: Muharrem Zafer ÇAĞLAR | C36: Mesleki görgü ve bilgimi geliştirmek ve medya çalışmaları hakkında bilgi edinmek amacıyla, İspanya'nın Başkenti Madrid ve önemli şehirlerinden Barselona'yı performans puanlarımdan karşılanmak üzere ziyaret etmek. | D36: Gidiş | E36: Isparta | F36: İstanbul | G36: Uçak | H36: 125.00 TL | I36: =IFERROR(VALUE(SUBSTITUTE(ArraySep(H36," ",1),".",",")),0) -> 125 | J36: =IF(I36>0,ArraySep(H36," ",2),"") -> TL | K36: 125
A37: 365 | B37: Muharrem Zafer ÇAĞLAR | C37: Mesleki görgü ve bilgimi geliştirmek ve medya çalışmaları hakkında bilgi edinmek amacıyla, İspanya'nın Başkenti Madrid ve önemli şehirlerinden Barselona'yı performans puanlarımdan karşılanmak üzere ziyaret etmek. | D37: Gidiş | E37: İstanbul | F37: Madrid | G37: Uçak | H37: 400.00 TL | I37: =IFERROR(VALUE(SUBSTITUTE(ArraySep(H37," ",1),".",",")),0) -> 400 | J37: =IF(I37>0,ArraySep(H37," ",2),"") -> TL | K37: 400
A38: 365 | B38: Muharrem Zafer ÇAĞLAR | C38: Mesleki görgü ve bilgimi geliştirmek ve medya çalışmaları hakkında bilgi edinmek amacıyla, İspanya'nın Başkenti Madrid ve önemli şehirlerinden Barselona'yı performans puanlarımdan karşılanmak üzere ziyaret etmek. | D38: Dönüş | E38: Barcelona | F38: İstanbul | G38: Uçak | H38: 400.00 TL | I38: =IFERROR(VALUE(SUBSTITUTE(ArraySep(H38," ",1),".",",")),0) -> 400 | J38: =IF(I38>0,ArraySep(H38," ",2),"") -> TL | K38: 400
A39: 365 | B39: Muharrem Zafer ÇAĞLAR | C39: Mesleki görgü ve bilgimi geliştirmek ve medya çalışmaları hakkında bilgi edinmek amacıyla, İspanya'nın Başkenti Madrid ve önemli şehirlerinden Barselona'yı performans puanlarımdan karşılanmak üzere ziyaret etmek. | D39: Dönüş | E39: İstanbul | F39: Isparta | G39: Uçak | H39: 125.00 TL | I39: =IFERROR(VALUE(SUBSTITUTE(ArraySep(H39," ",1),".",",")),0) -> 125 | J39: =IF(I39>0,ArraySep(H39," ",2),"") -> TL | K39: 125
A40: 367 | B40: Personel Daire Başkanlığı | C40: 232 | D40: Gidiş | E40: 5453 | F40: 543 | G40: Resmi | H40: 0.00 TL | I40: =IFERROR(VALUE(SUBSTITUTE(ArraySep(H40," ",1),".",",")),0) -> 0 | J40: =IF(I40>0,ArraySep(H40," ",2),"") ->  | K40: 0
A41: 370 | B41: Hüseyin FAKİR | C41: Orman Fakültesi Dekanlar Toplantısı | D41: Gidiş | E41: 06.12.2016 | F41: 07.12.2016 | G41: Karayolu | H41: 190.00 TL | I41: =IFERROR(VALUE(SUBSTITUTE(ArraySep(H41," ",1),".",",")),0) -> 190 | J41: =IF(I41>0,ArraySep(H41," ",2),"") -> TL | K41: 190
A42: 371 | B42: Ömer ÇON | C42: EU Clinical Trial Regulation New Legal Framework for Multicenter Clinical Trials | D42: Gidiş | E42: Antalya | F42: Basel | G42: Uçak | H42: 500.00 TL | I42: =IFERROR(VALUE(SUBSTITUTE(ArraySep(H42," ",1),".",",")),0) -> 500 | J42: =IF(I42>0,ArraySep(H42," ",2),"") -> TL | K42: 500
A43: 371 | B43: Ömer ÇON | C43: EU Clinical Trial Regulation New Legal Framework for Multicenter Clinical Trials | D43: Dönüş | E43: basel | F43: antalya | G43: Uçak | H43: 500.00 TL | I43: =IFERROR(VALUE(SUBSTITUTE(ArraySep(H43," ",1),".",",")),0) -> 500 | J43: =IF(I43>0,ArraySep(H43," ",2),"") -> TL | K43: 500
A44: 372 | B44: Abdurrahman KAVASOĞLU | C44: EU Clinical Trial Regulation New Legal Framework for Multicenter Clinical Trials | D44: Gidiş | E44: antalya | F44: basel | G44: Uçak | H44: 500.00 TL | I44: =IFERROR(VALUE(SUBSTITUTE(ArraySep(H44," ",1),".",",")),0) -> 500 | J44: =IF(I44>0,ArraySep(H44," ",2),"") -> TL | K44: 500
A45: 372 | B45: Abdurrahman KAVASOĞLU | C45: EU Clinical Trial Regulation New Legal Framework for Multicenter Clinical Trials | D45: Dönüş | E45: basel | F45: antalya | G45: Uçak | H45: 500.00 TL | I45: =IFERROR(VALUE(SUBSTITUTE(ArraySep(H45," ",1),".",",")),0) -> 500 | J45: =IF(I45>0,ArraySep(H45," ",2),"") -> TL | K45: 500
A46: 373 | B46: Gürkan KALKAN | C46: YİYECEK İÇECEK DEPARTMANINDA ÇALIŞANLARIN BEŞ FAKTÖR KİŞİLİK ÖZELLİKLERİNİN HİZMET VERMEYE YATKINLIĞI VE İŞ TATMİNİ DÜZEYLERİ ARASINDAKİ İLİŞKİLERİ; KÜLTÜRLER ARASI KARŞILAŞTIRMALI BİR ARAŞTIRMA | D46: Gidiş | E46: Isparta | F46: Belek | G46: Karayolu | H46: 50.00 TL | I46: =IFERROR(VALUE(SUBSTITUTE(ArraySep(H46," ",1),".",",")),0) -> 50 | J46: =IF(I46>0,ArraySep(H46," ",2),"") -> TL | K46: 50
A47: 373 | B47: Gürkan KALKAN | C47: YİYECEK İÇECEK DEPARTMANINDA ÇALIŞANLARIN BEŞ FAKTÖR KİŞİLİK ÖZELLİKLERİNİN HİZMET VERMEYE YATKINLIĞI VE İŞ TATMİNİ DÜZEYLERİ ARASINDAKİ İLİŞKİLERİ; KÜLTÜRLER ARASI KARŞILAŞTIRMALI BİR ARAŞTIRMA | D47: Dönüş | E47: Belek | F47: Isparta | G47: Karayolu | H47: 50.00 TL | I47: =IFERROR(VALUE(SUBSTITUTE(ArraySep(H47," ",1),".",",")),0) -> 50 | J47: =IF(I47>0,ArraySep(H47," ",2),"") -> TL | K47: 50
A48: 373 | B48: Gürkan KALKAN | C48: YİYECEK İÇECEK DEPARTMANINDA ÇALIŞANLARIN BEŞ FAKTÖR KİŞİLİK ÖZELLİKLERİNİN HİZMET VERMEYE YATKINLIĞI VE İŞ TATMİNİ DÜZEYLERİ ARASINDAKİ İLİŞKİLERİ; KÜLTÜRLER ARASI KARŞILAŞTIRMALI BİR ARAŞTIRMA | D48: Gidiş | E48: Isparta | F48: Belek | G48: Karayolu | H48: 50.00 TL | I48: =IFERROR(VALUE(SUBSTITUTE(ArraySep(H48," ",1),".",",")),0) -> 50 | J48: =IF(I48>0,ArraySep(H48," ",2),"") -> TL | K48: 50
A49: 373 | B49: Gürkan KALKAN | C49: YİYECEK İÇECEK DEPARTMANINDA ÇALIŞANLARIN BEŞ FAKTÖR KİŞİLİK ÖZELLİKLERİNİN HİZMET VERMEYE YATKINLIĞI VE İŞ TATMİNİ DÜZEYLERİ ARASINDAKİ İLİŞKİLERİ; KÜLTÜRLER ARASI KARŞILAŞTIRMALI BİR ARAŞTIRMA | D49: Dönüş | E49: Belek | F49: Isparta | G49: Karayolu | H49: 50.00 TL | I49: =IFERROR(VALUE(SUBSTITUTE(ArraySep(H49," ",1),".",",")),0) -> 50 | J49: =IF(I49>0,ArraySep(H49," ",2),"") -> TL | K49: 50
A50: 375 | B50: Gürkan KALKAN | C50: YİYECEK İÇECEK DEPARTMANINDA ÇALIŞANLARIN BEŞ FAKTÖR KİŞİLİK ÖZELLİKLERİNİN HİZMET VERMEYE YATKINLIĞI VE İŞ TATMİNİ DÜZEYLERİ ARASINDAKİ İLİŞKİLERİ; KÜLTÜRLER ARASI KARŞILAŞTIRMALI BİR ARAŞTIRMA | D50: Gidiş | E50: Isparta | F50: Belek | G50: Karayolu | H50: 50.00 TL | I50: =IFERROR(VALUE(SUBSTITUTE(ArraySep(H50," ",1),".",",")),0) -> 50 | J50: =IF(I50>0,ArraySep(H50," ",2),"") -> TL | K50: 50
A51: 375 | B51: Gürkan KALKAN | C51: YİYECEK İÇECEK DEPARTMANINDA ÇALIŞANLARIN BEŞ FAKTÖR KİŞİLİK ÖZELLİKLERİNİN HİZMET VERMEYE YATKINLIĞI VE İŞ TATMİNİ DÜZEYLERİ ARASINDAKİ İLİŞKİLERİ; KÜLTÜRLER ARASI KARŞILAŞTIRMALI BİR ARAŞTIRMA | D51: Dönüş | E51: Belek | F51: Antalya | G51: Karayolu | H51: 50.00 TL | I51: =IFERROR(VALUE(SUBSTITUTE(ArraySep(H51," ",1),".",",")),0) -> 50 | J51: =IF(I51>0,ArraySep(H51," ",2),"") -> TL | K51: 50
A52: 375 | B52: Gürkan KALKAN | C52: YİYECEK İÇECEK DEPARTMANINDA ÇALIŞANLARIN BEŞ FAKTÖR KİŞİLİK ÖZELLİKLERİNİN HİZMET VERMEYE YATKINLIĞI VE İŞ TATMİNİ DÜZEYLERİ ARASINDAKİ İLİŞKİLERİ; KÜLTÜRLER ARASI KARŞILAŞTIRMALI BİR ARAŞTIRMA | D52: Gidiş | E52: Isparta | F52: Belek | G52: Karayolu | H52: 50.00 TL | I52: =IFERROR(VALUE(SUBSTITUTE(ArraySep(H52," ",1),".",",")),0) -> 50 | J52: =IF(I52>0,ArraySep(H52," ",2),"") -> TL | K52: 50
A53: 375 | B53: Gürkan KALKAN | C53: YİYECEK İÇECEK DEPARTMANINDA ÇALIŞANLARIN BEŞ FAKTÖR KİŞİLİK ÖZELLİKLERİNİN HİZMET VERMEYE YATKINLIĞI VE İŞ TATMİNİ DÜZEYLERİ ARASINDAKİ İLİŞKİLERİ; KÜLTÜRLER ARASI KARŞILAŞTIRMALI BİR ARAŞTIRMA | D53: Dönüş | E53: Belek | F53: Antalya | G53: Karayolu | H53: 50.00 TL | I53: =IFERROR(VALUE(SUBSTITUTE(ArraySep(H53," ",1),".",",")),0) -> 50 | J53: =IF(I53>0,ArraySep(H53," ",2),"") -> TL | K53: 50
A54: 376 | B54: Gürkan KALKAN | C54: YİYECEK İÇECEK DEPARTMANINDA ÇALIŞANLARIN BEŞ FAKTÖR KİŞİLİK ÖZELLİKLERİNİN HİZMET VERMEYE YATKINLIĞI VE İŞ TATMİNİ DÜZEYLERİ ARASINDAKİ İLİŞKİLERİ; KÜLTÜRLER ARASI KARŞILAŞTIRMALI BİR ARAŞTIRMA | D54: Gidiş | E54: Isparta | F54: Belek | G54: Karayolu | H54: 50.00 TL | I54: =IFERROR(VALUE(SUBSTITUTE(ArraySep(H54," ",1),".",",")),0) -> 50 | J54: =IF(I54>0,ArraySep(H54," ",2),"") -> TL | K54: 50
A55: 376 | B55: Gürkan KALKAN | C55: YİYECEK İÇECEK DEPARTMANINDA ÇALIŞANLARIN BEŞ FAKTÖR KİŞİLİK ÖZELLİKLERİNİN HİZMET VERMEYE YATKINLIĞI VE İŞ TATMİNİ DÜZEYLERİ ARASINDAKİ İLİŞKİLERİ; KÜLTÜRLER ARASI KARŞILAŞTIRMALI BİR ARAŞTIRMA | D55: Dönüş | E55: Belek | F55: Antalya | G55: Karayolu | H55: 50.00 TL | I55: =IFERROR(VALUE(SUBSTITUTE(ArraySep(H55," ",1),".",",")),0) -> 50 | J55: =IF(I55>0,ArraySep(H55," ",2),"") -> TL | K55: 50
A56: 376 | B56: Gürkan KALKAN | C56: YİYECEK İÇECEK DEPARTMANINDA ÇALIŞANLARIN BEŞ FAKTÖR KİŞİLİK ÖZELLİKLERİNİN HİZMET VERMEYE YATKINLIĞI VE İŞ TATMİNİ DÜZEYLERİ ARASINDAKİ İLİŞKİLERİ; KÜLTÜRLER ARASI KARŞILAŞTIRMALI BİR ARAŞTIRMA | D56: Gidiş | E56: Isparta | F56: Belek | G56: Karayolu | H56: 50.00 TL | I56: =IFERROR(VALUE(SUBSTITUTE(ArraySep(H56," ",1),".",",")),0) -> 50 | J56: =IF(I56>0,ArraySep(H56," ",2),"") -> TL | K56: 50
A57: 376 | B57: Gürkan KALKAN | C57: YİYECEK İÇECEK DEPARTMANINDA ÇALIŞANLARIN BEŞ FAKTÖR KİŞİLİK ÖZELLİKLERİNİN HİZMET VERMEYE YATKINLIĞI VE İŞ TATMİNİ DÜZEYLERİ ARASINDAKİ İLİŞKİLERİ; KÜLTÜRLER ARASI KARŞILAŞTIRMALI BİR ARAŞTIRMA | D57: Dönüş | E57: Belek | F57: Isparta | G57: Karayolu | H57: 50.00 TL | I57: =IFERROR(VALUE(SUBSTITUTE(ArraySep(H57," ",1),".",",")),0) -> 50 | J57: =IF(I57>0,ArraySep(H57," ",2),"") -> TL | K57: 50
A58: 376 | B58: Gürkan KALKAN | C58: YİYECEK İÇECEK DEPARTMANINDA ÇALIŞANLARIN BEŞ FAKTÖR KİŞİLİK ÖZELLİKLERİNİN HİZMET VERMEYE YATKINLIĞI VE İŞ TATMİNİ DÜZEYLERİ ARASINDAKİ İLİŞKİLERİ; KÜLTÜRLER ARASI KARŞILAŞTIRMALI BİR ARAŞTIRMA | D58: Gidiş | E58: Isparta | F58: Belek | G58: Karayolu | H58: 50.00 TL | I58: =IFERROR(VALUE(SUBSTITUTE(ArraySep(H58," ",1),".",",")),0) -> 50 | J58: =IF(I58>0,ArraySep(H58," ",2),"") -> TL | K58: 50
A59: 376 | B59: Gürkan KALKAN | C59: YİYECEK İÇECEK DEPARTMANINDA ÇALIŞANLARIN BEŞ FAKTÖR KİŞİLİK ÖZELLİKLERİNİN HİZMET VERMEYE YATKINLIĞI VE İŞ TATMİNİ DÜZEYLERİ ARASINDAKİ İLİŞKİLERİ; KÜLTÜRLER ARASI KARŞILAŞTIRMALI BİR ARAŞTIRMA | D59: Dönüş | E59: Belek | F59: Antalya | G59: Karayolu | H59: 50.00 TL | I59: =IFERROR(VALUE(SUBSTITUTE(ArraySep(H59," ",1),".",",")),0) -> 50 | J59: =IF(I59>0,ArraySep(H59," ",2),"") -> TL | K59: 50
A60: 376 | B60: Gürkan KALKAN | C60: YİYECEK İÇECEK DEPARTMANINDA ÇALIŞANLARIN BEŞ FAKTÖR KİŞİLİK ÖZELLİKLERİNİN HİZMET VERMEYE YATKINLIĞI VE İŞ TATMİNİ DÜZEYLERİ ARASINDAKİ İLİŞKİLERİ; KÜLTÜRLER ARASI KARŞILAŞTIRMALI BİR ARAŞTIRMA | D60: Gidiş | E60: Isparta | F60: Belek | G60: Karayolu | H60: 50.00 TL | I60: =IFERROR(VALUE(SUBSTITUTE(ArraySep(H60," ",1),".",",")),0) -> 50 | J60: =IF(I60>0,ArraySep(H60," ",2),"") -> TL | K60: 50
A61: 376 | B61: Gürkan KALKAN | C61: YİYECEK İÇECEK DEPARTMANINDA ÇALIŞANLARIN BEŞ FAKTÖR KİŞİLİK ÖZELLİKLERİNİN HİZMET VERMEYE YATKINLIĞI VE İŞ TATMİNİ DÜZEYLERİ ARASINDAKİ İLİŞKİLERİ; KÜLTÜRLER ARASI KARŞILAŞTIRMALI BİR ARAŞTIRMA | D61: Dönüş | E61: Belek | F61: Isparta | G61: Karayolu | H61: 50.00 TL | I61: =IFERROR(VALUE(SUBSTITUTE(ArraySep(H61," ",1),".",",")),0) -> 50 | J61: =IF(I61>0,ArraySep(H61," ",2),"") -> TL | K61: 50
A62: 377 | B62: Gürkan KALKAN | C62: YİYECEK İÇECEK DEPARTMANINDA ÇALIŞANLARIN BEŞ FAKTÖR KİŞİLİK ÖZELLİKLERİNİN HİZMET VERMEYE YATKINLIĞI VE İŞ TATMİNİ DÜZEYLERİ ARASINDAKİ İLİŞKİLERİ; KÜLTÜRLER ARASI KARŞILAŞTIRMALI BİR ARAŞTIRMA | D62: Gidiş | E62: Isparta | F62: Belek | G62: Karayolu | H62: 50.00 TL | I62: =IFERROR(VALUE(SUBSTITUTE(ArraySep(H62," ",1),".",",")),0) -> 50 | J62: =IF(I62>0,ArraySep(H62," ",2),"") -> TL | K62: 50
A63: 377 | B63: Gürkan KALKAN | C63: YİYECEK İÇECEK DEPARTMANINDA ÇALIŞANLARIN BEŞ FAKTÖR KİŞİLİK ÖZELLİKLERİNİN HİZMET VERMEYE YATKINLIĞI VE İŞ TATMİNİ DÜZEYLERİ ARASINDAKİ İLİŞKİLERİ; KÜLTÜRLER ARASI KARŞILAŞTIRMALI BİR ARAŞTIRMA | D63: Dönüş | E63: Belek | F63: Antalya | G63: Karayolu | H63: 50.00 TL | I63: =IFERROR(VALUE(SUBSTITUTE(ArraySep(H63," ",1),".",",")),0) -> 50 | J63: =IF(I63>0,ArraySep(H63," ",2),"") -> TL | K63: 50
A64: 377 | B64: Gürkan KALKAN | C64: YİYECEK İÇECEK DEPARTMANINDA ÇALIŞANLARIN BEŞ FAKTÖR KİŞİLİK ÖZELLİKLERİNİN HİZMET VERMEYE YATKINLIĞI VE İŞ TATMİNİ DÜZEYLERİ ARASINDAKİ İLİŞKİLERİ; KÜLTÜRLER ARASI KARŞILAŞTIRMALI BİR ARAŞTIRMA | D64: Gidiş | E64: Isparta | F64: Belek | G64: Karayolu | H64: 50.00 TL | I64: =IFERROR(VALUE(SUBSTITUTE(ArraySep(H64," ",1),".",",")),0) -> 50 | J64: =IF(I64>0,ArraySep(H64," ",2),"") -> TL | K64: 50
A65: 377 | B65: Gürkan KALKAN | C65: YİYECEK İÇECEK DEPARTMANINDA ÇALIŞANLARIN BEŞ FAKTÖR KİŞİLİK ÖZELLİKLERİNİN HİZMET VERMEYE YATKINLIĞI VE İŞ TATMİNİ DÜZEYLERİ ARASINDAKİ İLİŞKİLERİ; KÜLTÜRLER ARASI KARŞILAŞTIRMALI BİR ARAŞTIRMA | D65: Dönüş | E65: Belek | F65: Isparta | G65: Karayolu | H65: 50.00 TL | I65: =IFERROR(VALUE(SUBSTITUTE(ArraySep(H65," ",1),".",",")),0) -> 50 | J65: =IF(I65>0,ArraySep(H65," ",2),"") -> TL | K65: 50
A66: 377 | B66: Gürkan KALKAN | C66: YİYECEK İÇECEK DEPARTMANINDA ÇALIŞANLARIN BEŞ FAKTÖR KİŞİLİK ÖZELLİKLERİNİN HİZMET VERMEYE YATKINLIĞI VE İŞ TATMİNİ DÜZEYLERİ ARASINDAKİ İLİŞKİLERİ; KÜLTÜRLER ARASI KARŞILAŞTIRMALI BİR ARAŞTIRMA | D66: Gidiş | E66: Isparta | F66: Belek | G66: Karayolu | H66: 50.00 TL | I66: =IFERROR(VALUE(SUBSTITUTE(ArraySep(H66," ",1),".",",")),0) -> 50 | J66: =IF(I66>0,ArraySep(H66," ",2),"") -> TL | K66: 50
A67: 377 | B67: Gürkan KALKAN | C67: YİYECEK İÇECEK DEPARTMANINDA ÇALIŞANLARIN BEŞ FAKTÖR KİŞİLİK ÖZELLİKLERİNİN HİZMET VERMEYE YATKINLIĞI VE İŞ TATMİNİ DÜZEYLERİ ARASINDAKİ İLİŞKİLERİ; KÜLTÜRLER ARASI KARŞILAŞTIRMALI BİR ARAŞTIRMA | D67: Dönüş | E67: Belek | F67: Isparta | G67: Karayolu | H67: 50.00 TL | I67: =IFERROR(VALUE(SUBSTITUTE(ArraySep(H67," ",1),".",",")),0) -> 50 | J67: =IF(I67>0,ArraySep(H67," ",2),"") -> TL | K67: =I67*IF(J67="DOLAR",3,IF(J67="EURO",3.5,1)) -> 50
A68: 377 | B68: Gürkan KALKAN | C68: YİYECEK İÇECEK DEPARTMANINDA ÇALIŞANLARIN BEŞ FAKTÖR KİŞİLİK ÖZELLİKLERİNİN HİZMET VERMEYE YATKINLIĞI VE İŞ TATMİNİ DÜZEYLERİ ARASINDAKİ İLİŞKİLERİ; KÜLTÜRLER ARASI KARŞILAŞTIRMALI BİR ARAŞTIRMA | D68: Gidiş | E68: Isparta | F68: Belek | G68: Karayolu | H68: 50.00 TL | I68: =IFERROR(VALUE(SUBSTITUTE(ArraySep(H68," ",1),".",",")),0) -> 50 | J68: =IF(I68>0,ArraySep(H68," ",2),"") -> TL | K68: 50
A69: 377 | B69: Gürkan KALKAN | C69: YİYECEK İÇECEK DEPARTMANINDA ÇALIŞANLARIN BEŞ FAKTÖR KİŞİLİK ÖZELLİKLERİNİN HİZMET VERMEYE YATKINLIĞI VE İŞ TATMİNİ DÜZEYLERİ ARASINDAKİ İLİŞKİLERİ; KÜLTÜRLER ARASI KARŞILAŞTIRMALI BİR ARAŞTIRMA | D69: Dönüş | E69: Belek | F69: Antalya | G69: Karayolu | H69: 50.00 TL | I69: =IFERROR(VALUE(SUBSTITUTE(ArraySep(H69," ",1),".",",")),0) -> 50 | J69: =IF(I69>0,ArraySep(H69," ",2),"") -> TL | K69: 50
A70: 377 | B70: Gürkan KALKAN | C70: YİYECEK İÇECEK DEPARTMANINDA ÇALIŞANLARIN BEŞ FAKTÖR KİŞİLİK ÖZELLİKLERİNİN HİZMET VERMEYE YATKINLIĞI VE İŞ TATMİNİ DÜZEYLERİ ARASINDAKİ İLİŞKİLERİ; KÜLTÜRLER ARASI KARŞILAŞTIRMALI BİR ARAŞTIRMA | D70: Gidiş | E70: Isparta | F70: Belek | G70: Karayolu | H70: 50.00 TL | I70: =IFERROR(VALUE(SUBSTITUTE(ArraySep(H70," ",1),".",",")),0) -> 50 | J70: =IF(I70>0,ArraySep(H70," ",2),"") -> TL | K70: 50
A71: 377 | B71: Gürkan KALKAN | C71: YİYECEK İÇECEK DEPARTMANINDA ÇALIŞANLARIN BEŞ FAKTÖR KİŞİLİK ÖZELLİKLERİNİN HİZMET VERMEYE YATKINLIĞI VE İŞ TATMİNİ DÜZEYLERİ ARASINDAKİ İLİŞKİLERİ; KÜLTÜRLER ARASI KARŞILAŞTIRMALI BİR ARAŞTIRMA | D71: Dönüş | E71: Belek | F71: Isparta | G71: Karayolu | H71: 50.00 TL | I71: =IFERROR(VALUE(SUBSTITUTE(ArraySep(H71," ",1),".",",")),0) -> 50 | J71: =IF(I71>0,ArraySep(H71," ",2),"") -> TL | K71: 50
A72: 377 | B72: Gürkan KALKAN | C72: YİYECEK İÇECEK DEPARTMANINDA ÇALIŞANLARIN BEŞ FAKTÖR KİŞİLİK ÖZELLİKLERİNİN HİZMET VERMEYE YATKINLIĞI VE İŞ TATMİNİ DÜZEYLERİ ARASINDAKİ İLİŞKİLERİ; KÜLTÜRLER ARASI KARŞILAŞTIRMALI BİR ARAŞTIRMA | D72: Gidiş | E72: Isparta | F72: Belek | G72: Karayolu | H72: 50.00 TL | I72: =IFERROR(VALUE(SUBSTITUTE(ArraySep(H72," ",1),".",",")),0) -> 50 | J72: =IF(I72>0,ArraySep(H72," ",2),"") -> TL | K72: 50
A73: 377 | B73: Gürkan KALKAN | C73: YİYECEK İÇECEK DEPARTMANINDA ÇALIŞANLARIN BEŞ FAKTÖR KİŞİLİK ÖZELLİKLERİNİN HİZMET VERMEYE YATKINLIĞI VE İŞ TATMİNİ DÜZEYLERİ ARASINDAKİ İLİŞKİLERİ; KÜLTÜRLER ARASI KARŞILAŞTIRMALI BİR ARAŞTIRMA | D73: Dönüş | E73: Belek | F73: Isparta | G73: Karayolu | H73: 50.00 TL | I73: =IFERROR(VALUE(SUBSTITUTE(ArraySep(H73," ",1),".",",")),0) -> 50 | J73: =IF(I73>0,ArraySep(H73," ",2),"") -> TL | K73: 50
A74: 378 | B74: Gürkan KALKAN | C74: YİYECEK İÇECEK DEPARTMANINDA ÇALIŞANLARIN BEŞ FAKTÖR KİŞİLİK ÖZELLİKLERİNİN HİZMET VERMEYE YATKINLIĞI VE İŞ TATMİNİ DÜZEYLERİ ARASINDAKİ İLİŞKİLERİ; KÜLTÜRLER ARASI KARŞILAŞTIRMALI BİR ARAŞTIRMA | D74: Gidiş | E74: Isparta | F74: Belek | G74: Karayolu | H74: 50.00 TL | I74: =IFERROR(VALUE(SUBSTITUTE(ArraySep(H74," ",1),".",",")),0) -> 50 | J74: =IF(I74>0,ArraySep(H74," ",2),"") -> TL | K74: 50
A75: 378 | B75: Gürkan KALKAN | C75: YİYECEK İÇECEK DEPARTMANINDA ÇALIŞANLARIN BEŞ FAKTÖR KİŞİLİK ÖZELLİKLERİNİN HİZMET VERMEYE YATKINLIĞI VE İŞ TATMİNİ DÜZEYLERİ ARASINDAKİ İLİŞKİLERİ; KÜLTÜRLER ARASI KARŞILAŞTIRMALI BİR ARAŞTIRMA | D75: Dönüş | E75: Belek | F75: Isparta | G75: Karayolu | H75: 50.00 TL | I75: =IFERROR(VALUE(SUBSTITUTE(ArraySep(H75," ",1),".",",")),0) -> 50 | J75: =IF(I75>0,ArraySep(H75," ",2),"") -> TL | K75: 50
A76: 378 | B76: Gürkan KALKAN | C76: YİYECEK İÇECEK DEPARTMANINDA ÇALIŞANLARIN BEŞ FAKTÖR KİŞİLİK ÖZELLİKLERİNİN HİZMET VERMEYE YATKINLIĞI VE İŞ TATMİNİ DÜZEYLERİ ARASINDAKİ İLİŞKİLERİ; KÜLTÜRLER ARASI KARŞILAŞTIRMALI BİR ARAŞTIRMA | D76: Gidiş | E76: Isparta | F76: Belek | G76: Karayolu | H76: 50.00 TL | I76: =IFERROR(VALUE(SUBSTITUTE(ArraySep(H76," ",1),".",",")),0) -> 50 | J76: =IF(I76>0,ArraySep(H76," ",2),"") -> TL | K76: 50
A77: 378 | B77: Gürkan KALKAN | C77: YİYECEK İÇECEK DEPARTMANINDA ÇALIŞANLARIN BEŞ FAKTÖR KİŞİLİK ÖZELLİKLERİNİN HİZMET VERMEYE YATKINLIĞI VE İŞ TATMİNİ DÜZEYLERİ ARASINDAKİ İLİŞKİLERİ; KÜLTÜRLER ARASI KARŞILAŞTIRMALI BİR ARAŞTIRMA | D77: Dönüş | E77: Belek | F77: Isparta | G77: Karayolu | H77: 50.00 TL | I77: =IFERROR(VALUE(SUBSTITUTE(ArraySep(H77," ",1),".",",")),0) -> 50 | J77: =IF(I77>0,ArraySep(H77," ",2),"") -> TL | K77: 50
A78: 379 | B78: Gürkan KALKAN | C78: YİYECEK İÇECEK DEPARTMANINDA ÇALIŞANLARIN BEŞ FAKTÖR KİŞİLİK ÖZELLİKLERİNİN HİZMET VERMEYE YATKINLIĞI VE İŞ TATMİNİ DÜZEYLERİ ARASINDAKİ İLİŞKİLERİ; KÜLTÜRLER ARASI KARŞILAŞTIRMALI BİR ARAŞTIRMA | D78: Gidiş | E78: Isparta | F78: Belek | G78: Karayolu | H78: 50.00 TL | I78: =IFERROR(VALUE(SUBSTITUTE(ArraySep(H78," ",1),".",",")),0) -> 50 | J78: =IF(I78>0,ArraySep(H78," ",2),"") -> TL | K78: 50
A79: 379 | B79: Gürkan KALKAN | C79: YİYECEK İÇECEK DEPARTMANINDA ÇALIŞANLARIN BEŞ FAKTÖR KİŞİLİK ÖZELLİKLERİNİN HİZMET VERMEYE YATKINLIĞI VE İŞ TATMİNİ DÜZEYLERİ ARASINDAKİ İLİŞKİLERİ; KÜLTÜRLER ARASI KARŞILAŞTIRMALI BİR ARAŞTIRMA | D79: Dönüş | E79: Belek | F79: Isparta | G79: Karayolu | H79: 50.00 TL | I79: =IFERROR(VALUE(SUBSTITUTE(ArraySep(H79," ",1),".",",")),0) -> 50 | J79: =IF(I79>0,ArraySep(H79," ",2),"") -> TL | K79: 50
A80: 379 | B80: Gürkan KALKAN | C80: YİYECEK İÇECEK DEPARTMANINDA ÇALIŞANLARIN BEŞ FAKTÖR KİŞİLİK ÖZELLİKLERİNİN HİZMET VERMEYE YATKINLIĞI VE İŞ TATMİNİ DÜZEYLERİ ARASINDAKİ İLİŞKİLERİ; KÜLTÜRLER ARASI KARŞILAŞTIRMALI BİR ARAŞTIRMA | D80: Gidiş | E80: Isparta | F80: Belek | G80: Karayolu | H80: 50.00 TL | I80: =IFERROR(VALUE(SUBSTITUTE(ArraySep(H80," ",1),".",",")),0) -> 50 | J80: =IF(I80>0,ArraySep(H80," ",2),"") -> TL | K80: 50
A81: 379 | B81: Gürkan KALKAN | C81: YİYECEK İÇECEK DEPARTMANINDA ÇALIŞANLARIN BEŞ FAKTÖR KİŞİLİK ÖZELLİKLERİNİN HİZMET VERMEYE YATKINLIĞI VE İŞ TATMİNİ DÜZEYLERİ ARASINDAKİ İLİŞKİLERİ; KÜLTÜRLER ARASI KARŞILAŞTIRMALI BİR ARAŞTIRMA | D81: Dönüş | E81: Belek | F81: Isparta | G81: Karayolu | H81: 50.00 TL | I81: =IFERROR(VALUE(SUBSTITUTE(ArraySep(H81," ",1),".",",")),0) -> 50 | J81: =IF(I81>0,ArraySep(H81," ",2),"") -> TL | K81: 50
A82: 379 | B82: Gürkan KALKAN | C82: YİYECEK İÇECEK DEPARTMANINDA ÇALIŞANLARIN BEŞ FAKTÖR KİŞİLİK ÖZELLİKLERİNİN HİZMET VERMEYE YATKINLIĞI VE İŞ TATMİNİ DÜZEYLERİ ARASINDAKİ İLİŞKİLERİ; KÜLTÜRLER ARASI KARŞILAŞTIRMALI BİR ARAŞTIRMA | D82: Gidiş | E82: Isparta | F82: Belek | G82: Karayolu | H82: 50.00 TL | I82: =IFERROR(VALUE(SUBSTITUTE(ArraySep(H82," ",1),".",",")),0) -> 50 | J82: =IF(I82>0,ArraySep(H82," ",2),"") -> TL | K82: 50
A83: 379 | B83: Gürkan KALKAN | C83: YİYECEK İÇECEK DEPARTMANINDA ÇALIŞANLARIN BEŞ FAKTÖR KİŞİLİK ÖZELLİKLERİNİN HİZMET VERMEYE YATKINLIĞI VE İŞ TATMİNİ DÜZEYLERİ ARASINDAKİ İLİŞKİLERİ; KÜLTÜRLER ARASI KARŞILAŞTIRMALI BİR ARAŞTIRMA | D83: Dönüş | E83: Belek | F83: Isparta | G83: Karayolu | H83: 50.00 TL | I83: =IFERROR(VALUE(SUBSTITUTE(ArraySep(H83," ",1),".",",")),0) -> 50 | J83: =IF(I83>0,ArraySep(H83," ",2),"") -> TL | K83: 50
A84: 379 | B84: Gürkan KALKAN | C84: YİYECEK İÇECEK DEPARTMANINDA ÇALIŞANLARIN BEŞ FAKTÖR KİŞİLİK ÖZELLİKLERİNİN HİZMET VERMEYE YATKINLIĞI VE İŞ TATMİNİ DÜZEYLERİ ARASINDAKİ İLİŞKİLERİ; KÜLTÜRLER ARASI KARŞILAŞTIRMALI BİR ARAŞTIRMA | D84: Gidiş | E84: Isparta | F84: Belek | G84: Karayolu | H84: 50.00 TL | I84: =IFERROR(VALUE(SUBSTITUTE(ArraySep(H84," ",1),".",",")),0) -> 50 | J84: =IF(I84>0,ArraySep(H84," ",2),"") -> TL | K84: 50
A85: 379 | B85: Gürkan KALKAN | C85: YİYECEK İÇECEK DEPARTMANINDA ÇALIŞANLARIN BEŞ FAKTÖR KİŞİLİK ÖZELLİKLERİNİN HİZMET VERMEYE YATKINLIĞI VE İŞ TATMİNİ DÜZEYLERİ ARASINDAKİ İLİŞKİLERİ; KÜLTÜRLER ARASI KARŞILAŞTIRMALI BİR ARAŞTIRMA | D85: Dönüş | E85: Belek | F85: Isparta | G85: Karayolu | H85: 50.00 TL | I85: =IFERROR(VALUE(SUBSTITUTE(ArraySep(H85," ",1),".",",")),0) -> 50 | J85: =IF(I85>0,ArraySep(H85," ",2),"") -> TL | K85: 50
A86: 380 | B86: Gürkan KALKAN | C86: YİYECEK İÇECEK DEPARTMANINDA ÇALIŞANLARIN BEŞ FAKTÖR KİŞİLİK ÖZELLİKLERİNİN HİZMET VERMEYE YATKINLIĞI VE İŞ TATMİNİ DÜZEYLERİ ARASINDAKİ İLİŞKİLERİ; KÜLTÜRLER ARASI KARŞILAŞTIRMALI BİR ARAŞTIRMA | D86: Gidiş | E86: Isparta | F86: Belek | G86: Karayolu | H86: 50.00 TL | I86: =IFERROR(VALUE(SUBSTITUTE(ArraySep(H86," ",1),".",",")),0) -> 50 | J86: =IF(I86>0,ArraySep(H86," ",2),"") -> TL | K86: 50
A87: 380 | B87: Gürkan KALKAN | C87: YİYECEK İÇECEK DEPARTMANINDA ÇALIŞANLARIN BEŞ FAKTÖR KİŞİLİK ÖZELLİKLERİNİN HİZMET VERMEYE YATKINLIĞI VE İŞ TATMİNİ DÜZEYLERİ ARASINDAKİ İLİŞKİLERİ; KÜLTÜRLER ARASI KARŞILAŞTIRMALI BİR ARAŞTIRMA | D87: Dönüş | E87: Belek | F87: Isparta | G87: Karayolu | H87: 50.00 TL | I87: =IFERROR(VALUE(SUBSTITUTE(ArraySep(H87," ",1),".",",")),0) -> 50 | J87: =IF(I87>0,ArraySep(H87," ",2),"") -> TL | K87: 50
A88: 380 | B88: Gürkan KALKAN | C88: YİYECEK İÇECEK DEPARTMANINDA ÇALIŞANLARIN BEŞ FAKTÖR KİŞİLİK ÖZELLİKLERİNİN HİZMET VERMEYE YATKINLIĞI VE İŞ TATMİNİ DÜZEYLERİ ARASINDAKİ İLİŞKİLERİ; KÜLTÜRLER ARASI KARŞILAŞTIRMALI BİR ARAŞTIRMA | D88: Gidiş | E88: Isparta | F88: Belek | G88: Karayolu | H88: 50.00 TL | I88: =IFERROR(VALUE(SUBSTITUTE(ArraySep(H88," ",1),".",",")),0) -> 50 | J88: =IF(I88>0,ArraySep(H88," ",2),"") -> TL | K88: 50
A89: 380 | B89: Gürkan KALKAN | C89: YİYECEK İÇECEK DEPARTMANINDA ÇALIŞANLARIN BEŞ FAKTÖR KİŞİLİK ÖZELLİKLERİNİN HİZMET VERMEYE YATKINLIĞI VE İŞ TATMİNİ DÜZEYLERİ ARASINDAKİ İLİŞKİLERİ; KÜLTÜRLER ARASI KARŞILAŞTIRMALI BİR ARAŞTIRMA | D89: Dönüş | E89: Belek | F89: Isparta | G89: Karayolu | H89: 50.00 TL | I89: =IFERROR(VALUE(SUBSTITUTE(ArraySep(H89," ",1),".",",")),0) -> 50 | J89: =IF(I89>0,ArraySep(H89," ",2),"") -> TL | K89: 50
A90: 380 | B90: Gürkan KALKAN | C90: YİYECEK İÇECEK DEPARTMANINDA ÇALIŞANLARIN BEŞ FAKTÖR KİŞİLİK ÖZELLİKLERİNİN HİZMET VERMEYE YATKINLIĞI VE İŞ TATMİNİ DÜZEYLERİ ARASINDAKİ İLİŞKİLERİ; KÜLTÜRLER ARASI KARŞILAŞTIRMALI BİR ARAŞTIRMA | D90: Gidiş | E90: Isparta | F90: Belek | G90: Karayolu | H90: 50.00 TL | I90: =IFERROR(VALUE(SUBSTITUTE(ArraySep(H90," ",1),".",",")),0) -> 50 | J90: =IF(I90>0,ArraySep(H90," ",2),"") -> TL | K90: 50
A91: 380 | B91: Gürkan KALKAN | C91: YİYECEK İÇECEK DEPARTMANINDA ÇALIŞANLARIN BEŞ FAKTÖR KİŞİLİK ÖZELLİKLERİNİN HİZMET VERMEYE YATKINLIĞI VE İŞ TATMİNİ DÜZEYLERİ ARASINDAKİ İLİŞKİLERİ; KÜLTÜRLER ARASI KARŞILAŞTIRMALI BİR ARAŞTIRMA | D91: Dönüş | E91: Belek | F91: Isparta | G91: Karayolu | H91: 50.00 TL | I91: =IFERROR(VALUE(SUBSTITUTE(ArraySep(H91," ",1),".",",")),0) -> 50 | J91: =IF(I91>0,ArraySep(H91," ",2),"") -> TL | K91: 50
A92: 380 | B92: Gürkan KALKAN | C92: YİYECEK İÇECEK DEPARTMANINDA ÇALIŞANLARIN BEŞ FAKTÖR KİŞİLİK ÖZELLİKLERİNİN HİZMET VERMEYE YATKINLIĞI VE İŞ TATMİNİ DÜZEYLERİ ARASINDAKİ İLİŞKİLERİ; KÜLTÜRLER ARASI KARŞILAŞTIRMALI BİR ARAŞTIRMA | D92: Gidiş | E92: Isparta | F92: Belek | G92: Karayolu | H92: 50.00 TL | I92: =IFERROR(VALUE(SUBSTITUTE(ArraySep(H92," ",1),".",",")),0) -> 50 | J92: =IF(I92>0,ArraySep(H92," ",2),"") -> TL | K92: 50
A93: 380 | B93: Gürkan KALKAN | C93: YİYECEK İÇECEK DEPARTMANINDA ÇALIŞANLARIN BEŞ FAKTÖR KİŞİLİK ÖZELLİKLERİNİN HİZMET VERMEYE YATKINLIĞI VE İŞ TATMİNİ DÜZEYLERİ ARASINDAKİ İLİŞKİLERİ; KÜLTÜRLER ARASI KARŞILAŞTIRMALI BİR ARAŞTIRMA | D93: Dönüş | E93: Belek | F93: Isparta | G93: Karayolu | H93: 50.00 TL | I93: =IFERROR(VALUE(SUBSTITUTE(ArraySep(H93," ",1),".",",")),0) -> 50 | J93: =IF(I93>0,ArraySep(H93," ",2),"") -> TL | K93: 50
A94: 380 | B94: Gürkan KALKAN | C94: YİYECEK İÇECEK DEPARTMANINDA ÇALIŞANLARIN BEŞ FAKTÖR KİŞİLİK ÖZELLİKLERİNİN HİZMET VERMEYE YATKINLIĞI VE İŞ TATMİNİ DÜZEYLERİ ARASINDAKİ İLİŞKİLERİ; KÜLTÜRLER ARASI KARŞILAŞTIRMALI BİR ARAŞTIRMA | D94: Gidiş | E94: Isparta | F94: Belek | G94: Karayolu | H94: 50.00 TL | I94: =IFERROR(VALUE(SUBSTITUTE(ArraySep(H94," ",1),".",",")),0) -> 50 | J94: =IF(I94>0,ArraySep(H94," ",2),"") -> TL | K94: 50
A95: 380 | B95: Gürkan KALKAN | C95: YİYECEK İÇECEK DEPARTMANINDA ÇALIŞANLARIN BEŞ FAKTÖR KİŞİLİK ÖZELLİKLERİNİN HİZMET VERMEYE YATKINLIĞI VE İŞ TATMİNİ DÜZEYLERİ ARASINDAKİ İLİŞKİLERİ; KÜLTÜRLER ARASI KARŞILAŞTIRMALI BİR ARAŞTIRMA | D95: Dönüş | E95: Belek | F95: Isparta | G95: Karayolu | H95: 50.00 TL | I95: =IFERROR(VALUE(SUBSTITUTE(ArraySep(H95," ",1),".",",")),0) -> 50 | J95: =IF(I95>0,ArraySep(H95," ",2),"") -> TL | K95: 50
A96: 380 | B96: Gürkan KALKAN | C96: YİYECEK İÇECEK DEPARTMANINDA ÇALIŞANLARIN BEŞ FAKTÖR KİŞİLİK ÖZELLİKLERİNİN HİZMET VERMEYE YATKINLIĞI VE İŞ TATMİNİ DÜZEYLERİ ARASINDAKİ İLİŞKİLERİ; KÜLTÜRLER ARASI KARŞILAŞTIRMALI BİR ARAŞTIRMA | D96: Gidiş | E96: Isparta | F96: Belek | G96: Karayolu | H96: 50.00 TL | I96: =IFERROR(VALUE(SUBSTITUTE(ArraySep(H96," ",1),".",",")),0) -> 50 | J96: =IF(I96>0,ArraySep(H96," ",2),"") -> TL | K96: 50
A97: 380 | B97: Gürkan KALKAN | C97: YİYECEK İÇECEK DEPARTMANINDA ÇALIŞANLARIN BEŞ FAKTÖR KİŞİLİK ÖZELLİKLERİNİN HİZMET VERMEYE YATKINLIĞI VE İŞ TATMİNİ DÜZEYLERİ ARASINDAKİ İLİŞKİLERİ; KÜLTÜRLER ARASI KARŞILAŞTIRMALI BİR ARAŞTIRMA | D97: Dönüş | E97: Belek | F97: Isparta | G97: Karayolu | H97: 50.00 TL | I97: =IFERROR(VALUE(SUBSTITUTE(ArraySep(H97," ",1),".",",")),0) -> 50 | J97: =IF(I97>0,ArraySep(H97," ",2),"") -> TL | K97: 50
A98: 381 | B98: Yıldız BOLAT | C98: Balıkçılık Araştırma Grubu Toplantısı | D98: Gidiş | E98: 01.12.2016 | F98: 02.12.2016 | G98: Karayolu | H98: 50.00 TL | I98: =IFERROR(VALUE(SUBSTITUTE(ArraySep(H98," ",1),".",",")),0) -> 50 | J98: =IF(I98>0,ArraySep(H98," ",2),"") -> TL | K98: 50
A99: 381 | B99: Yıldız BOLAT | C99: Balıkçılık Araştırma Grubu Toplantısı | D99: Dönüş | E99: 2.12.2016 | F99: 3.12.2016 | G99: Karayolu | H99: 50.00 TL | I99: =IFERROR(VALUE(SUBSTITUTE(ArraySep(H99," ",1),".",",")),0) -> 50 | J99: =IF(I99>0,ArraySep(H99," ",2),"") -> TL | K99: 50
A100: 391 | B100: Hasan GÖKSU | C100: The Relationship Between Personality Traits of Employees and Service Orientation and Job Satisfaction in Food and Beverage Department: A Cross Cultural Research | D100: Gidiş | E100: Isparta | F100: İstanbul | G100: Uçak | H100: 95.00 TL | I100: =IFERROR(VALUE(SUBSTITUTE(ArraySep(H100," ",1),".",",")),0) -> 95 | J100: =IF(I100>0,ArraySep(H100," ",2),"") -> TL | K100: 95
A101: 391 | B101: Hasan GÖKSU | C101: The Relationship Between Personality Traits of Employees and Service Orientation and Job Satisfaction in Food and Beverage Department: A Cross Cultural Research | D101: Gidiş | E101: İstanbul | F101: Bangkok | G101: Uçak | H101: 1125.00 TL | I101: =IFERROR(VALUE(SUBSTITUTE(ArraySep(H101," ",1),".",",")),0) -> 1125 | J101: =IF(I101>0,ArraySep(H101," ",2),"") -> TL | K101: 1125
A102: 391 | B102: Hasan GÖKSU | C102: The Relationship Between Personality Traits of Employees and Service Orientation and Job Satisfaction in Food and Beverage Department: A Cross Cultural Research | D102: Dönüş | E102: Bangkok | F102: İstanbul | G102: Uçak | H102: 1125.00 TL | I102: =IFERROR(VALUE(SUBSTITUTE(ArraySep(H102," ",1),".",",")),0) -> 1125 | J102: =IF(I102>0,ArraySep(H102," ",2),"") -> TL | K102: 1125
A103: 391 | B103: Hasan GÖKSU | C103: The Relationship Between Personality Traits of Employees and Service Orientation and Job Satisfaction in Food and Beverage Department: A Cross Cultural Research | D103: Dönüş | E103: İstanbul | F103: Antalya | G103: Uçak | H103: 65.00 TL | I103: =IFERROR(VALUE(SUBSTITUTE(ArraySep(H103," ",1),".",",")),0) -> 65 | J103: =IF(I103>0,ArraySep(H103," ",2),"") -> TL | K103: 65
A104: 391 | B104: Hasan GÖKSU | C104: The Relationship Between Personality Traits of Employees and Service Orientation and Job Satisfaction in Food and Beverage Department: A Cross Cultural Research | D104: Dönüş | E104: Antalya | F104: Isparta | G104: Karayolu | H104: 20.00 TL | I104: =IFERROR(VALUE(SUBSTITUTE(ArraySep(H104," ",1),".",",")),0) -> 20 | J104: =IF(I104>0,ArraySep(H104," ",2),"") -> TL | K104: 20
A105: 392 | B105: Ahmet SONGUR | C105: 6th Annual International Conference on Humanities and Social Sciences | D105: Gidiş | E105: Isparta | F105: Antalya | G105: Karayolu | H105: 25.00 TL | I105: =IFERROR(VALUE(SUBSTITUTE(ArraySep(H105," ",1),".",",")),0) -> 25 | J105: =IF(I105>0,ArraySep(H105," ",2),"") -> TL | K105: 25
A106: 392 | B106: Ahmet SONGUR | C106: 6th Annual International Conference on Humanities and Social Sciences | D106: Gidiş | E106: Antalya | F106: Barselona | G106: Uçak | H106: 1000.00 TL | I106: =IFERROR(VALUE(SUBSTITUTE(ArraySep(H106," ",1),".",",")),0) -> 1000 | J106: =IF(I106>0,ArraySep(H106," ",2),"") -> TL | K106: 1000
A107: 392 | B107: Ahmet SONGUR | C107: 6th Annual International Conference on Humanities and Social Sciences | D107: Dönüş | E107: Barselona | F107: Antalya | G107: Uçak | H107: 1000.00 TL | I107: =IFERROR(VALUE(SUBSTITUTE(ArraySep(H107," ",1),".",",")),0) -> 1000 | J107: =IF(I107>0,ArraySep(H107," ",2),"") -> TL | K107: 1000
A108: 392 | B108: Ahmet SONGUR | C108: 6th Annual International Conference on Humanities and Social Sciences | D108: Dönüş | E108: Antalya | F108: Isparta | G108: Karayolu | H108: 25.00 TL | I108: =IFERROR(VALUE(SUBSTITUTE(ArraySep(H108," ",1),".",",")),0) -> 25 | J108: =IF(I108>0,ArraySep(H108," ",2),"") -> TL | K108: 25
A109: 393 | B109: Nedret ÇAĞLAR | C109: Mesleki görgü ve bilgi birikimimi geliştirmek ve medya faaliyetleri hakkında bilgi edinmek amacıyla, İspanya'nın Madrid ve Barcelona şehirlerini performansımdan karşılanmak üzere ziyaret etmek. | D109: Gidiş | E109: Isparta | F109: İstanbul | G109: Uçak | H109: 125.00 TL | I109: =IFERROR(VALUE(SUBSTITUTE(ArraySep(H109," ",1),".",",")),0) -> 125 | J109: =IF(I109>0,ArraySep(H109," ",2),"") -> TL | K109: 125
A110: 393 | B110: Nedret ÇAĞLAR | C110: Mesleki görgü ve bilgi birikimimi geliştirmek ve medya faaliyetleri hakkında bilgi edinmek amacıyla, İspanya'nın Madrid ve Barcelona şehirlerini performansımdan karşılanmak üzere ziyaret etmek. | D110: Gidiş | E110: İstanbul | F110: Madrid | G110: Uçak | H110: 400.00 TL | I110: =IFERROR(VALUE(SUBSTITUTE(ArraySep(H110," ",1),".",",")),0) -> 400 | J110: =IF(I110>0,ArraySep(H110," ",2),"") -> TL | K110: 400
A111: 393 | B111: Nedret ÇAĞLAR | C111: Mesleki görgü ve bilgi birikimimi geliştirmek ve medya faaliyetleri hakkında bilgi edinmek amacıyla, İspanya'nın Madrid ve Barcelona şehirlerini performansımdan karşılanmak üzere ziyaret etmek. | D111: Dönüş | E111: Barcelona | F111: İstanbul | G111: Uçak | H111: 400.00 TL | I111: =IFERROR(VALUE(SUBSTITUTE(ArraySep(H111," ",1),".",",")),0) -> 400 | J111: =IF(I111>0,ArraySep(H111," ",2),"") -> TL | K111: 400
A112: 393 | B112: Nedret ÇAĞLAR | C112: Mesleki görgü ve bilgi birikimimi geliştirmek ve medya faaliyetleri hakkında bilgi edinmek amacıyla, İspanya'nın Madrid ve Barcelona şehirlerini performansımdan karşılanmak üzere ziyaret etmek. | D112: Dönüş | E112: İstanbul | F112: Isparta | G112: Uçak | H112: 125.00 TL | I112: =IFERROR(VALUE(SUBSTITUTE(ArraySep(H112," ",1),".",",")),0) -> 125 | J112: =IF(I112>0,ArraySep(H112," ",2),"") -> TL | K112: 125
A113: 393 | B113: Nedret ÇAĞLAR | C113: Mesleki görgü ve bilgi birikimimi geliştirmek ve medya faaliyetleri hakkında bilgi edinmek amacıyla, İspanya'nın Madrid ve Barcelona şehirlerini performansımdan karşılanmak üzere ziyaret etmek. | D113: Gidiş | E113: Isparta | F113: İstanbul | G113: Uçak | H113: 125.00 TL | I113: =IFERROR(VALUE(SUBSTITUTE(ArraySep(H113," ",1),".",",")),0) -> 125 | J113: =IF(I113>0,ArraySep(H113," ",2),"") -> TL | K113: 125
A114: 393 | B114: Nedret ÇAĞLAR | C114: Mesleki görgü ve bilgi birikimimi geliştirmek ve medya faaliyetleri hakkında bilgi edinmek amacıyla, İspanya'nın Madrid ve Barcelona şehirlerini performansımdan karşılanmak üzere ziyaret etmek. | D114: Gidiş | E114: İstanbul | F114: Madrid | G114: Uçak | H114: 400.00 TL | I114: =IFERROR(VALUE(SUBSTITUTE(ArraySep(H114," ",1),".",",")),0) -> 400 | J114: =IF(I114>0,ArraySep(H114," ",2),"") -> TL | K114: 400
A115: 393 | B115: Nedret ÇAĞLAR | C115: Mesleki görgü ve bilgi birikimimi geliştirmek ve medya faaliyetleri hakkında bilgi edinmek amacıyla, İspanya'nın Madrid ve Barcelona şehirlerini performansımdan karşılanmak üzere ziyaret etmek. | D115: Dönüş | E115: Barcelona | F115: İstanbul | G115: Uçak | H115: 400.00 TL | I115: =IFERROR(VALUE(SUBSTITUTE(ArraySep(H115," ",1),".",",")),0) -> 400 | J115: =IF(I115>0,ArraySep(H115," ",2),"") -> TL | K115: 400
A116: 393 | B116: Nedret ÇAĞLAR | C116: Mesleki görgü ve bilgi birikimimi geliştirmek ve medya faaliyetleri hakkında bilgi edinmek amacıyla, İspanya'nın Madrid ve Barcelona şehirlerini performansımdan karşılanmak üzere ziyaret etmek. | D116: Dönüş | E116: İstanbul | F116: Isparta | G116: Uçak | H116: 125.00 TL | I116: =IFERROR(VALUE(SUBSTITUTE(ArraySep(H116," ",1),".",",")),0) -> 125 | J116: =IF(I116>0,ArraySep(H116," ",2),"") -> TL | K116: 125
A117: 395 | B117: İbrahim DEMİRTAŞ | C117: 6th Annual International Conference on Humanities and Social Sciences | D117: Gidiş | E117: ısparta | F117: Antalya | G117: Karayolu | H117: 25.00 TL | I117: =IFERROR(VALUE(SUBSTITUTE(ArraySep(H117," ",1),".",",")),0) -> 25 | J117: =IF(I117>0,ArraySep(H117," ",2),"") -> TL | K117: 25
A118: 395 | B118: İbrahim DEMİRTAŞ | C118: 6th Annual International Conference on Humanities and Social Sciences | D118: Gidiş | E118: Antalya | F118: Barselona | G118: Uçak | H118: 1000.00 TL | I118: =IFERROR(VALUE(SUBSTITUTE(ArraySep(H118," ",1),".",",")),0) -> 1000 | J118: =IF(I118>0,ArraySep(H118," ",2),"") -> TL | K118: 1000
A119: 395 | B119: İbrahim DEMİRTAŞ | C119: 6th Annual International Conference on Humanities and Social Sciences | D119: Dönüş | E119: Barselona | F119: Antalya | G119: Uçak | H119: 1000.00 TL | I119: =IFERROR(VALUE(SUBSTITUTE(ArraySep(H119," ",1),".",",")),0) -> 1000 | J119: =IF(I119>0,ArraySep(H119," ",2),"") -> TL | K119: 1000
A120: 395 | B120: İbrahim DEMİRTAŞ | C120: 6th Annual International Conference on Humanities and Social Sciences | D120: Dönüş | E120: Antalya | F120: Isparta | G120: Karayolu | H120: 25.00 TL | I120: =IFERROR(VALUE(SUBSTITUTE(ArraySep(H120," ",1),".",",")),0) -> 25 | J120: =IF(I120>0,ArraySep(H120," ",2),"") -> TL | K120: 25
A121: 396 | B121: Deniz AKBAY | C121: Afyon Kocatepe Üniversitesi Doğal Taş Analiz Laboratuvarı doktora tez çalışması kapsamında deney yapma | D121: Gidiş | E121: Ev | F121: Isparta Otogar | G121: Karayolu | H121: 10.00 TL | I121: =IFERROR(VALUE(SUBSTITUTE(ArraySep(H121," ",1),".",",")),0) -> 10 | J121: =IF(I121>0,ArraySep(H121," ",2),"") -> TL | K121: 10
A122: 396 | B122: Deniz AKBAY | C122: Afyon Kocatepe Üniversitesi Doğal Taş Analiz Laboratuvarı doktora tez çalışması kapsamında deney yapma | D122: Gidiş | E122: Isparta Otogar | F122: Afyonkarahisar Otogar | G122: Karayolu | H122: 30.00 TL | I122: =IFERROR(VALUE(SUBSTITUTE(ArraySep(H122," ",1),".",",")),0) -> 30 | J122: =IF(I122>0,ArraySep(H122," ",2),"") -> TL | K122: 30
A123: 396 | B123: Deniz AKBAY | C123: Afyon Kocatepe Üniversitesi Doğal Taş Analiz Laboratuvarı doktora tez çalışması kapsamında deney yapma | D123: Gidiş | E123: Afyonkarahisar Otogar | F123: Afyon Kocatepe Üniversitesi | G123: Karayolu | H123: 10.00 TL | I123: =IFERROR(VALUE(SUBSTITUTE(ArraySep(H123," ",1),".",",")),0) -> 10 | J123: =IF(I123>0,ArraySep(H123," ",2),"") -> TL | K123: 10
A124: 396 | B124: Deniz AKBAY | C124: Afyon Kocatepe Üniversitesi Doğal Taş Analiz Laboratuvarı doktora tez çalışması kapsamında deney yapma | D124: Dönüş | E124: Afyon Kocatepe Üniversitesi | F124: Afyonkarahisar Otogar | G124: Karayolu | H124: 10.00 TL | I124: =IFERROR(VALUE(SUBSTITUTE(ArraySep(H124," ",1),".",",")),0) -> 10 | J124: =IF(I124>0,ArraySep(H124," ",2),"") -> TL | K124: 10
A125: 396 | B125: Deniz AKBAY | C125: Afyon Kocatepe Üniversitesi Doğal Taş Analiz Laboratuvarı doktora tez çalışması kapsamında deney yapma | D125: Dönüş | E125: Afyonkarahisar Otogar | F125: Isparta Otogar | G125: Karayolu | H125: 30.00 TL | I125: =IFERROR(VALUE(SUBSTITUTE(ArraySep(H125," ",1),".",",")),0) -> 30 | J125: =IF(I125>0,ArraySep(H125," ",2),"") -> TL | K125: 30
A126: 396 | B126: Deniz AKBAY | C126: Afyon Kocatepe Üniversitesi Doğal Taş Analiz Laboratuvarı doktora tez çalışması kapsamında deney yapma | D126: Dönüş | E126: Isparta Otogar | F126: Ev | G126: Karayolu | H126: 10.00 TL | I126: =IFERROR(VALUE(SUBSTITUTE(ArraySep(H126," ",1),".",",")),0) -> 10 | J126: =IF(I126>0,ArraySep(H126," ",2),"") -> TL | K126: 10
A127: 399 | B127: Deniz AKBAY | C127: Denizli Pamukkale Üniversitesi Jeoloji Mühendisliği Laboratuvarı’nda doktora tez çalışması kapsamında deney yapmak | D127: Gidiş | E127: Ev | F127: Isparta Otogar | G127: Karayolu | H127: 10.00 TL | I127: =IFERROR(VALUE(SUBSTITUTE(ArraySep(H127," ",1),".",",")),0) -> 10 | J127: =IF(I127>0,ArraySep(H127," ",2),"") -> TL | K127: 10
A128: 399 | B128: Deniz AKBAY | C128: Denizli Pamukkale Üniversitesi Jeoloji Mühendisliği Laboratuvarı’nda doktora tez çalışması kapsamında deney yapmak | D128: Gidiş | E128: Isparta Otogar | F128: Denizli Otogar | G128: Karayolu | H128: 33.00 TL | I128: =IFERROR(VALUE(SUBSTITUTE(ArraySep(H128," ",1),".",",")),0) -> 33 | J128: =IF(I128>0,ArraySep(H128," ",2),"") -> TL | K128: 33
A129: 399 | B129: Deniz AKBAY | C129: Denizli Pamukkale Üniversitesi Jeoloji Mühendisliği Laboratuvarı’nda doktora tez çalışması kapsamında deney yapmak | D129: Gidiş | E129: Denizli Otogar | F129: Pamukkale Üniversitesi | G129: Karayolu | H129: 10.00 TL | I129: =IFERROR(VALUE(SUBSTITUTE(ArraySep(H129," ",1),".",",")),0) -> 10 | J129: =IF(I129>0,ArraySep(H129," ",2),"") -> TL | K129: 10
A130: 399 | B130: Deniz AKBAY | C130: Denizli Pamukkale Üniversitesi Jeoloji Mühendisliği Laboratuvarı’nda doktora tez çalışması kapsamında deney yapmak | D130: Dönüş | E130: Pamukkale Üniversitesi | F130: Denizli Otogar | G130: Karayolu | H130: 10.00 TL | I130: =IFERROR(VALUE(SUBSTITUTE(ArraySep(H130," ",1),".",",")),0) -> 10 | J130: =IF(I130>0,ArraySep(H130," ",2),"") -> TL | K130: 10
A131: 399 | B131: Deniz AKBAY | C131: Denizli Pamukkale Üniversitesi Jeoloji Mühendisliği Laboratuvarı’nda doktora tez çalışması kapsamında deney yapmak | D131: Dönüş | E131: Denizli Otogar | F131: Isparta Otogar | G131: Karayolu | H131: 33.00 TL | I131: =IFERROR(VALUE(SUBSTITUTE(ArraySep(H131," ",1),".",",")),0) -> 33 | J131: =IF(I131>0,ArraySep(H131," ",2),"") -> TL | K131: =I131*IF(J131="DOLAR",3,IF(J131="EURO",3.5,1)) -> 33
A132: 399 | B132: Deniz AKBAY | C132: Denizli Pamukkale Üniversitesi Jeoloji Mühendisliği Laboratuvarı’nda doktora tez çalışması kapsamında deney yapmak | D132: Dönüş | E132: Isparta Otogar | F132: Ev | G132: Karayolu | H132: 10.00 TL | I132: =IFERROR(VALUE(SUBSTITUTE(ArraySep(H132," ",1),".",",")),0) -> 10 | J132: =IF(I132>0,ArraySep(H132," ",2),"") -> TL | K132: 10
A133: 400 | B133: Deniz AKBAY | C133: Antalya Akdeniz Üniversitesi Jeoloji Mühendisliği Laboratuvarı’nda doktora tez çalışması kapsamında deney yapmak | D133: Gidiş | E133: Ev | F133: Isparta Otogar | G133: Karayolu | H133: 10.00 TL | I133: =IFERROR(VALUE(SUBSTITUTE(ArraySep(H133," ",1),".",",")),0) -> 10 | J133: =IF(I133>0,ArraySep(H133," ",2),"") -> TL | K133: 10
A134: 400 | B134: Deniz AKBAY | C134: Antalya Akdeniz Üniversitesi Jeoloji Mühendisliği Laboratuvarı’nda doktora tez çalışması kapsamında deney yapmak | D134: Gidiş | E134: Isparta Otogar | F134: Antalya Otogar | G134: Karayolu | H134: 20.00 TL | I134: =IFERROR(VALUE(SUBSTITUTE(ArraySep(H134," ",1),".",",")),0) -> 20 | J134: =IF(I134>0,ArraySep(H134," ",2),"") -> TL | K134: 20
A135: 400 | B135: Deniz AKBAY | C135: Antalya Akdeniz Üniversitesi Jeoloji Mühendisliği Laboratuvarı’nda doktora tez çalışması kapsamında deney yapmak | D135: Gidiş | E135: Antalya Otogar | F135: Akdeniz Üniversitesi | G135: Karayolu | H135: 10.00 TL | I135: =IFERROR(VALUE(SUBSTITUTE(ArraySep(H135," ",1),".",",")),0) -> 10 | J135: =IF(I135>0,ArraySep(H135," ",2),"") -> TL | K135: 10
A136: 400 | B136: Deniz AKBAY | C136: Antalya Akdeniz Üniversitesi Jeoloji Mühendisliği Laboratuvarı’nda doktora tez çalışması kapsamında deney yapmak | D136: Dönüş | E136: Akdeniz Üniversitesi | F136: Antalya Otogar | G136: Karayolu | H136: 10.00 TL | I136: =IFERROR(VALUE(SUBSTITUTE(ArraySep(H136," ",1),".",",")),0) -> 10 | J136: =IF(I136>0,ArraySep(H136," ",2),"") -> TL | K136: 10
A137: 400 | B137: Deniz AKBAY | C137: Antalya Akdeniz Üniversitesi Jeoloji Mühendisliği Laboratuvarı’nda doktora tez çalışması kapsamında deney yapmak | D137: Dönüş | E137: Antalya Otogar | F137: Isparta Otogar | G137: Karayolu | H137: 20.00 TL | I137: =IFERROR(VALUE(SUBSTITUTE(ArraySep(H137," ",1),".",",")),0) -> 20 | J137: =IF(I137>0,ArraySep(H137," ",2),"") -> TL | K137: 20
A138: 400 | B138: Deniz AKBAY | C138: Antalya Akdeniz Üniversitesi Jeoloji Mühendisliği Laboratuvarı’nda doktora tez çalışması kapsamında deney yapmak | D138: Dönüş | E138: Isparta Otogar | F138: Ev | G138: Karayolu | H138: 10.00 TL | I138: =IFERROR(VALUE(SUBSTITUTE(ArraySep(H138," ",1),".",",")),0) -> 10 | J138: =IF(I138>0,ArraySep(H138," ",2),"") -> TL | K138: 10
A139: 402 | B139: İbrahim ÖZDEMİR | C139: TÜBİTAK 1001 Projesi Arazi Çalışması | D139: Gidiş | E139: Isparta | F139: Fethiye | G139: Karayolu | H139: 125.00 TL | I139: =IFERROR(VALUE(SUBSTITUTE(ArraySep(H139," ",1),".",",")),0) -> 125 | J139: =IF(I139>0,ArraySep(H139," ",2),"") -> TL | K139: 125
A140: 402 | B140: İbrahim ÖZDEMİR | C140: TÜBİTAK 1001 Projesi Arazi Çalışması | D140: Dönüş | E140: Fethiye | F140: Isparta | G140: Karayolu | H140: 125.00 TL | I140: =IFERROR(VALUE(SUBSTITUTE(ArraySep(H140," ",1),".",",")),0) -> 125 | J140: =IF(I140>0,ArraySep(H140," ",2),"") -> TL | K140: 125
A141: 402 | B141: İbrahim ÖZDEMİR | C141: TÜBİTAK 1001 Projesi Arazi Çalışması | D141: Gidiş | E141: Isparta | F141: Fethiye | G141: Karayolu | H141: 125.00 TL | I141: =IFERROR(VALUE(SUBSTITUTE(ArraySep(H141," ",1),".",",")),0) -> 125 | J141: =IF(I141>0,ArraySep(H141," ",2),"") -> TL | K141: 125
A142: 402 | B142: İbrahim ÖZDEMİR | C142: TÜBİTAK 1001 Projesi Arazi Çalışması | D142: Dönüş | E142: Fethiye | F142: Isparta | G142: Karayolu | H142: 125.00 TL | I142: =IFERROR(VALUE(SUBSTITUTE(ArraySep(H142," ",1),".",",")),0) -> 125 | J142: =IF(I142>0,ArraySep(H142," ",2),"") -> TL | K142: 125
A143: 403 | B143: İbrahim ÖZDEMİR | C143: TÜBİTAK 1001 Projesi arazi çalışması | D143: Gidiş | E143: Isparta | F143: Fethiye | G143: Karayolu | H143: 125.00 TL | I143: =IFERROR(VALUE(SUBSTITUTE(ArraySep(H143," ",1),".",",")),0) -> 125 | J143: =IF(I143>0,ArraySep(H143," ",2),"") -> TL | K143: 125
A144: 403 | B144: İbrahim ÖZDEMİR | C144: TÜBİTAK 1001 Projesi arazi çalışması | D144: Dönüş | E144: Fethiye | F144: Isparta | G144: Karayolu | H144: 125.00 TL | I144: =IFERROR(VALUE(SUBSTITUTE(ArraySep(H144," ",1),".",",")),0) -> 125 | J144: =IF(I144>0,ArraySep(H144," ",2),"") -> TL | K144: 125
A145: 403 | B145: İbrahim ÖZDEMİR | C145: TÜBİTAK 1001 Projesi arazi çalışması | D145: Gidiş | E145: Isparta | F145: Fethiye | G145: Karayolu | H145: 125.00 TL | I145: =IFERROR(VALUE(SUBSTITUTE(ArraySep(H145," ",1),".",",")),0) -> 125 | J145: =IF(I145>0,ArraySep(H145," ",2),"") -> TL | K145: 125
A146: 403 | B146: İbrahim ÖZDEMİR | C146: TÜBİTAK 1001 Projesi arazi çalışması | D146: Dönüş | E146: Fethiye | F146: Isparta | G146: Karayolu | H146: 125.00 TL | I146: =IFERROR(VALUE(SUBSTITUTE(ArraySep(H146," ",1),".",",")),0) -> 125 | J146: =IF(I146>0,ArraySep(H146," ",2),"") -> TL | K146: 125
A147: 406 | B147: Bilgehan İlker HARMAN | C147: 114Y598 nolu TÜBİTAK Proje Toplantısı | D147: Gidiş | E147: Isparta | F147: Antalya | G147: Özel Araç | H147: 35.00 TL | I147: =IFERROR(VALUE(SUBSTITUTE(ArraySep(H147," ",1),".",",")),0) -> 35 | J147: =IF(I147>0,ArraySep(H147," ",2),"") -> TL | K147: 35
A148: 406 | B148: Bilgehan İlker HARMAN | C148: 114Y598 nolu TÜBİTAK Proje Toplantısı | D148: Gidiş | E148: Antalya | F148: Tel Aviv | G148: Uçak | H148: 600.00 TL | I148: =IFERROR(VALUE(SUBSTITUTE(ArraySep(H148," ",1),".",",")),0) -> 600 | J148: =IF(I148>0,ArraySep(H148," ",2),"") -> TL | K148: 600
A149: 406 | B149: Bilgehan İlker HARMAN | C149: 114Y598 nolu TÜBİTAK Proje Toplantısı | D149: Dönüş | E149: Tel Aviv | F149: Antalya | G149: Uçak | H149: 0.00 TL | I149: =IFERROR(VALUE(SUBSTITUTE(ArraySep(H149," ",1),".",",")),0) -> 0 | J149: =IF(I149>0,ArraySep(H149," ",2),"") ->  | K149: 0
A150: 406 | B150: Bilgehan İlker HARMAN | C150: 114Y598 nolu TÜBİTAK Proje Toplantısı | D150: Dönüş | E150: Antalya | F150: Isparta | G150: Özel Araç | H150: 35.00 TL | I150: =IFERROR(VALUE(SUBSTITUTE(ArraySep(H150," ",1),".",",")),0) -> 35 | J150: =IF(I150>0,ArraySep(H150," ",2),"") -> TL | K150: 35
A151: 406 | B151: Bilgehan İlker HARMAN | C151: 114Y598 nolu TÜBİTAK Proje Toplantısı | D151: Gidiş | E151: Isparta | F151: Antalya | G151: Özel Araç | H151: 35.00 TL | I151: =IFERROR(VALUE(SUBSTITUTE(ArraySep(H151," ",1),".",",")),0) -> 35 | J151: =IF(I151>0,ArraySep(H151," ",2),"") -> TL | K151: 35
A152: 406 | B152: Bilgehan İlker HARMAN | C152: 114Y598 nolu TÜBİTAK Proje Toplantısı | D152: Gidiş | E152: Antalya | F152: Tel Aviv | G152: Uçak | H152: 600.00 TL | I152: =IFERROR(VALUE(SUBSTITUTE(ArraySep(H152," ",1),".",",")),0) -> 600 | J152: =IF(I152>0,ArraySep(H152," ",2),"") -> TL | K152: 600
A153: 406 | B153: Bilgehan İlker HARMAN | C153: 114Y598 nolu TÜBİTAK Proje Toplantısı | D153: Dönüş | E153: Tel Aviv | F153: Antalya | G153: Uçak | H153: 0.00 TL | I153: =IFERROR(VALUE(SUBSTITUTE(ArraySep(H153," ",1),".",",")),0) -> 0 | J153: =IF(I153>0,ArraySep(H153," ",2),"") ->  | K153: 0
A154: 406 | B154: Bilgehan İlker HARMAN | C154: 114Y598 nolu TÜBİTAK Proje Toplantısı | D154: Dönüş | E154: Antalya | F154: Isparta | G154: Özel Araç | H154: 35.00 TL | I154: =IFERROR(VALUE(SUBSTITUTE(ArraySep(H154," ",1),".",",")),0) -> 35 | J154: =IF(I154>0,ArraySep(H154," ",2),"") -> TL | K154: 35
A155: 407 | B155: Halil SÜEL | C155: Biyolojik Çeşitlilik Ölçüm Süreçleri: Envanter, Veri Transfer ve Hesaplama Teknikleri Projesi | D155: Gidiş | E155: Isparta | F155: Antalya | G155: Özel Araç | H155: 0.00 TL | I155: =IFERROR(VALUE(SUBSTITUTE(ArraySep(H155," ",1),".",",")),0) -> 0 | J155: =IF(I155>0,ArraySep(H155," ",2),"") ->  | K155: 0
A156: 407 | B156: Halil SÜEL | C156: Biyolojik Çeşitlilik Ölçüm Süreçleri: Envanter, Veri Transfer ve Hesaplama Teknikleri Projesi | D156: Dönüş | E156: Antalya | F156: Isparta | G156: Özel Araç | H156: 0.00 TL | I156: =IFERROR(VALUE(SUBSTITUTE(ArraySep(H156," ",1),".",",")),0) -> 0 | J156: =IF(I156>0,ArraySep(H156," ",2),"") ->  | K156: 0
A157: 407 | B157: Halil SÜEL | C157: Biyolojik Çeşitlilik Ölçüm Süreçleri: Envanter, Veri Transfer ve Hesaplama Teknikleri Projesi | D157: Gidiş | E157: Isparta | F157: Antalya | G157: Özel Araç | H157: 0.00 TL | I157: =IFERROR(VALUE(SUBSTITUTE(ArraySep(H157," ",1),".",",")),0) -> 0 | J157: =IF(I157>0,ArraySep(H157," ",2),"") ->  | K157: 0
A158: 407 | B158: Halil SÜEL | C158: Biyolojik Çeşitlilik Ölçüm Süreçleri: Envanter, Veri Transfer ve Hesaplama Teknikleri Projesi | D158: Dönüş | E158: Antalya | F158: Isparta | G158: Özel Araç | H158: 0.00 TL | I158: =IFERROR(VALUE(SUBSTITUTE(ArraySep(H158," ",1),".",",")),0) -> 0 | J158: =IF(I158>0,ArraySep(H158," ",2),"") ->  | K158: 0
A159: 408 | B159: Nevzat Özgü YİĞİT | C159: 114Y598 nolu TÜBİTAK proje Toplantısı | D159: Gidiş | E159: Isparta | F159: Antalya | G159: Özel Araç | H159: 0.00 TL | I159: =IFERROR(VALUE(SUBSTITUTE(ArraySep(H159," ",1),".",",")),0) -> 0 | J159: =IF(I159>0,ArraySep(H159," ",2),"") ->  | K159: 0
A160: 408 | B160: Nevzat Özgü YİĞİT | C160: 114Y598 nolu TÜBİTAK proje Toplantısı | D160: Gidiş | E160: Antalya | F160: Tel Aviv | G160: Uçak | H160: 300.00 TL | I160: =IFERROR(VALUE(SUBSTITUTE(ArraySep(H160," ",1),".",",")),0) -> 300 | J160: =IF(I160>0,ArraySep(H160," ",2),"") -> TL | K160: 300
A161: 408 | B161: Nevzat Özgü YİĞİT | C161: 114Y598 nolu TÜBİTAK proje Toplantısı | D161: Dönüş | E161: Tel Aviv | F161: Antalya | G161: Uçak | H161: 300.00 TL | I161: =IFERROR(VALUE(SUBSTITUTE(ArraySep(H161," ",1),".",",")),0) -> 300 | J161: =IF(I161>0,ArraySep(H161," ",2),"") -> TL | K161: 300
A162: 408 | B162: Nevzat Özgü YİĞİT | C162: 114Y598 nolu TÜBİTAK proje Toplantısı | D162: Dönüş | E162: Antalya | F162: Isparta | G162: Özel Araç | H162: 0.00 TL | I162: =IFERROR(VALUE(SUBSTITUTE(ArraySep(H162," ",1),".",",")),0) -> 0 | J162: =IF(I162>0,ArraySep(H162," ",2),"") ->  | K162: 0
A163: 408 | B163: Nevzat Özgü YİĞİT | C163: 114Y598 nolu TÜBİTAK proje Toplantısı | D163: Gidiş | E163: Isparta | F163: Antalya | G163: Özel Araç | H163: 0.00 TL | I163: =IFERROR(VALUE(SUBSTITUTE(ArraySep(H163," ",1),".",",")),0) -> 0 | J163: =IF(I163>0,ArraySep(H163," ",2),"") ->  | K163: 0
A164: 408 | B164: Nevzat Özgü YİĞİT | C164: 114Y598 nolu TÜBİTAK proje Toplantısı | D164: Gidiş | E164: Antalya | F164: Tel Aviv | G164: Uçak | H164: 300.00 TL | I164: =IFERROR(VALUE(SUBSTITUTE(ArraySep(H164," ",1),".",",")),0) -> 300 | J164: =IF(I164>0,ArraySep(H164," ",2),"") -> TL | K164: 300
A165: 408 | B165: Nevzat Özgü YİĞİT | C165: 114Y598 nolu TÜBİTAK proje Toplantısı | D165: Dönüş | E165: Tel Aviv | F165: Antalya | G165: Uçak | H165: 300.00 TL | I165: =IFERROR(VALUE(SUBSTITUTE(ArraySep(H165," ",1),".",",")),0) -> 300 | J165: =IF(I165>0,ArraySep(H165," ",2),"") -> TL | K165: 300
A166: 408 | B166: Nevzat Özgü YİĞİT | C166: 114Y598 nolu TÜBİTAK proje Toplantısı | D166: Dönüş | E166: Antalya | F166: Isparta | G166: Özel Araç | H166: 0.00 TL | I166: =IFERROR(VALUE(SUBSTITUTE(ArraySep(H166," ",1),".",",")),0) -> 0 | J166: =IF(I166>0,ArraySep(H166," ",2),"") ->  | K166: 0
A167: 409 | B167: Şehnaz Şule KAPLAN BEKAROĞLU | C167: 114Y598 nolu TÜBİTAK Proje Toplantısı | D167: Gidiş | E167: Isparta | F167: Antalya | G167: Özel Araç | H167: 0.00 TL | I167: =IFERROR(VALUE(SUBSTITUTE(ArraySep(H167," ",1),".",",")),0) -> 0 | J167: =IF(I167>0,ArraySep(H167," ",2),"") ->  | K167: 0
A168: 409 | B168: Şehnaz Şule KAPLAN BEKAROĞLU | C168: 114Y598 nolu TÜBİTAK Proje Toplantısı | D168: Gidiş | E168: Antalya | F168: Tel Aviv | G168: Uçak | H168: 300.00 TL | I168: =IFERROR(VALUE(SUBSTITUTE(ArraySep(H168," ",1),".",",")),0) -> 300 | J168: =IF(I168>0,ArraySep(H168," ",2),"") -> TL | K168: 300
A169: 409 | B169: Şehnaz Şule KAPLAN BEKAROĞLU | C169: 114Y598 nolu TÜBİTAK Proje Toplantısı | D169: Dönüş | E169: Tel Aviv | F169: Antalya | G169: Uçak | H169: 300.00 TL | I169: =IFERROR(VALUE(SUBSTITUTE(ArraySep(H169," ",1),".",",")),0) -> 300 | J169: =IF(I169>0,ArraySep(H169," ",2),"") -> TL | K169: 300
A170: 409 | B170: Şehnaz Şule KAPLAN BEKAROĞLU | C170: 114Y598 nolu TÜBİTAK Proje Toplantısı | D170: Dönüş | E170: Antalya | F170: Isparta | G170: Özel Araç | H170: 0.00 TL | I170: =IFERROR(VALUE(SUBSTITUTE(ArraySep(H170," ",1),".",",")),0) -> 0 | J170: =IF(I170>0,ArraySep(H170," ",2),"") ->  | K170: 0
A171: 409 | B171: Şehnaz Şule KAPLAN BEKAROĞLU | C171: 114Y598 nolu TÜBİTAK Proje Toplantısı | D171: Gidiş | E171: Isparta | F171: Antalya | G171: Özel Araç | H171: 0.00 TL | I171: =IFERROR(VALUE(SUBSTITUTE(ArraySep(H171," ",1),".",",")),0) -> 0 | J171: =IF(I171>0,ArraySep(H171," ",2),"") ->  | K171: 0
A172: 409 | B172: Şehnaz Şule KAPLAN BEKAROĞLU | C172: 114Y598 nolu TÜBİTAK Proje Toplantısı | D172: Gidiş | E172: Antalya | F172: Tel Aviv | G172: Uçak | H172: 300.00 TL | I172: =IFERROR(VALUE(SUBSTITUTE(ArraySep(H172," ",1),".",",")),0) -> 300 | J172: =IF(I172>0,ArraySep(H172," ",2),"") -> TL | K172: 300
A173: 409 | B173: Şehnaz Şule KAPLAN BEKAROĞLU | C173: 114Y598 nolu TÜBİTAK Proje Toplantısı | D173: Dönüş | E173: Tel Aviv | F173: Antalya | G173: Uçak | H173: 300.00 TL | I173: =IFERROR(VALUE(SUBSTITUTE(ArraySep(H173," ",1),".",",")),0) -> 300 | J173: =IF(I173>0,ArraySep(H173," ",2),"") -> TL | K173: 300
A174: 409 | B174: Şehnaz Şule KAPLAN BEKAROĞLU | C174: 114Y598 nolu TÜBİTAK Proje Toplantısı | D174: Dönüş | E174: Antalya | F174: Isparta | G174: Özel Araç | H174: 0.00 TL | I174: =IFERROR(VALUE(SUBSTITUTE(ArraySep(H174," ",1),".",",")),0) -> 0 | J174: =IF(I174>0,ArraySep(H174," ",2),"") ->  | K174: 0
A175: 410 | B175: Tuğba SARDOHAN KÖSEOĞLU | C175: 114Y598 nolu TÜBİTAK proje Toplantısı | D175: Gidiş | E175: Isparta | F175: Antalya | G175: Özel Araç | H175: 0.00 TL | I175: =IFERROR(VALUE(SUBSTITUTE(ArraySep(H175," ",1),".",",")),0) -> 0 | J175: =IF(I175>0,ArraySep(H175," ",2),"") ->  | K175: 0
A176: 410 | B176: Tuğba SARDOHAN KÖSEOĞLU | C176: 114Y598 nolu TÜBİTAK proje Toplantısı | D176: Gidiş | E176: Antalya | F176: Tel Aviv | G176: Uçak | H176: 300.00 TL | I176: =IFERROR(VALUE(SUBSTITUTE(ArraySep(H176," ",1),".",",")),0) -> 300 | J176: =IF(I176>0,ArraySep(H176," ",2),"") -> TL | K176: 300
A177: 410 | B177: Tuğba SARDOHAN KÖSEOĞLU | C177: 114Y598 nolu TÜBİTAK proje Toplantısı | D177: Dönüş | E177: Tel Aviv | F177: Antalya | G177: Uçak | H177: 300.00 TL | I177: =IFERROR(VALUE(SUBSTITUTE(ArraySep(H177," ",1),".",",")),0) -> 300 | J177: =IF(I177>0,ArraySep(H177," ",2),"") -> TL | K177: 300
A178: 410 | B178: Tuğba SARDOHAN KÖSEOĞLU | C178: 114Y598 nolu TÜBİTAK proje Toplantısı | D178: Dönüş | E178: Antalya | F178: Isparta | G178: Özel Araç | H178: 0.00 TL | I178: =IFERROR(VALUE(SUBSTITUTE(ArraySep(H178," ",1),".",",")),0) -> 0 | J178: =IF(I178>0,ArraySep(H178," ",2),"") ->  | K178: 0
A179: 410 | B179: Tuğba SARDOHAN KÖSEOĞLU | C179: 114Y598 nolu TÜBİTAK proje Toplantısı | D179: Gidiş | E179: Isparta | F179: Antalya | G179: Özel Araç | H179: 0.00 TL | I179: =IFERROR(VALUE(SUBSTITUTE(ArraySep(H179," ",1),".",",")),0) -> 0 | J179: =IF(I179>0,ArraySep(H179," ",2),"") ->  | K179: 0
A180: 410 | B180: Tuğba SARDOHAN KÖSEOĞLU | C180: 114Y598 nolu TÜBİTAK proje Toplantısı | D180: Gidiş | E180: Antalya | F180: Tel Aviv | G180: Uçak | H180: 300.00 TL | I180: =IFERROR(VALUE(SUBSTITUTE(ArraySep(H180," ",1),".",",")),0) -> 300 | J180: =IF(I180>0,ArraySep(H180," ",2),"") -> TL | K180: 300
A181: 410 | B181: Tuğba SARDOHAN KÖSEOĞLU | C181: 114Y598 nolu TÜBİTAK proje Toplantısı | D181: Dönüş | E181: Tel Aviv | F181: Antalya | G181: Uçak | H181: 300.00 TL | I181: =IFERROR(VALUE(SUBSTITUTE(ArraySep(H181," ",1),".",",")),0) -> 300 | J181: =IF(I181>0,ArraySep(H181," ",2),"") -> TL | K181: 300
A182: 410 | B182: Tuğba SARDOHAN KÖSEOĞLU | C182: 114Y598 nolu TÜBİTAK proje Toplantısı | D182: Dönüş | E182: Antalya | F182: Isparta | G182: Özel Araç | H182: 0.00 TL | I182: =IFERROR(VALUE(SUBSTITUTE(ArraySep(H182," ",1),".",",")),0) -> 0 | J182: =IF(I182>0,ArraySep(H182," ",2),"") ->  | K182: 0
A183: 411 | B183: Kürşad ÖZKAN | C183: Biyolojik çeşitlilik ölçüm süreçleri - envanter, veri transferi ve hesaplama teknikleri | D183: Gidiş | E183: Isparta | F183: Antalya | G183: Özel Araç | H183: 0.00 TL | I183: =IFERROR(VALUE(SUBSTITUTE(ArraySep(H183," ",1),".",",")),0) -> 0 | J183: =IF(I183>0,ArraySep(H183," ",2),"") ->  | K183: 0
A184: 411 | B184: Kürşad ÖZKAN | C184: Biyolojik çeşitlilik ölçüm süreçleri - envanter, veri transferi ve hesaplama teknikleri | D184: Dönüş | E184: Antalya | F184: Isparta | G184: Özel Araç | H184: 0.00 TL | I184: =IFERROR(VALUE(SUBSTITUTE(ArraySep(H184," ",1),".",",")),0) -> 0 | J184: =IF(I184>0,ArraySep(H184," ",2),"") ->  | K184: 0
A185: 411 | B185: Kürşad ÖZKAN | C185: Biyolojik çeşitlilik ölçüm süreçleri - envanter, veri transferi ve hesaplama teknikleri | D185: Gidiş | E185: Isparta | F185: Antalya | G185: Özel Araç | H185: 0.00 TL | I185: =IFERROR(VALUE(SUBSTITUTE(ArraySep(H185," ",1),".",",")),0) -> 0 | J185: =IF(I185>0,ArraySep(H185," ",2),"") ->  | K185: 0
A186: 411 | B186: Kürşad ÖZKAN | C186: Biyolojik çeşitlilik ölçüm süreçleri - envanter, veri transferi ve hesaplama teknikleri | D186: Dönüş | E186: Antalya | F186: Isparta | G186: Özel Araç | H186: 0.00 TL | I186: =IFERROR(VALUE(SUBSTITUTE(ArraySep(H186," ",1),".",",")),0) -> 0 | J186: =IF(I186>0,ArraySep(H186," ",2),"") ->  | K186: 0
A187: 412 | B187: Ali ŞENOL | C187: Biyolojik çeşitlilik ölçüm süreçleri - envanter, veri transferi ve hesaplama teknikleri | D187: Gidiş | E187: Isparta | F187: Antalya | G187: Özel Araç | H187: 0.00 TL | I187: =IFERROR(VALUE(SUBSTITUTE(ArraySep(H187," ",1),".",",")),0) -> 0 | J187: =IF(I187>0,ArraySep(H187," ",2),"") ->  | K187: 0
A188: 412 | B188: Ali ŞENOL | C188: Biyolojik çeşitlilik ölçüm süreçleri - envanter, veri transferi ve hesaplama teknikleri | D188: Dönüş | E188: Antalya | F188: Isparta | G188: Özel Araç | H188: 0.00 TL | I188: =IFERROR(VALUE(SUBSTITUTE(ArraySep(H188," ",1),".",",")),0) -> 0 | J188: =IF(I188>0,ArraySep(H188," ",2),"") ->  | K188: 0
A189: 412 | B189: Ali ŞENOL | C189: Biyolojik çeşitlilik ölçüm süreçleri - envanter, veri transferi ve hesaplama teknikleri | D189: Gidiş | E189: Isparta | F189: Antalya | G189: Özel Araç | H189: 0.00 TL | I189: =IFERROR(VALUE(SUBSTITUTE(ArraySep(H189," ",1),".",",")),0) -> 0 | J189: =IF(I189>0,ArraySep(H189," ",2),"") ->  | K189: 0
A190: 412 | B190: Ali ŞENOL | C190: Biyolojik çeşitlilik ölçüm süreçleri - envanter, veri transferi ve hesaplama teknikleri | D190: Dönüş | E190: Antalya | F190: Isparta | G190: Özel Araç | H190: 0.00 TL | I190: =IFERROR(VALUE(SUBSTITUTE(ArraySep(H190," ",1),".",",")),0) -> 0 | J190: =IF(I190>0,ArraySep(H190," ",2),"") ->  | K190: 0
A191: 413 | B191: Elçin ESENLİK | C191: 13. Uluslar Arası Dudak Damak Yarıkları Kongresi | D191: Gidiş | E191: ISPARTA | F191: ANKARA | G191: Karayolu | H191: 45.00 TL | I191: =IFERROR(VALUE(SUBSTITUTE(ArraySep(H191," ",1),".",",")),0) -> 45 | J191: =IF(I191>0,ArraySep(H191," ",2),"") -> TL | K191: 45
A192: 413 | B192: Elçin ESENLİK | C192: 13. Uluslar Arası Dudak Damak Yarıkları Kongresi | D192: Gidiş | E192: ANKARA | F192: DOHA | G192: Uçak | H192: 2650.00 TL | I192: =IFERROR(VALUE(SUBSTITUTE(ArraySep(H192," ",1),".",",")),0) -> 2650 | J192: =IF(I192>0,ArraySep(H192," ",2),"") -> TL | K192: 2650
A193: 413 | B193: Elçin ESENLİK | C193: 13. Uluslar Arası Dudak Damak Yarıkları Kongresi | D193: Gidiş | E193: DOHA | F193: CHENNAI | G193: Uçak | H193: 2650.00 TL | I193: =IFERROR(VALUE(SUBSTITUTE(ArraySep(H193," ",1),".",",")),0) -> 2650 | J193: =IF(I193>0,ArraySep(H193," ",2),"") -> TL | K193: 2650
A194: 413 | B194: Elçin ESENLİK | C194: 13. Uluslar Arası Dudak Damak Yarıkları Kongresi | D194: Dönüş | E194: CHENNAI | F194: DOHA | G194: Uçak | H194: 2650.00 TL | I194: =IFERROR(VALUE(SUBSTITUTE(ArraySep(H194," ",1),".",",")),0) -> 2650 | J194: =IF(I194>0,ArraySep(H194," ",2),"") -> TL | K194: 2650
A195: 413 | B195: Elçin ESENLİK | C195: 13. Uluslar Arası Dudak Damak Yarıkları Kongresi | D195: Dönüş | E195: DOHA | F195: ANKARA | G195: Uçak | H195: 2650.00 TL | I195: =IFERROR(VALUE(SUBSTITUTE(ArraySep(H195," ",1),".",",")),0) -> 2650 | J195: =IF(I195>0,ArraySep(H195," ",2),"") -> TL | K195: =I195*IF(J195="DOLAR",3,IF(J195="EURO",3.5,1)) -> 2650
A196: 413 | B196: Elçin ESENLİK | C196: 13. Uluslar Arası Dudak Damak Yarıkları Kongresi | D196: Dönüş | E196: ANKARA | F196: ISPARTA | G196: Karayolu | H196: 45.00 TL | I196: =IFERROR(VALUE(SUBSTITUTE(ArraySep(H196," ",1),".",",")),0) -> 45 | J196: =IF(I196>0,ArraySep(H196," ",2),"") -> TL | K196: 45
A197: 415 | B197: Mehmet Güvenç NEGİZ | C197: Biyolojik Çeşitlilik Ölçüm Süreçleri - Envanter, Veri Transfer ve Hesaplama Teknikleri Projesi | D197: Gidiş | E197: Isparta | F197: Antalya | G197: Karayolu | H197: 0.00 TL | I197: =IFERROR(VALUE(SUBSTITUTE(ArraySep(H197," ",1),".",",")),0) -> 0 | J197: =IF(I197>0,ArraySep(H197," ",2),"") ->  | K197: 0
A198: 415 | B198: Mehmet Güvenç NEGİZ | C198: Biyolojik Çeşitlilik Ölçüm Süreçleri - Envanter, Veri Transfer ve Hesaplama Teknikleri Projesi | D198: Dönüş | E198: Antalya | F198: Isparta | G198: Karayolu | H198: 0.00 TL | I198: =IFERROR(VALUE(SUBSTITUTE(ArraySep(H198," ",1),".",",")),0) -> 0 | J198: =IF(I198>0,ArraySep(H198," ",2),"") ->  | K198: 0
A199: 415 | B199: Mehmet Güvenç NEGİZ | C199: Biyolojik Çeşitlilik Ölçüm Süreçleri - Envanter, Veri Transfer ve Hesaplama Teknikleri Projesi | D199: Gidiş | E199: Isparta | F199: Antalya | G199: Karayolu | H199: 0.00 TL | I199: =IFERROR(VALUE(SUBSTITUTE(ArraySep(H199," ",1),".",",")),0) -> 0 | J199: =IF(I199>0,ArraySep(H199," ",2),"") ->  | K199: 0
A200: 415 | B200: Mehmet Güvenç NEGİZ | C200: Biyolojik Çeşitlilik Ölçüm Süreçleri - Envanter, Veri Transfer ve Hesaplama Teknikleri Projesi | D200: Dönüş | E200: Antalya | F200: Isparta | G200: Karayolu | H200: 0.00 TL | I200: =IFERROR(VALUE(SUBSTITUTE(ArraySep(H200," ",1),".",",")),0) -> 0 | J200: =IF(I200>0,ArraySep(H200," ",2),"") ->  | K200: 0
... 112 more rows

Sheet Yurtdisi
B4: 1 | C4: 1 | D4: 1 | F4: 1 | G4: 1 | H4: 1 | J4: 1 | K4: 1
A5: Amerika Birleşik Devletleri | B5: =F5*$J5*$K5 -> 526.5 | C5: =G5*$J5*$K5 -> 495 | D5: 418.5 | F5: 117 | G5: 110 | H5: 93 | I5: DOLAR | J5: 1.5 | K5: 3
A6: Azerbaycan | B6: =F6*$J6*$K6 -> 450 | C6: 427.5 | D6: 360 | F6: 100 | G6: 95 | H6: 80 | I6: DOLAR | J6: 1.5 | K6: 3
A7: Bosna-Hersek | B7: 450 | C7: 427.5 | D7: 360 | F7: 100 | G7: 95 | H7: 80 | I7: DOLAR | J7: 1.5 | K7: 3
A8: Bulgaristan | B8: 425.25 | C8: 399 | D8: 341.25 | F8: 81 | G8: 76 | H8: 65 | I8: EURO | J8: 1.5 | K8: 3.5
A9: Çek Cumhuriyeti | B9: 425.25 | C9: 399 | D9: 341.25 | F9: 81 | G9: 76 | H9: 65 | I9: EURO | J9: 1.5 | K9: 3.5
A10: Fransa | B10: 535.5 | C10: 504 | D10: 425.25 | F10: 102 | G10: 96 | H10: 81 | I10: EURO | J10: 1.5 | K10: 3.5
A11: Almanya | B11: =F11*$J11*$K11 -> 535.5 | C11: =G11*$J11*$K11 -> 504 | D11: =H11*$J11*$K11 -> 425.25 | F11: 102 | G11: 96 | H11: 81 | I11: EURO | J11: 1.5 | K11: 3.5
A12: Hollanda | B12: 525 | C12: 493.5 | D12: 420 | F12: 100 | G12: 94 | H12: 80 | I12: EURO | J12: 1.5 | K12: 3.5
A13: Isviçre | B13: 841.65 | C13: 795.15 | D13: 664.95 | F13: 181 | G13: 171 | H13: 143 | I13: FRANK | J13: 1.5 | K13: 3.1
A14: Japonya | B14: 893.2392 | C14: 839.2044 | D14: 706.5816 | F14: 20118 | G14: 18901 | H14: 15914 | I14: YEN | J14: 1.5 | K14: 0.0296
A15: Kıbrıs | B15: 104.98 | C15: 87.47 | D15: 70.01 | F15: 104.98 | G15: 87.47 | H15: 70.01 | I15: TL | J15: 1 | K15: 1
A16: Macaristan | B16: 425.25 | C16: 399 | D16: 341.25 | F16: 81 | G16: 76 | H16: 65 | I16: EURO | J16: 1.5 | K16: 3.5
A17: Hindistan | B17: 450 | C17: 427.5 | D17: 360 | F17: 100 | G17: 95 | H17: 80 | I17: DOLAR | J17: 1.5 | K17: 3
A18: Vietnam | B18: =F18*$J18*$K18 -> 450 | C18: =G18*$J18*$K18 -> 427.5 | D18: =H18*$J18*$K18 -> 360 | F18: 100 | G18: 95 | H18: 80 | I18: DOLAR | J18: 1.5 | K18: 3
A19: Filistin | B19: =F19*$J19*$K19 -> 450 | C19: =G19*$J19*$K19 -> 427.5 | D19: =H19*$J19*$K19 -> 360 | F19: 100 | G19: 95 | H19: 80 | I19: DOLAR | J19: 1.5 | K19: 3
A20: Suudi Arabistan | B20: =F20*$J20*$K20 -> 450 | C20: =G20*$J20*$K20 -> 427.5 | D20: =H20*$J20*$K20 -> 360 | F20: 100 | G20: 95 | H20: 80 | I20: DOLAR | J20: 1.5 | K20: 3
A21: Polonya | B21: 425.25 | C21: 399 | D21: 341.25 | F21: 81 | G21: 76 | H21: 65 | I21: EURO | J21: 1.5 | K21: 3.5
A22: Slovenya | B22: 425.25 | C22: 399 | D22: 341.25 | F22: 81 | G22: 76 | H22: 65 | I22: EURO | J22: 1.5 | K22: 3.5
A23: Portekiz | B23: 519.75 | C23: 488.25 | D23: 409.5 | F23: 99 | G23: 93 | H23: 78 | I23: EURO | J23: 1.5 | K23: 3.5
A24: Romanya | B24: 425.25 | C24: 399 | D24: 341.25 | F24: 81 | G24: 76 | H24: 65 | I24: EURO | J24: 1.5 | K24: 3.5
A25: Sırbistan ve Karadağ | B25: 425.25 | C25: 399 | D25: 341.25 | F25: 81 | G25: 76 | H25: 65 | I25: EURO | J25: 1.5 | K25: 3.5
A26: Sri Lanka | B26: 450 | C26: 427.5 | D26: 360 | F26: 100 | G26: 95 | H26: 80 | I26: DOLAR | J26: 1.5 | K26: 3
A27: Ukrayna | B27: 450 | C27: 427.5 | D27: 360 | F27: 100 | G27: 95 | H27: 80 | I27: DOLAR | J27: 1.5 | K27: 3
A28: İspanya | B28: =F28*$J28*$K28 -> 530.25 | C28: 498.75 | D28: 420 | F28: 101 | G28: 95 | H28: 80 | I28: EURO | J28: 1.5 | K28: 3.5
A29: Isveç | B29: 466.22925 | C29: 440.41725 | D29: 369.43425 | F29: 867 | G29: 819 | H29: 687 | I29: İSVEÇ KRONU | J29: 1.5 | K29: 0.3585
A30: Birleşik Arap Emirlikleri | B30: 450 | C30: 427.5 | D30: 360 | F30: 100 | G30: 95 | H30: 80 | I30: DOLAR | J30: 1.5 | K30: 3
A31: Malezya | B31: 450 | C31: 427.5 | D31: 360 | F31: 100 | G31: 95 | H31: 80 | I31: DOLAR | J31: 1.5 | K31: 3
A32: Makedonya | B32: 450 | C32: 427.5 | D32: 360 | F32: 100 | G32: 95 | H32: 80 | I32: DOLAR | J32: 1.5 | K32: 3
A33: Tayland | B33: 450 | C33: 427.5 | D33: 360 | F33: 100 | G33: 95 | H33: 80 | I33: DOLAR | J33: 1.5 | K33: 3
A34: Yunanistan | B34: 530.25 | C34: 498.75 | D34: 420 | F34: 101 | G34: 95 | H34: 80 | I34: EURO | J34: 1.5 | K34: 3.5
